Workbook

Sheet Instructions
A1: INVESTMENT MODEL INSTRUCTIONS
A2: TEST APARTMENT MODEL
A3: Fred Mertz Apartments
A4: 555 Main Street
A5: Erehwon, WI
A7: Color Codes
A8: Green | B8: User Input Fields
A9: Blue | B9: Calculated Field -- User can overide as desired
A10: Tan | B10: Constant that rarely changes (e.g. tax rates)
A11: Red | B11: Calculation -- do not change
A12: Gray | B12: Background headings -- should not need to be changed
A14: Worksheets in this Workbook
A15: Instructions | B15: Brief explanation of model organization
A17: Inputs-Inv | B17: Input sheet for basic property, mortgage and investment parameters
A19: Inputs-Oper | B19: Detailed entry form for rents, expenses and growth rate assumptions
A21: Cash Flow | B21: Detailed cash flow model; heavy on analysis, light on formatting
A23: PartnershipCF | B23: Managing Partner and Limited Partner (Investor) cash flow calculations
A25: 8YRDCF | B25: Output table showing an 8-year DCF model and investment returns
A27: How to Run this Model
A28: 1. Enter property investment and operating assumptions in the "Inputs-Inv" and "Inputs-Oper"
A29: worksheets. Enter data into green fields. Overide calculated or assumed inputs as desired
A30: in the blue fields.
A34: COMMENTS
A35: The complex tax consequences associated with selling a property at a loss are not considered.

Sheet Inputs-Inv
A1: INVESTMENT MODEL INPUTS
A2: APARTMENT INVESTMENT
A3: Merz Apartments
A4: 555 Main Street
A6: INVESTMENT INFORMATION | E6: BUILDING INFORMATION
A7: Overall Investment | E7: Building Name: | F7: PropName | G7: Mertz Apartments
A8: Asking Price: | B8: ASKPRICE | C8: 6000000 | E8: Address: | F8: PropAddr | G8: 555 Main Street
A10: Purchase Price: | B10: PURPRICE | C10: 5950000
A11: Capital Costs | B11: CAPCOST | C11: 50000
A12: Total Acquisition Cost | B12: PRICE+CAPS | C12: =PURPRICE+CAPCOST -> 6000000
A14: Valuation & Reversion Rates | E14: TAX INFORMATION
A15: Cap Rate (OAR, Going-in) | B15: CAPIN | C15: 0.08
A16: Reversionary Cap Rate | B16: CAPOUT | C16: 0.085 | E16: Income Tax Rate | F16: TAXRATE | G16: 0.39
A17: Discount Rate | B17: DISCRATE | C17: 0.12 | E17: K Gains Rate (St & Fed) | F17: KTRATE | G17: 0.2
A18: Cost of Sale | B18: COSTSALE | C18: 0.03 | E18: K Gains Rate Depreciation | F18: KTRDEPR | G18: 0.25
A20: Debt Terms | E20: Land/Total Value | F20: LANDTOVALUE | G20: 0.2
A21: LTV Ratio | B21: LTV | C21: 0.85 | E21: IRS Useful Life | F21: TAXLIFE | G21: 39
A22: Loan Amount | B22: LOANAMT | C22: =PRICE_CAPS*LTV -> 5100000
A23: Equity Required | B23: EQUITY | C23: =PRICE_CAPS-LOANAMT -> 900000 | E23: Investor's AGI | F23: AGI | G23: 80000
E24: Investor's Other Passive Income | F24: OPY | G24: 10000
E25: Passive Loss Limit | F25: PLL | G25: =SUM(MAXA((25000-IF(AGI>=100000,0.5*(AGI-100000),0)),0),OPY) -> 35000
A26: Principal | B26: M1PRINCIP | C26: =LOANAMT -> 5100000
A27: Interest Rate | B27: M1INT | C27: 0.0825
A28: Term | B28: M1TERM | C28: 5 | D28: Years
A29: Amortization | B29: M1AMORT | C29: 30 | D29: Years
A31: Required Equity IRR | B31: EQRATE | C31: 0.15
A33: PARTNERSHIP STRUCTURE
A35: General (Managing) Partner | E35: Limited Partner (Investor)
A36: Equity Investment | B36: GPEQ | C36: 0 | E36: Equity Investment | F36: LPEQ | G36: =1-C36 -> 1
A37: Cash Assessments | B37: GPASSES | C37: =C36 -> 0 | E37: Cash Assessments | F37: LPASSES | G37: 1
A38: Cash from Operations | B38: GPCASHOPS | C38: 0.3 | E38: Cash from Operations | F38: LPCASHOPS | G38: 0.7
A39: Taxable Income/Loss | B39: GPTI | C39: =C38 -> 0.3 | E39: Taxable Income/Loss | F39: LPTI | G39: 0.7
A40: Cash from Sale | B40: GPREV | C40: =C38 -> 0.3 | E40: Cash from Sale | F40: LPREV | G40: 0.7
A41: Gain/Loss from Sale | B41: GPGAIN | C41: =C38 -> 0.3 | E41: Gain/Loss from Sale | F41: LPGAIN | G41: 0.7
A43: Tax Rate | B43: GPTAXRATE | C43: 0.28 | E43: Tax Rate | F43: LPTAXRATE | G43: 0.28
A44: K Gains Rate (St & Fed) | B44: GPKTRATE | C44: 0.2 | E44: K Gains Rate (St & Fed) | F44: LPKTRATE | G44: =C44 -> 0.2
A45: K Gains Rate Depreciation | B45: GPKTRDEPR | C45: 0.25 | E45: K Gains Rate Depreciation | F45: LPKTRDEPR | G45: =C45 -> 0.25
A48: Investor's AGI | B48: GPAGI | C48: 80000 | E48: Investor's AGI
A49: Investor's Other Passive Income | B49: GPOPI | C49: 10000 | E49: Investor's Other Passive Income | F49: LPOPI | G49: 10000
A50: Passive Loss Limit | B50: GPPLL | C50: =SUM(MAXA((25000-IF(AGI>=100000,0.5*(AGI-100000),0)),0),OPY) -> 35000 | E50: Passive Loss Limit | F50: LPPLL | G50: =G49 -> 10000

Sheet Inputs-Oper
A1: PRO FORMA OPERATING ASSUMPTIONS
A2: APARTMENT INVESTMENT
A3: Merz Apartments
A4: 555 Main Street
A6: RENTAL INCOME ASSUMPTIONS
G7: Monthly Rent | I7: GROWTH RATE ASSUMPTIONS
C8: Unit Type | D8: MNEM | E8: # Units | G8: Year 1 | I8: Stabilized | J8: Year 2 | K8: Year 3 | L8: Year 4 | M8: Year 5 | N8: Year 6 | O8: Year 7 | P8: Year 8 | Q8: Year 9 | R8: Year 10 | S8: Year 11 | T8: Year 12 | U8: Year 13 | V8: Year 14 | W8: Year 15 | X8: Year 16 | Y8: Year 17 | Z8: Year 18 | AA8: Year 19 | AB8: Year 20
B9: T1 | C9: Efficiency | D9: QTYT1 | E9: 15 | F9: RENTT1 | G9: 700 | I9: 0.04
B10: T2 | C10: 1BR1BA | D10: QTYT2 | E10: 25 | F10: RENTT2 | G10: 750 | I10: =$I$9 -> 0.04
B11: T3 | C11: 2BR1BA | D11: QTYT3 | E11: 25 | F11: RENTT3 | G11: 800 | I11: =$I$9 -> 0.04
B12: T4 | C12: 2BR2BA | D12: QTYT4 | E12: 15 | F12: RENTT4 | G12: 825 | I12: 0.04
B13: T5 | D13: QTYT5 | F13: RENTT5 | I13: 0.04
B14: T6 | D14: QTYT6 | F14: RENTT6 | I14: 0.04
B15: T7 | D15: QTYT7 | F15: RENTT7 | I15: 0.04
B16: T8 | D16: QTYT8 | F16: RENTT8 | I16: 0.04
C17: TOTAL | E17: =SUM(E9:E16) -> 80 | G17: =QTYT1*RENTT1+QTYT2*RENTT2+QTYT3*RENTT3+QTYT4*RENTT4+QTYT5*RENTT5+QTYT6*RENTT6+QTYT7*RENTT7+QTYT8*RENTT8 -> 61625
G18: =G17*12 -> 739500 | H18: Annual
A20: OTHER INCOME ASSUMPTIONS (annual)
B21: OINCTYP1 | C21: Parking | F21: OINC1 | G21: 250 | I21: =$I$9 -> 0.04
B22: OINCTYP2 | C22: Laundry | F22: OINC2 | G22: 250 | I22: =$I$9 -> 0.04
B23: OINCTYP3 | C23: Vending | F23: OINC3 | G23: 250 | I23: =$I$9 -> 0.04
B24: OINCTYP4 | C24: Miscellaneous | F24: OINC4 | G24: 250 | I24: =$I$9 -> 0.04
C26: TOTAL | G26: =SUM(G21:G25) -> 1000 | H26: Annual
A28: VACANCY AND COLLECTION LOSS ASSUMPTIONS
G29: Year 1 | I29: Stabilized | J29: Year 2 | K29: Year 3 | L29: Year 4 | M29: Year 5 | N29: Year 6 | O29: Year 7 | P29: Year 8 | Q29: Year 9 | R29: Year 10 | S29: Year 11 | T29: Year 12 | U29: Year 13 | V29: Year 14 | W29: Year 15 | X29: Year 16 | Y29: Year 17 | Z29: Year 18 | AA29: Year 19 | AB29: Year 20
C30: Rental Income | G30: 0.05 | I30: 0.05
C31: Other Income | G31: =G30 -> 0.05 | I31: =I30 -> 0.05
A34: OPERATING EXPENSES
C36: Utilities | G36: 24000 | I36: 0.04
C37: Personnel | G37: 18000 | I37: =$I$36 -> 0.04
C38: Rubbish Removal | G38: 8500 | I38: =$I$36 -> 0.04
C39: Grounds/park/Snow | G39: 7200 | I39: 0.04
C40: Maintenance | G40: 24000 | I40: 0.04
C41: Leasing Bonus | G41: 0 | I41: 0.04
C42: Advertising | G42: 10000 | I42: 0.04
C43: Administration | G43: 2000 | I43: 0.04
C44: Telephone | G44: 1800 | I44: 0.04
C45: Insurance | G45: 7800 | I45: 0.04
C46: Taxes | G46: 150000 | I46: 0.04
C47: PM Fee | G47: 40000 | I47: 0.04
C48: Legal | G48: 1800 | I48: 0.04
C49: Accounting | G49: 2000 | I49: 0.04
C50: Reserves | G50: 7920 | I50: 0.04
C51: X | I51: 0.04
C52: X | I52: 0.04
C53: X | I53: 0.04
C54: X | I54: 0.04
C55: X | I55: 0.04
C56: X | I56: 0.04
C57: X | I57: 0.04
C58: X | I58: 0.04
A59: Total Operating Expenses | B59: Total Operating Expenses | G59: =SUM(G36:G58) -> 305020

Sheet Cash Flow
A1: =PropName&" Operating Projections" -> Mertz Apartments Operating Projections
A2: =PropAddr -> 555 Main Street
D4: Year 1 | E4: Year 2 | F4: Year 3 | G4: Year 4 | H4: Year 5 | I4: Year 6 | J4: Year 7 | K4: Year 8 | L4: Year 9 | M4: Year 10 | N4: Year 11 | O4: Year 12 | P4: Year 13 | Q4: Year 14 | R4: Year 15 | S4: Year 16 | T4: Year 17 | U4: Year 18 | V4: Year 19 | W4: Year 20 | X4: Year 21
A5: GROSS POTENTIAL INCOME
A6: Rental Income
B7: =T1_ -> Efficiency | D7: =RENTT1*QTYT1*12 -> 126000 | E7: =D7*(1+(IF(ISBLANK('Inputs-Oper'!J9),'Inputs-Oper'!$I9,'Inputs-Oper'!J9))) -> 131040 | F7: =E7*(1+(IF(ISBLANK('Inputs-Oper'!K9),'Inputs-Oper'!$I9,'Inputs-Oper'!K9))) -> 136281.6 | G7: =F7*(1+(IF(ISBLANK('Inputs-Oper'!L9),'Inputs-Oper'!$I9,'Inputs-Oper'!L9))) -> 141732.864 | H7: =G7*(1+(IF(ISBLANK('Inputs-Oper'!M9),'Inputs-Oper'!$I9,'Inputs-Oper'!M9))) -> 147402.1786 | I7: =H7*(1+(IF(ISBLANK('Inputs-Oper'!N9),'Inputs-Oper'!$I9,'Inputs-Oper'!N9))) -> 153298.2657 | J7: =I7*(1+(IF(ISBLANK('Inputs-Oper'!O9),'Inputs-Oper'!$I9,'Inputs-Oper'!O9))) -> 159430.1963 | K7: =J7*(1+(IF(ISBLANK('Inputs-Oper'!P9),'Inputs-Oper'!$I9,'Inputs-Oper'!P9))) -> 165807.4042 | L7: =K7*(1+(IF(ISBLANK('Inputs-Oper'!Q9),'Inputs-Oper'!$I9,'Inputs-Oper'!Q9))) -> 172439.7004 | M7: =L7*(1+(IF(ISBLANK('Inputs-Oper'!R9),'Inputs-Oper'!$I9,'Inputs-Oper'!R9))) -> 179337.2884 | N7: =M7*(1+(IF(ISBLANK('Inputs-Oper'!S9),'Inputs-Oper'!$I9,'Inputs-Oper'!S9))) -> 186510.7799 | O7: =N7*(1+(IF(ISBLANK('Inputs-Oper'!T9),'Inputs-Oper'!$I9,'Inputs-Oper'!T9))) -> 193971.2111 | P7: =O7*(1+(IF(ISBLANK('Inputs-Oper'!U9),'Inputs-Oper'!$I9,'Inputs-Oper'!U9))) -> 201730.0595 | Q7: =P7*(1+(IF(ISBLANK('Inputs-Oper'!V9),'Inputs-Oper'!$I9,'Inputs-Oper'!V9))) -> 209799.2619 | R7: =Q7*(1+(IF(ISBLANK('Inputs-Oper'!W9),'Inputs-Oper'!$I9,'Inputs-Oper'!W9))) -> 218191.2324 | S7: =R7*(1+(IF(ISBLANK('Inputs-Oper'!X9),'Inputs-Oper'!$I9,'Inputs-Oper'!X9))) -> 226918.8817 | T7: =S7*(1+(IF(ISBLANK('Inputs-Oper'!Y9),'Inputs-Oper'!$I9,'Inputs-Oper'!Y9))) -> 235995.637 | U7: =T7*(1+(IF(ISBLANK('Inputs-Oper'!Z9),'Inputs-Oper'!$I9,'Inputs-Oper'!Z9))) -> 245435.4624 | V7: =U7*(1+(IF(ISBLANK('Inputs-Oper'!AA9),'Inputs-Oper'!$I9,'Inputs-Oper'!AA9))) -> 255252.8809 | W7: =V7*(1+(IF(ISBLANK('Inputs-Oper'!AB9),'Inputs-Oper'!$I9,'Inputs-Oper'!AB9))) -> 265462.9962 | X7: =W7*(1+(IF(ISBLANK('Inputs-Oper'!AC9),'Inputs-Oper'!$I9,'Inputs-Oper'!AC9))) -> 276081.516
B8: =T2_ -> 1BR1BA | D8: =RENTT2*QTYT2*12 -> 225000 | E8: =D8*(1+(IF(ISBLANK('Inputs-Oper'!J10),'Inputs-Oper'!$I10,'Inputs-Oper'!J10))) -> 234000 | F8: =E8*(1+(IF(ISBLANK('Inputs-Oper'!K10),'Inputs-Oper'!$I10,'Inputs-Oper'!K10))) -> 243360 | G8: =F8*(1+(IF(ISBLANK('Inputs-Oper'!L10),'Inputs-Oper'!$I10,'Inputs-Oper'!L10))) -> 253094.4 | H8: =G8*(1+(IF(ISBLANK('Inputs-Oper'!M10),'Inputs-Oper'!$I10,'Inputs-Oper'!M10))) -> 263218.176 | I8: =H8*(1+(IF(ISBLANK('Inputs-Oper'!N10),'Inputs-Oper'!$I10,'Inputs-Oper'!N10))) -> 273746.903 | J8: =I8*(1+(IF(ISBLANK('Inputs-Oper'!O10),'Inputs-Oper'!$I10,'Inputs-Oper'!O10))) -> 284696.7792 | K8: =J8*(1+(IF(ISBLANK('Inputs-Oper'!P10),'Inputs-Oper'!$I10,'Inputs-Oper'!P10))) -> 296084.6503 | L8: =K8*(1+(IF(ISBLANK('Inputs-Oper'!Q10),'Inputs-Oper'!$I10,'Inputs-Oper'!Q10))) -> 307928.0363 | M8: =L8*(1+(IF(ISBLANK('Inputs-Oper'!R10),'Inputs-Oper'!$I10,'Inputs-Oper'!R10))) -> 320245.1578 | N8: =M8*(1+(IF(ISBLANK('Inputs-Oper'!S10),'Inputs-Oper'!$I10,'Inputs-Oper'!S10))) -> 333054.9641 | O8: =N8*(1+(IF(ISBLANK('Inputs-Oper'!T10),'Inputs-Oper'!$I10,'Inputs-Oper'!T10))) -> 346377.1627 | P8: =O8*(1+(IF(ISBLANK('Inputs-Oper'!U10),'Inputs-Oper'!$I10,'Inputs-Oper'!U10))) -> 360232.2492 | Q8: =P8*(1+(IF(ISBLANK('Inputs-Oper'!V10),'Inputs-Oper'!$I10,'Inputs-Oper'!V10))) -> 374641.5391 | R8: =Q8*(1+(IF(ISBLANK('Inputs-Oper'!W10),'Inputs-Oper'!$I10,'Inputs-Oper'!W10))) -> 389627.2007 | S8: =R8*(1+(IF(ISBLANK('Inputs-Oper'!X10),'Inputs-Oper'!$I10,'Inputs-Oper'!X10))) -> 405212.2887 | T8: =S8*(1+(IF(ISBLANK('Inputs-Oper'!Y10),'Inputs-Oper'!$I10,'Inputs-Oper'!Y10))) -> 421420.7803 | U8: =T8*(1+(IF(ISBLANK('Inputs-Oper'!Z10),'Inputs-Oper'!$I10,'Inputs-Oper'!Z10))) -> 438277.6115 | V8: =U8*(1+(IF(ISBLANK('Inputs-Oper'!AA10),'Inputs-Oper'!$I10,'Inputs-Oper'!AA10))) -> 455808.716 | W8: =V8*(1+(IF(ISBLANK('Inputs-Oper'!AB10),'Inputs-Oper'!$I10,'Inputs-Oper'!AB10))) -> 474041.0646 | X8: =W8*(1+(IF(ISBLANK('Inputs-Oper'!AC10),'Inputs-Oper'!$I10,'Inputs-Oper'!AC10))) -> 493002.7072
B9: =T3_ -> 2BR1BA | D9: =RENTT3*QTYT3*12 -> 240000 | E9: =D9*(1+(IF(ISBLANK('Inputs-Oper'!J11),'Inputs-Oper'!$I11,'Inputs-Oper'!J11))) -> 249600 | F9: =E9*(1+(IF(ISBLANK('Inputs-Oper'!K11),'Inputs-Oper'!$I11,'Inputs-Oper'!K11))) -> 259584 | G9: =F9*(1+(IF(ISBLANK('Inputs-Oper'!L11),'Inputs-Oper'!$I11,'Inputs-Oper'!L11))) -> 269967.36 | H9: =G9*(1+(IF(ISBLANK('Inputs-Oper'!M11),'Inputs-Oper'!$I11,'Inputs-Oper'!M11))) -> 280766.0544 | I9: =H9*(1+(IF(ISBLANK('Inputs-Oper'!N11),'Inputs-Oper'!$I11,'Inputs-Oper'!N11))) -> 291996.6966 | J9: =I9*(1+(IF(ISBLANK('Inputs-Oper'!O11),'Inputs-Oper'!$I11,'Inputs-Oper'!O11))) -> 303676.5644 | K9: =J9*(1+(IF(ISBLANK('Inputs-Oper'!P11),'Inputs-Oper'!$I11,'Inputs-Oper'!P11))) -> 315823.627 | L9: =K9*(1+(IF(ISBLANK('Inputs-Oper'!Q11),'Inputs-Oper'!$I11,'Inputs-Oper'!Q11))) -> 328456.5721 | M9: =L9*(1+(IF(ISBLANK('Inputs-Oper'!R11),'Inputs-Oper'!$I11,'Inputs-Oper'!R11))) -> 341594.835 | N9: =M9*(1+(IF(ISBLANK('Inputs-Oper'!S11),'Inputs-Oper'!$I11,'Inputs-Oper'!S11))) -> 355258.6284 | O9: =N9*(1+(IF(ISBLANK('Inputs-Oper'!T11),'Inputs-Oper'!$I11,'Inputs-Oper'!T11))) -> 369468.9735 | P9: =O9*(1+(IF(ISBLANK('Inputs-Oper'!U11),'Inputs-Oper'!$I11,'Inputs-Oper'!U11))) -> 384247.7325 | Q9: =P9*(1+(IF(ISBLANK('Inputs-Oper'!V11),'Inputs-Oper'!$I11,'Inputs-Oper'!V11))) -> 399617.6418 | R9: =Q9*(1+(IF(ISBLANK('Inputs-Oper'!W11),'Inputs-Oper'!$I11,'Inputs-Oper'!W11))) -> 415602.3474 | S9: =R9*(1+(IF(ISBLANK('Inputs-Oper'!X11),'Inputs-Oper'!$I11,'Inputs-Oper'!X11))) -> 432226.4413 | T9: =S9*(1+(IF(ISBLANK('Inputs-Oper'!Y11),'Inputs-Oper'!$I11,'Inputs-Oper'!Y11))) -> 449515.499 | U9: =T9*(1+(IF(ISBLANK('Inputs-Oper'!Z11),'Inputs-Oper'!$I11,'Inputs-Oper'!Z11))) -> 467496.1189 | V9: =U9*(1+(IF(ISBLANK('Inputs-Oper'!AA11),'Inputs-Oper'!$I11,'Inputs-Oper'!AA11))) -> 486195.9637 | W9: =V9*(1+(IF(ISBLANK('Inputs-Oper'!AB11),'Inputs-Oper'!$I11,'Inputs-Oper'!AB11))) -> 505643.8022 | X9: =W9*(1+(IF(ISBLANK('Inputs-Oper'!AC11),'Inputs-Oper'!$I11,'Inputs-Oper'!AC11))) -> 525869.5543
B10: =T4_ -> 2BR2BA | D10: =RENTT4*QTYT4*12 -> 148500 | E10: =D10*(1+(IF(ISBLANK('Inputs-Oper'!J12),'Inputs-Oper'!$I12,'Inputs-Oper'!J12))) -> 154440 | F10: =E10*(1+(IF(ISBLANK('Inputs-Oper'!K12),'Inputs-Oper'!$I12,'Inputs-Oper'!K12))) -> 160617.6 | G10: =F10*(1+(IF(ISBLANK('Inputs-Oper'!L12),'Inputs-Oper'!$I12,'Inputs-Oper'!L12))) -> 167042.304 | H10: =G10*(1+(IF(ISBLANK('Inputs-Oper'!M12),'Inputs-Oper'!$I12,'Inputs-Oper'!M12))) -> 173723.9962 | I10: =H10*(1+(IF(ISBLANK('Inputs-Oper'!N12),'Inputs-Oper'!$I12,'Inputs-Oper'!N12))) -> 180672.956 | J10: =I10*(1+(IF(ISBLANK('Inputs-Oper'!O12),'Inputs-Oper'!$I12,'Inputs-Oper'!O12))) -> 187899.8742 | K10: =J10*(1+(IF(ISBLANK('Inputs-Oper'!P12),'Inputs-Oper'!$I12,'Inputs-Oper'!P12))) -> 195415.8692 | L10: =K10*(1+(IF(ISBLANK('Inputs-Oper'!Q12),'Inputs-Oper'!$I12,'Inputs-Oper'!Q12))) -> 203232.504 | M10: =L10*(1+(IF(ISBLANK('Inputs-Oper'!R12),'Inputs-Oper'!$I12,'Inputs-Oper'!R12))) -> 211361.8041 | N10: =M10*(1+(IF(ISBLANK('Inputs-Oper'!S12),'Inputs-Oper'!$I12,'Inputs-Oper'!S12))) -> 219816.2763 | O10: =N10*(1+(IF(ISBLANK('Inputs-Oper'!T12),'Inputs-Oper'!$I12,'Inputs-Oper'!T12))) -> 228608.9274 | P10: =O10*(1+(IF(ISBLANK('Inputs-Oper'!U12),'Inputs-Oper'!$I12,'Inputs-Oper'!U12))) -> 237753.2845 | Q10: =P10*(1+(IF(ISBLANK('Inputs-Oper'!V12),'Inputs-Oper'!$I12,'Inputs-Oper'!V12))) -> 247263.4158 | R10: =Q10*(1+(IF(ISBLANK('Inputs-Oper'!W12),'Inputs-Oper'!$I12,'Inputs-Oper'!W12))) -> 257153.9525 | S10: =R10*(1+(IF(ISBLANK('Inputs-Oper'!X12),'Inputs-Oper'!$I12,'Inputs-Oper'!X12))) -> 267440.1106 | T10: =S10*(1+(IF(ISBLANK('Inputs-Oper'!Y12),'Inputs-Oper'!$I12,'Inputs-Oper'!Y12))) -> 278137.715 | U10: =T10*(1+(IF(ISBLANK('Inputs-Oper'!Z12),'Inputs-Oper'!$I12,'Inputs-Oper'!Z12))) -> 289263.2236 | V10: =U10*(1+(IF(ISBLANK('Inputs-Oper'!AA12),'Inputs-Oper'!$I12,'Inputs-Oper'!AA12))) -> 300833.7525 | W10: =V10*(1+(IF(ISBLANK('Inputs-Oper'!AB12),'Inputs-Oper'!$I12,'Inputs-Oper'!AB12))) -> 312867.1026 | X10: =W10*(1+(IF(ISBLANK('Inputs-Oper'!AC12),'Inputs-Oper'!$I12,'Inputs-Oper'!AC12))) -> 325381.7867
B11: =T5_ -> 0 | D11: =RENTT5*QTYT5*12 -> 0 | E11: =D11*(1+(IF(ISBLANK('Inputs-Oper'!J13),'Inputs-Oper'!$I13,'Inputs-Oper'!J13))) -> 0 | F11: =E11*(1+(IF(ISBLANK('Inputs-Oper'!K13),'Inputs-Oper'!$I13,'Inputs-Oper'!K13))) -> 0 | G11: =F11*(1+(IF(ISBLANK('Inputs-Oper'!L13),'Inputs-Oper'!$I13,'Inputs-Oper'!L13))) -> 0 | H11: =G11*(1+(IF(ISBLANK('Inputs-Oper'!M13),'Inputs-Oper'!$I13,'Inputs-Oper'!M13))) -> 0 | I11: =H11*(1+(IF(ISBLANK('Inputs-Oper'!N13),'Inputs-Oper'!$I13,'Inputs-Oper'!N13))) -> 0 | J11: =I11*(1+(IF(ISBLANK('Inputs-Oper'!O13),'Inputs-Oper'!$I13,'Inputs-Oper'!O13))) -> 0 | K11: =J11*(1+(IF(ISBLANK('Inputs-Oper'!P13),'Inputs-Oper'!$I13,'Inputs-Oper'!P13))) -> 0 | L11: =K11*(1+(IF(ISBLANK('Inputs-Oper'!Q13),'Inputs-Oper'!$I13,'Inputs-Oper'!Q13))) -> 0 | M11: =L11*(1+(IF(ISBLANK('Inputs-Oper'!R13),'Inputs-Oper'!$I13,'Inputs-Oper'!R13))) -> 0 | N11: =M11*(1+(IF(ISBLANK('Inputs-Oper'!S13),'Inputs-Oper'!$I13,'Inputs-Oper'!S13))) -> 0 | O11: =N11*(1+(IF(ISBLANK('Inputs-Oper'!T13),'Inputs-Oper'!$I13,'Inputs-Oper'!T13))) -> 0 | P11: =O11*(1+(IF(ISBLANK('Inputs-Oper'!U13),'Inputs-Oper'!$I13,'Inputs-Oper'!U13))) -> 0 | Q11: =P11*(1+(IF(ISBLANK('Inputs-Oper'!V13),'Inputs-Oper'!$I13,'Inputs-Oper'!V13))) -> 0 | R11: =Q11*(1+(IF(ISBLANK('Inputs-Oper'!W13),'Inputs-Oper'!$I13,'Inputs-Oper'!W13))) -> 0 | S11: =R11*(1+(IF(ISBLANK('Inputs-Oper'!X13),'Inputs-Oper'!$I13,'Inputs-Oper'!X13))) -> 0 | T11: =S11*(1+(IF(ISBLANK('Inputs-Oper'!Y13),'Inputs-Oper'!$I13,'Inputs-Oper'!Y13))) -> 0 | U11: =T11*(1+(IF(ISBLANK('Inputs-Oper'!Z13),'Inputs-Oper'!$I13,'Inputs-Oper'!Z13))) -> 0 | V11: =U11*(1+(IF(ISBLANK('Inputs-Oper'!AA13),'Inputs-Oper'!$I13,'Inputs-Oper'!AA13))) -> 0 | W11: =V11*(1+(IF(ISBLANK('Inputs-Oper'!AB13),'Inputs-Oper'!$I13,'Inputs-Oper'!AB13))) -> 0 | X11: =W11*(1+(IF(ISBLANK('Inputs-Oper'!AC13),'Inputs-Oper'!$I13,'Inputs-Oper'!AC13))) -> 0
B12: =T6_ -> 0 | D12: =RENTT6*QTYT6*12 -> 0 | E12: =D12*(1+(IF(ISBLANK('Inputs-Oper'!J14),'Inputs-Oper'!$I14,'Inputs-Oper'!J14))) -> 0 | F12: =E12*(1+(IF(ISBLANK('Inputs-Oper'!K14),'Inputs-Oper'!$I14,'Inputs-Oper'!K14))) -> 0 | G12: =F12*(1+(IF(ISBLANK('Inputs-Oper'!L14),'Inputs-Oper'!$I14,'Inputs-Oper'!L14))) -> 0 | H12: =G12*(1+(IF(ISBLANK('Inputs-Oper'!M14),'Inputs-Oper'!$I14,'Inputs-Oper'!M14))) -> 0 | I12: =H12*(1+(IF(ISBLANK('Inputs-Oper'!N14),'Inputs-Oper'!$I14,'Inputs-Oper'!N14))) -> 0 | J12: =I12*(1+(IF(ISBLANK('Inputs-Oper'!O14),'Inputs-Oper'!$I14,'Inputs-Oper'!O14))) -> 0 | K12: =J12*(1+(IF(ISBLANK('Inputs-Oper'!P14),'Inputs-Oper'!$I14,'Inputs-Oper'!P14))) -> 0 | L12: =K12*(1+(IF(ISBLANK('Inputs-Oper'!Q14),'Inputs-Oper'!$I14,'Inputs-Oper'!Q14))) -> 0 | M12: =L12*(1+(IF(ISBLANK('Inputs-Oper'!R14),'Inputs-Oper'!$I14,'Inputs-Oper'!R14))) -> 0 | N12: =M12*(1+(IF(ISBLANK('Inputs-Oper'!S14),'Inputs-Oper'!$I14,'Inputs-Oper'!S14))) -> 0 | O12: =N12*(1+(IF(ISBLANK('Inputs-Oper'!T14),'Inputs-Oper'!$I14,'Inputs-Oper'!T14))) -> 0 | P12: =O12*(1+(IF(ISBLANK('Inputs-Oper'!U14),'Inputs-Oper'!$I14,'Inputs-Oper'!U14))) -> 0 | Q12: =P12*(1+(IF(ISBLANK('Inputs-Oper'!V14),'Inputs-Oper'!$I14,'Inputs-Oper'!V14))) -> 0 | R12: =Q12*(1+(IF(ISBLANK('Inputs-Oper'!W14),'Inputs-Oper'!$I14,'Inputs-Oper'!W14))) -> 0 | S12: =R12*(1+(IF(ISBLANK('Inputs-Oper'!X14),'Inputs-Oper'!$I14,'Inputs-Oper'!X14))) -> 0 | T12: =S12*(1+(IF(ISBLANK('Inputs-Oper'!Y14),'Inputs-Oper'!$I14,'Inputs-Oper'!Y14))) -> 0 | U12: =T12*(1+(IF(ISBLANK('Inputs-Oper'!Z14),'Inputs-Oper'!$I14,'Inputs-Oper'!Z14))) -> 0 | V12: =U12*(1+(IF(ISBLANK('Inputs-Oper'!AA14),'Inputs-Oper'!$I14,'Inputs-Oper'!AA14))) -> 0 | W12: =V12*(1+(IF(ISBLANK('Inputs-Oper'!AB14),'Inputs-Oper'!$I14,'Inputs-Oper'!AB14))) -> 0 | X12: =W12*(1+(IF(ISBLANK('Inputs-Oper'!AC14),'Inputs-Oper'!$I14,'Inputs-Oper'!AC14))) -> 0
B13: =T7_ -> 0 | D13: =RENTT7*QTYT7*12 -> 0 | E13: =D13*(1+(IF(ISBLANK('Inputs-Oper'!J15),'Inputs-Oper'!$I15,'Inputs-Oper'!J15))) -> 0 | F13: =E13*(1+(IF(ISBLANK('Inputs-Oper'!K15),'Inputs-Oper'!$I15,'Inputs-Oper'!K15))) -> 0 | G13: =F13*(1+(IF(ISBLANK('Inputs-Oper'!L15),'Inputs-Oper'!$I15,'Inputs-Oper'!L15))) -> 0 | H13: =G13*(1+(IF(ISBLANK('Inputs-Oper'!M15),'Inputs-Oper'!$I15,'Inputs-Oper'!M15))) -> 0 | I13: =H13*(1+(IF(ISBLANK('Inputs-Oper'!N15),'Inputs-Oper'!$I15,'Inputs-Oper'!N15))) -> 0 | J13: =I13*(1+(IF(ISBLANK('Inputs-Oper'!O15),'Inputs-Oper'!$I15,'Inputs-Oper'!O15))) -> 0 | K13: =J13*(1+(IF(ISBLANK('Inputs-Oper'!P15),'Inputs-Oper'!$I15,'Inputs-Oper'!P15))) -> 0 | L13: =K13*(1+(IF(ISBLANK('Inputs-Oper'!Q15),'Inputs-Oper'!$I15,'Inputs-Oper'!Q15))) -> 0 | M13: =L13*(1+(IF(ISBLANK('Inputs-Oper'!R15),'Inputs-Oper'!$I15,'Inputs-Oper'!R15))) -> 0 | N13: =M13*(1+(IF(ISBLANK('Inputs-Oper'!S15),'Inputs-Oper'!$I15,'Inputs-Oper'!S15))) -> 0 | O13: =N13*(1+(IF(ISBLANK('Inputs-Oper'!T15),'Inputs-Oper'!$I15,'Inputs-Oper'!T15))) -> 0 | P13: =O13*(1+(IF(ISBLANK('Inputs-Oper'!U15),'Inputs-Oper'!$I15,'Inputs-Oper'!U15))) -> 0 | Q13: =P13*(1+(IF(ISBLANK('Inputs-Oper'!V15),'Inputs-Oper'!$I15,'Inputs-Oper'!V15))) -> 0 | R13: =Q13*(1+(IF(ISBLANK('Inputs-Oper'!W15),'Inputs-Oper'!$I15,'Inputs-Oper'!W15))) -> 0 | S13: =R13*(1+(IF(ISBLANK('Inputs-Oper'!X15),'Inputs-Oper'!$I15,'Inputs-Oper'!X15))) -> 0 | T13: =S13*(1+(IF(ISBLANK('Inputs-Oper'!Y15),'Inputs-Oper'!$I15,'Inputs-Oper'!Y15))) -> 0 | U13: =T13*(1+(IF(ISBLANK('Inputs-Oper'!Z15),'Inputs-Oper'!$I15,'Inputs-Oper'!Z15))) -> 0 | V13: =U13*(1+(IF(ISBLANK('Inputs-Oper'!AA15),'Inputs-Oper'!$I15,'Inputs-Oper'!AA15))) -> 0 | W13: =V13*(1+(IF(ISBLANK('Inputs-Oper'!AB15),'Inputs-Oper'!$I15,'Inputs-Oper'!AB15))) -> 0 | X13: =W13*(1+(IF(ISBLANK('Inputs-Oper'!AC15),'Inputs-Oper'!$I15,'Inputs-Oper'!AC15))) -> 0
B14: =T8_ -> 0 | D14: =RENTT8*QTYT8*12 -> 0 | E14: =D14*(1+(IF(ISBLANK('Inputs-Oper'!J16),'Inputs-Oper'!$I16,'Inputs-Oper'!J16))) -> 0 | F14: =E14*(1+(IF(ISBLANK('Inputs-Oper'!K16),'Inputs-Oper'!$I16,'Inputs-Oper'!K16))) -> 0 | G14: =F14*(1+(IF(ISBLANK('Inputs-Oper'!L16),'Inputs-Oper'!$I16,'Inputs-Oper'!L16))) -> 0 | H14: =G14*(1+(IF(ISBLANK('Inputs-Oper'!M16),'Inputs-Oper'!$I16,'Inputs-Oper'!M16))) -> 0 | I14: =H14*(1+(IF(ISBLANK('Inputs-Oper'!N16),'Inputs-Oper'!$I16,'Inputs-Oper'!N16))) -> 0 | J14: =I14*(1+(IF(ISBLANK('Inputs-Oper'!O16),'Inputs-Oper'!$I16,'Inputs-Oper'!O16))) -> 0 | K14: =J14*(1+(IF(ISBLANK('Inputs-Oper'!P16),'Inputs-Oper'!$I16,'Inputs-Oper'!P16))) -> 0 | L14: =K14*(1+(IF(ISBLANK('Inputs-Oper'!Q16),'Inputs-Oper'!$I16,'Inputs-Oper'!Q16))) -> 0 | M14: =L14*(1+(IF(ISBLANK('Inputs-Oper'!R16),'Inputs-Oper'!$I16,'Inputs-Oper'!R16))) -> 0 | N14: =M14*(1+(IF(ISBLANK('Inputs-Oper'!S16),'Inputs-Oper'!$I16,'Inputs-Oper'!S16))) -> 0 | O14: =N14*(1+(IF(ISBLANK('Inputs-Oper'!T16),'Inputs-Oper'!$I16,'Inputs-Oper'!T16))) -> 0 | P14: =O14*(1+(IF(ISBLANK('Inputs-Oper'!U16),'Inputs-Oper'!$I16,'Inputs-Oper'!U16))) -> 0 | Q14: =P14*(1+(IF(ISBLANK('Inputs-Oper'!V16),'Inputs-Oper'!$I16,'Inputs-Oper'!V16))) -> 0 | R14: =Q14*(1+(IF(ISBLANK('Inputs-Oper'!W16),'Inputs-Oper'!$I16,'Inputs-Oper'!W16))) -> 0 | S14: =R14*(1+(IF(ISBLANK('Inputs-Oper'!X16),'Inputs-Oper'!$I16,'Inputs-Oper'!X16))) -> 0 | T14: =S14*(1+(IF(ISBLANK('Inputs-Oper'!Y16),'Inputs-Oper'!$I16,'Inputs-Oper'!Y16))) -> 0 | U14: =T14*(1+(IF(ISBLANK('Inputs-Oper'!Z16),'Inputs-Oper'!$I16,'Inputs-Oper'!Z16))) -> 0 | V14: =U14*(1+(IF(ISBLANK('Inputs-Oper'!AA16),'Inputs-Oper'!$I16,'Inputs-Oper'!AA16))) -> 0 | W14: =V14*(1+(IF(ISBLANK('Inputs-Oper'!AB16),'Inputs-Oper'!$I16,'Inputs-Oper'!AB16))) -> 0 | X14: =W14*(1+(IF(ISBLANK('Inputs-Oper'!AC16),'Inputs-Oper'!$I16,'Inputs-Oper'!AC16))) -> 0
A16: Potential Rental Income | D16: =SUM(D7:D14) -> 739500 | E16: =SUM(E7:E14) -> 769080 | F16: 799843.2 | G16: 831836.928 | H16: 865110.4051 | I16: 899714.8213 | J16: 935703.4142 | K16: 973131.5507 | L16: 1012056.813 | M16: 1052539.085 | N16: 1094640.649 | O16: 1138426.275 | P16: 1183963.326 | Q16: 1231321.859 | R16: 1280574.733 | S16: 1331797.722 | T16: 1385069.631 | U16: 1440472.416 | V16: 1498091.313 | W16: 1558014.966 | X16: =SUM(X7:X14) -> 1620335.564
A18: Other Income
B19: =OINCTYP1 -> Parking | D19: =OINC1 -> 250 | E19: =D19*(1+(IF(ISBLANK('Inputs-Oper'!J21),'Inputs-Oper'!$I21,'Inputs-Oper'!J21))) -> 260 | F19: =E19*(1+(IF(ISBLANK('Inputs-Oper'!K21),'Inputs-Oper'!$I21,'Inputs-Oper'!K21))) -> 270.4 | G19: =F19*(1+(IF(ISBLANK('Inputs-Oper'!L21),'Inputs-Oper'!$I21,'Inputs-Oper'!L21))) -> 281.216 | H19: =G19*(1+(IF(ISBLANK('Inputs-Oper'!M21),'Inputs-Oper'!$I21,'Inputs-Oper'!M21))) -> 292.46464 | I19: =H19*(1+(IF(ISBLANK('Inputs-Oper'!N21),'Inputs-Oper'!$I21,'Inputs-Oper'!N21))) -> 304.1632256 | J19: =I19*(1+(IF(ISBLANK('Inputs-Oper'!O21),'Inputs-Oper'!$I21,'Inputs-Oper'!O21))) -> 316.3297546 | K19: =J19*(1+(IF(ISBLANK('Inputs-Oper'!P21),'Inputs-Oper'!$I21,'Inputs-Oper'!P21))) -> 328.9829448 | L19: =K19*(1+(IF(ISBLANK('Inputs-Oper'!Q21),'Inputs-Oper'!$I21,'Inputs-Oper'!Q21))) -> 342.1422626 | M19: =L19*(1+(IF(ISBLANK('Inputs-Oper'!R21),'Inputs-Oper'!$I21,'Inputs-Oper'!R21))) -> 355.8279531 | N19: =M19*(1+(IF(ISBLANK('Inputs-Oper'!S21),'Inputs-Oper'!$I21,'Inputs-Oper'!S21))) -> 370.0610712 | O19: =N19*(1+(IF(ISBLANK('Inputs-Oper'!T21),'Inputs-Oper'!$I21,'Inputs-Oper'!T21))) -> 384.8635141 | P19: =O19*(1+(IF(ISBLANK('Inputs-Oper'!U21),'Inputs-Oper'!$I21,'Inputs-Oper'!U21))) -> 400.2580546 | Q19: =P19*(1+(IF(ISBLANK('Inputs-Oper'!V21),'Inputs-Oper'!$I21,'Inputs-Oper'!V21))) -> 416.2683768 | R19: =Q19*(1+(IF(ISBLANK('Inputs-Oper'!W21),'Inputs-Oper'!$I21,'Inputs-Oper'!W21))) -> 432.9191119 | S19: =R19*(1+(IF(ISBLANK('Inputs-Oper'!X21),'Inputs-Oper'!$I21,'Inputs-Oper'!X21))) -> 450.2358764 | T19: =S19*(1+(IF(ISBLANK('Inputs-Oper'!Y21),'Inputs-Oper'!$I21,'Inputs-Oper'!Y21))) -> 468.2453114 | U19: =T19*(1+(IF(ISBLANK('Inputs-Oper'!Z21),'Inputs-Oper'!$I21,'Inputs-Oper'!Z21))) -> 486.9751239 | V19: =U19*(1+(IF(ISBLANK('Inputs-Oper'!AA21),'Inputs-Oper'!$I21,'Inputs-Oper'!AA21))) -> 506.4541288 | W19: =V19*(1+(IF(ISBLANK('Inputs-Oper'!AB21),'Inputs-Oper'!$I21,'Inputs-Oper'!AB21))) -> 526.712294 | X19: =W19*(1+(IF(ISBLANK('Inputs-Oper'!AC21),'Inputs-Oper'!$I21,'Inputs-Oper'!AC21))) -> 547.7807858
B20: =OINCTYP2 -> Laundry | D20: =OINC2 -> 250 | E20: =D20*(1+(IF(ISBLANK('Inputs-Oper'!J22),'Inputs-Oper'!$I22,'Inputs-Oper'!J22))) -> 260 | F20: =E20*(1+(IF(ISBLANK('Inputs-Oper'!K22),'Inputs-Oper'!$I22,'Inputs-Oper'!K22))) -> 270.4 | G20: =F20*(1+(IF(ISBLANK('Inputs-Oper'!L22),'Inputs-Oper'!$I22,'Inputs-Oper'!L22))) -> 281.216 | H20: =G20*(1+(IF(ISBLANK('Inputs-Oper'!M22),'Inputs-Oper'!$I22,'Inputs-Oper'!M22))) -> 292.46464 | I20: =H20*(1+(IF(ISBLANK('Inputs-Oper'!N22),'Inputs-Oper'!$I22,'Inputs-Oper'!N22))) -> 304.1632256 | J20: =I20*(1+(IF(ISBLANK('Inputs-Oper'!O22),'Inputs-Oper'!$I22,'Inputs-Oper'!O22))) -> 316.3297546 | K20: =J20*(1+(IF(ISBLANK('Inputs-Oper'!P22),'Inputs-Oper'!$I22,'Inputs-Oper'!P22))) -> 328.9829448 | L20: =K20*(1+(IF(ISBLANK('Inputs-Oper'!Q22),'Inputs-Oper'!$I22,'Inputs-Oper'!Q22))) -> 342.1422626 | M20: =L20*(1+(IF(ISBLANK('Inputs-Oper'!R22),'Inputs-Oper'!$I22,'Inputs-Oper'!R22))) -> 355.8279531 | N20: =M20*(1+(IF(ISBLANK('Inputs-Oper'!S22),'Inputs-Oper'!$I22,'Inputs-Oper'!S22))) -> 370.0610712 | O20: =N20*(1+(IF(ISBLANK('Inputs-Oper'!T22),'Inputs-Oper'!$I22,'Inputs-Oper'!T22))) -> 384.8635141 | P20: =O20*(1+(IF(ISBLANK('Inputs-Oper'!U22),'Inputs-Oper'!$I22,'Inputs-Oper'!U22))) -> 400.2580546 | Q20: =P20*(1+(IF(ISBLANK('Inputs-Oper'!V22),'Inputs-Oper'!$I22,'Inputs-Oper'!V22))) -> 416.2683768 | R20: =Q20*(1+(IF(ISBLANK('Inputs-Oper'!W22),'Inputs-Oper'!$I22,'Inputs-Oper'!W22))) -> 432.9191119 | S20: =R20*(1+(IF(ISBLANK('Inputs-Oper'!X22),'Inputs-Oper'!$I22,'Inputs-Oper'!X22))) -> 450.2358764 | T20: =S20*(1+(IF(ISBLANK('Inputs-Oper'!Y22),'Inputs-Oper'!$I22,'Inputs-Oper'!Y22))) -> 468.2453114 | U20: =T20*(1+(IF(ISBLANK('Inputs-Oper'!Z22),'Inputs-Oper'!$I22,'Inputs-Oper'!Z22))) -> 486.9751239 | V20: =U20*(1+(IF(ISBLANK('Inputs-Oper'!AA22),'Inputs-Oper'!$I22,'Inputs-Oper'!AA22))) -> 506.4541288 | W20: =V20*(1+(IF(ISBLANK('Inputs-Oper'!AB22),'Inputs-Oper'!$I22,'Inputs-Oper'!AB22))) -> 526.712294 | X20: =W20*(1+(IF(ISBLANK('Inputs-Oper'!AC22),'Inputs-Oper'!$I22,'Inputs-Oper'!AC22))) -> 547.7807858
B21: =OINCTYP3 -> Vending | D21: =OINC3 -> 250 | E21: =D21*(1+(IF(ISBLANK('Inputs-Oper'!J23),'Inputs-Oper'!$I23,'Inputs-Oper'!J23))) -> 260 | F21: =E21*(1+(IF(ISBLANK('Inputs-Oper'!K23),'Inputs-Oper'!$I23,'Inputs-Oper'!K23))) -> 270.4 | G21: =F21*(1+(IF(ISBLANK('Inputs-Oper'!L23),'Inputs-Oper'!$I23,'Inputs-Oper'!L23))) -> 281.216 | H21: =G21*(1+(IF(ISBLANK('Inputs-Oper'!M23),'Inputs-Oper'!$I23,'Inputs-Oper'!M23))) -> 292.46464 | I21: =H21*(1+(IF(ISBLANK('Inputs-Oper'!N23),'Inputs-Oper'!$I23,'Inputs-Oper'!N23))) -> 304.1632256 | J21: =I21*(1+(IF(ISBLANK('Inputs-Oper'!O23),'Inputs-Oper'!$I23,'Inputs-Oper'!O23))) -> 316.3297546 | K21: =J21*(1+(IF(ISBLANK('Inputs-Oper'!P23),'Inputs-Oper'!$I23,'Inputs-Oper'!P23))) -> 328.9829448 | L21: =K21*(1+(IF(ISBLANK('Inputs-Oper'!Q23),'Inputs-Oper'!$I23,'Inputs-Oper'!Q23))) -> 342.1422626 | M21: =L21*(1+(IF(ISBLANK('Inputs-Oper'!R23),'Inputs-Oper'!$I23,'Inputs-Oper'!R23))) -> 355.8279531 | N21: =M21*(1+(IF(ISBLANK('Inputs-Oper'!S23),'Inputs-Oper'!$I23,'Inputs-Oper'!S23))) -> 370.0610712 | O21: =N21*(1+(IF(ISBLANK('Inputs-Oper'!T23),'Inputs-Oper'!$I23,'Inputs-Oper'!T23))) -> 384.8635141 | P21: =O21*(1+(IF(ISBLANK('Inputs-Oper'!U23),'Inputs-Oper'!$I23,'Inputs-Oper'!U23))) -> 400.2580546 | Q21: =P21*(1+(IF(ISBLANK('Inputs-Oper'!V23),'Inputs-Oper'!$I23,'Inputs-Oper'!V23))) -> 416.2683768 | R21: =Q21*(1+(IF(ISBLANK('Inputs-Oper'!W23),'Inputs-Oper'!$I23,'Inputs-Oper'!W23))) -> 432.9191119 | S21: =R21*(1+(IF(ISBLANK('Inputs-Oper'!X23),'Inputs-Oper'!$I23,'Inputs-Oper'!X23))) -> 450.2358764 | T21: =S21*(1+(IF(ISBLANK('Inputs-Oper'!Y23),'Inputs-Oper'!$I23,'Inputs-Oper'!Y23))) -> 468.2453114 | U21: =T21*(1+(IF(ISBLANK('Inputs-Oper'!Z23),'Inputs-Oper'!$I23,'Inputs-Oper'!Z23))) -> 486.9751239 | V21: =U21*(1+(IF(ISBLANK('Inputs-Oper'!AA23),'Inputs-Oper'!$I23,'Inputs-Oper'!AA23))) -> 506.4541288 | W21: =V21*(1+(IF(ISBLANK('Inputs-Oper'!AB23),'Inputs-Oper'!$I23,'Inputs-Oper'!AB23))) -> 526.712294 | X21: =W21*(1+(IF(ISBLANK('Inputs-Oper'!AC23),'Inputs-Oper'!$I23,'Inputs-Oper'!AC23))) -> 547.7807858
B22: =OINCTYP4 -> Miscellaneous | D22: =OINC4 -> 250 | E22: =D22*(1+(IF(ISBLANK('Inputs-Oper'!J24),'Inputs-Oper'!$I24,'Inputs-Oper'!J24))) -> 260 | F22: =E22*(1+(IF(ISBLANK('Inputs-Oper'!K24),'Inputs-Oper'!$I24,'Inputs-Oper'!K24))) -> 270.4 | G22: =F22*(1+(IF(ISBLANK('Inputs-Oper'!L24),'Inputs-Oper'!$I24,'Inputs-Oper'!L24))) -> 281.216 | H22: =G22*(1+(IF(ISBLANK('Inputs-Oper'!M24),'Inputs-Oper'!$I24,'Inputs-Oper'!M24))) -> 292.46464 | I22: =H22*(1+(IF(ISBLANK('Inputs-Oper'!N24),'Inputs-Oper'!$I24,'Inputs-Oper'!N24))) -> 304.1632256 | J22: =I22*(1+(IF(ISBLANK('Inputs-Oper'!O24),'Inputs-Oper'!$I24,'Inputs-Oper'!O24))) -> 316.3297546 | K22: =J22*(1+(IF(ISBLANK('Inputs-Oper'!P24),'Inputs-Oper'!$I24,'Inputs-Oper'!P24))) -> 328.9829448 | L22: =K22*(1+(IF(ISBLANK('Inputs-Oper'!Q24),'Inputs-Oper'!$I24,'Inputs-Oper'!Q24))) -> 342.1422626 | M22: =L22*(1+(IF(ISBLANK('Inputs-Oper'!R24),'Inputs-Oper'!$I24,'Inputs-Oper'!R24))) -> 355.8279531 | N22: =M22*(1+(IF(ISBLANK('Inputs-Oper'!S24),'Inputs-Oper'!$I24,'Inputs-Oper'!S24))) -> 370.0610712 | O22: =N22*(1+(IF(ISBLANK('Inputs-Oper'!T24),'Inputs-Oper'!$I24,'Inputs-Oper'!T24))) -> 384.8635141 | P22: =O22*(1+(IF(ISBLANK('Inputs-Oper'!U24),'Inputs-Oper'!$I24,'Inputs-Oper'!U24))) -> 400.2580546 | Q22: =P22*(1+(IF(ISBLANK('Inputs-Oper'!V24),'Inputs-Oper'!$I24,'Inputs-Oper'!V24))) -> 416.2683768 | R22: =Q22*(1+(IF(ISBLANK('Inputs-Oper'!W24),'Inputs-Oper'!$I24,'Inputs-Oper'!W24))) -> 432.9191119 | S22: =R22*(1+(IF(ISBLANK('Inputs-Oper'!X24),'Inputs-Oper'!$I24,'Inputs-Oper'!X24))) -> 450.2358764 | T22: =S22*(1+(IF(ISBLANK('Inputs-Oper'!Y24),'Inputs-Oper'!$I24,'Inputs-Oper'!Y24))) -> 468.2453114 | U22: =T22*(1+(IF(ISBLANK('Inputs-Oper'!Z24),'Inputs-Oper'!$I24,'Inputs-Oper'!Z24))) -> 486.9751239 | V22: =U22*(1+(IF(ISBLANK('Inputs-Oper'!AA24),'Inputs-Oper'!$I24,'Inputs-Oper'!AA24))) -> 506.4541288 | W22: =V22*(1+(IF(ISBLANK('Inputs-Oper'!AB24),'Inputs-Oper'!$I24,'Inputs-Oper'!AB24))) -> 526.712294 | X22: =W22*(1+(IF(ISBLANK('Inputs-Oper'!AC24),'Inputs-Oper'!$I24,'Inputs-Oper'!AC24))) -> 547.7807858
A23: Total | D23: =SUM(D19:D22) -> 1000 | E23: =SUM(E19:E22) -> 1040 | F23: 1081.6 | G23: 1124.864 | H23: 1169.85856 | I23: 1216.652902 | J23: 1265.319018 | K23: 1315.931779 | L23: 1368.56905 | M23: 1423.311812 | N23: 1480.244285 | O23: 1539.454056 | P23: 1601.032219 | Q23: 1665.073507 | R23: 1731.676448 | S23: 1800.943506 | T23: 1872.981246 | U23: 1947.900496 | V23: 2025.816515 | W23: 2106.849176 | X23: 2191.123143
A25: Potential Gross Income | D25: =D16+D23 -> 740500 | E25: =E16+E23 -> 770120 | F25: 800924.8 | G25: 832961.792 | H25: 866280.2637 | I25: 900931.4742 | J25: 936968.7332 | K25: 974447.4825 | L25: 1013425.382 | M25: 1053962.397 | N25: 1096120.893 | O25: 1139965.729 | P25: 1185564.358 | Q25: 1232986.932 | R25: 1282306.409 | S25: 1333598.666 | T25: 1386942.612 | U25: 1442420.317 | V25: 1500117.13 | W25: 1560121.815 | X25: =X16+X23 -> 1622526.687
A27: Less: Vacancy and Collection
B28: Rental Income | D28: =-D16*'Inputs-Oper'!G30 -> -36975 | E28: =-E16*(IF(ISBLANK('Inputs-Oper'!J30),'Inputs-Oper'!$I30,'Inputs-Oper'!J30)) -> -38454 | F28: =-F16*(IF(ISBLANK('Inputs-Oper'!K30),'Inputs-Oper'!$I30,'Inputs-Oper'!K30)) -> -39992.16 | G28: =-G16*(IF(ISBLANK('Inputs-Oper'!L30),'Inputs-Oper'!$I30,'Inputs-Oper'!L30)) -> -41591.8464 | H28: =-H16*(IF(ISBLANK('Inputs-Oper'!M30),'Inputs-Oper'!$I30,'Inputs-Oper'!M30)) -> -43255.52026 | I28: =-I16*(IF(ISBLANK('Inputs-Oper'!N30),'Inputs-Oper'!$I30,'Inputs-Oper'!N30)) -> -44985.74107 | J28: =-J16*(IF(ISBLANK('Inputs-Oper'!O30),'Inputs-Oper'!$I30,'Inputs-Oper'!O30)) -> -46785.17071 | K28: =-K16*(IF(ISBLANK('Inputs-Oper'!P30),'Inputs-Oper'!$I30,'Inputs-Oper'!P30)) -> -48656.57754 | L28: =-L16*(IF(ISBLANK('Inputs-Oper'!Q30),'Inputs-Oper'!$I30,'Inputs-Oper'!Q30)) -> -50602.84064 | M28: =-M16*(IF(ISBLANK('Inputs-Oper'!R30),'Inputs-Oper'!$I30,'Inputs-Oper'!R30)) -> -52626.95426 | N28: =-N16*(IF(ISBLANK('Inputs-Oper'!S30),'Inputs-Oper'!$I30,'Inputs-Oper'!S30)) -> -54732.03243 | O28: =-O16*(IF(ISBLANK('Inputs-Oper'!T30),'Inputs-Oper'!$I30,'Inputs-Oper'!T30)) -> -56921.31373 | P28: =-P16*(IF(ISBLANK('Inputs-Oper'!U30),'Inputs-Oper'!$I30,'Inputs-Oper'!U30)) -> -59198.16628 | Q28: =-Q16*(IF(ISBLANK('Inputs-Oper'!V30),'Inputs-Oper'!$I30,'Inputs-Oper'!V30)) -> -61566.09293 | R28: =-R16*(IF(ISBLANK('Inputs-Oper'!W30),'Inputs-Oper'!$I30,'Inputs-Oper'!W30)) -> -64028.73665 | S28: =-S16*(IF(ISBLANK('Inputs-Oper'!X30),'Inputs-Oper'!$I30,'Inputs-Oper'!X30)) -> -66589.88612 | T28: =-T16*(IF(ISBLANK('Inputs-Oper'!Y30),'Inputs-Oper'!$I30,'Inputs-Oper'!Y30)) -> -69253.48156 | U28: =-U16*(IF(ISBLANK('Inputs-Oper'!Z30),'Inputs-Oper'!$I30,'Inputs-Oper'!Z30)) -> -72023.62082 | V28: =-V16*(IF(ISBLANK('Inputs-Oper'!AA30),'Inputs-Oper'!$I30,'Inputs-Oper'!AA30)) -> -74904.56566 | W28: =-W16*(IF(ISBLANK('Inputs-Oper'!AB30),'Inputs-Oper'!$I30,'Inputs-Oper'!AB30)) -> -77900.74828 | X28: =-X16*(IF(ISBLANK('Inputs-Oper'!AC30),'Inputs-Oper'!$I30,'Inputs-Oper'!AC30)) -> -81016.77821
B29: Other Income | D29: =-D23*'Inputs-Oper'!G31 -> -50 | E29: =-E23*(IF(ISBLANK('Inputs-Oper'!J31),'Inputs-Oper'!$I31,'Inputs-Oper'!J31)) -> -52 | F29: =-F23*(IF(ISBLANK('Inputs-Oper'!K31),'Inputs-Oper'!$I31,'Inputs-Oper'!K31)) -> -54.08 | G29: =-G23*(IF(ISBLANK('Inputs-Oper'!L31),'Inputs-Oper'!$I31,'Inputs-Oper'!L31)) -> -56.2432 | H29: =-H23*(IF(ISBLANK('Inputs-Oper'!M31),'Inputs-Oper'!$I31,'Inputs-Oper'!M31)) -> -58.492928 | I29: =-I23*(IF(ISBLANK('Inputs-Oper'!N31),'Inputs-Oper'!$I31,'Inputs-Oper'!N31)) -> -60.83264512 | J29: =-J23*(IF(ISBLANK('Inputs-Oper'!O31),'Inputs-Oper'!$I31,'Inputs-Oper'!O31)) -> -63.26595092 | K29: =-K23*(IF(ISBLANK('Inputs-Oper'!P31),'Inputs-Oper'!$I31,'Inputs-Oper'!P31)) -> -65.79658896 | L29: =-L23*(IF(ISBLANK('Inputs-Oper'!Q31),'Inputs-Oper'!$I31,'Inputs-Oper'!Q31)) -> -68.42845252 | M29: =-M23*(IF(ISBLANK('Inputs-Oper'!R31),'Inputs-Oper'!$I31,'Inputs-Oper'!R31)) -> -71.16559062 | N29: =-N23*(IF(ISBLANK('Inputs-Oper'!S31),'Inputs-Oper'!$I31,'Inputs-Oper'!S31)) -> -74.01221425 | O29: =-O23*(IF(ISBLANK('Inputs-Oper'!T31),'Inputs-Oper'!$I31,'Inputs-Oper'!T31)) -> -76.97270282 | P29: =-P23*(IF(ISBLANK('Inputs-Oper'!U31),'Inputs-Oper'!$I31,'Inputs-Oper'!U31)) -> -80.05161093 | Q29: =-Q23*(IF(ISBLANK('Inputs-Oper'!V31),'Inputs-Oper'!$I31,'Inputs-Oper'!V31)) -> -83.25367537 | R29: =-R23*(IF(ISBLANK('Inputs-Oper'!W31),'Inputs-Oper'!$I31,'Inputs-Oper'!W31)) -> -86.58382238 | S29: =-S23*(IF(ISBLANK('Inputs-Oper'!X31),'Inputs-Oper'!$I31,'Inputs-Oper'!X31)) -> -90.04717528 | T29: =-T23*(IF(ISBLANK('Inputs-Oper'!Y31),'Inputs-Oper'!$I31,'Inputs-Oper'!Y31)) -> -93.64906229 | U29: =-U23*(IF(ISBLANK('Inputs-Oper'!Z31),'Inputs-Oper'!$I31,'Inputs-Oper'!Z31)) -> -97.39502478 | V29: =-V23*(IF(ISBLANK('Inputs-Oper'!AA31),'Inputs-Oper'!$I31,'Inputs-Oper'!AA31)) -> -101.2908258 | W29: =-W23*(IF(ISBLANK('Inputs-Oper'!AB31),'Inputs-Oper'!$I31,'Inputs-Oper'!AB31)) -> -105.3424588 | X29: =-X23*(IF(ISBLANK('Inputs-Oper'!AC31),'Inputs-Oper'!$I31,'Inputs-Oper'!AC31)) -> -109.5561572
A30: Total | D30: =SUM(D28:D29) -> -37025 | E30: =SUM(E28:E29) -> -38506 | F30: =SUM(F28:F29) -> -40046.24 | G30: -41648.0896 | H30: -43314.01318 | I30: -45046.57371 | J30: -46848.43666 | K30: -48722.37413 | L30: -50671.26909 | M30: -52698.11985 | N30: -54806.04465 | O30: -56998.28644 | P30: -59278.21789 | Q30: -61649.34661 | R30: -64115.32047 | S30: -66679.93329 | T30: -69347.13062 | U30: -72121.01585 | V30: -75005.85648 | W30: -78006.09074 | X30: -81126.33437
A32: Effective Gross Income | D32: =D25+D30 -> 703475 | E32: =E25+E30 -> 731614 | F32: 760878.56 | G32: 791313.7024 | H32: 822966.2505 | I32: 855884.9005 | J32: 890120.2965 | K32: 925725.1084 | L32: 962754.1127 | M32: 1001264.277 | N32: 1041314.848 | O32: 1082967.442 | P32: 1126286.14 | Q32: 1171337.586 | R32: 1218191.089 | S32: 1266918.733 | T32: 1317595.482 | U32: 1370299.301 | V32: 1425111.273 | W32: 1482115.724 | X32: =X25+X30 -> 1541400.353
A34: OPERATING EXPENSES
B36: ='Inputs-Oper'!C36 -> Utilities | D36: =-'Inputs-Oper'!G36 -> -24000 | E36: =D36*(1+(IF(ISBLANK('Inputs-Oper'!J36),'Inputs-Oper'!$I36,'Inputs-Oper'!J36))) -> -24960 | F36: =E36*(1+(IF(ISBLANK('Inputs-Oper'!K36),'Inputs-Oper'!$I36,'Inputs-Oper'!K36))) -> -25958.4 | G36: =F36*(1+(IF(ISBLANK('Inputs-Oper'!L36),'Inputs-Oper'!$I36,'Inputs-Oper'!L36))) -> -26996.736 | H36: =G36*(1+(IF(ISBLANK('Inputs-Oper'!M36),'Inputs-Oper'!$I36,'Inputs-Oper'!M36))) -> -28076.60544 | I36: =H36*(1+(IF(ISBLANK('Inputs-Oper'!N36),'Inputs-Oper'!$I36,'Inputs-Oper'!N36))) -> -29199.66966 | J36: =I36*(1+(IF(ISBLANK('Inputs-Oper'!O36),'Inputs-Oper'!$I36,'Inputs-Oper'!O36))) -> -30367.65644 | K36: =J36*(1+(IF(ISBLANK('Inputs-Oper'!P36),'Inputs-Oper'!$I36,'Inputs-Oper'!P36))) -> -31582.3627 | L36: =K36*(1+(IF(ISBLANK('Inputs-Oper'!Q36),'Inputs-Oper'!$I36,'Inputs-Oper'!Q36))) -> -32845.65721 | M36: =L36*(1+(IF(ISBLANK('Inputs-Oper'!R36),'Inputs-Oper'!$I36,'Inputs-Oper'!R36))) -> -34159.4835 | N36: =M36*(1+(IF(ISBLANK('Inputs-Oper'!S36),'Inputs-Oper'!$I36,'Inputs-Oper'!S36))) -> -35525.86284 | O36: =N36*(1+(IF(ISBLANK('Inputs-Oper'!T36),'Inputs-Oper'!$I36,'Inputs-Oper'!T36))) -> -36946.89735 | P36: =O36*(1+(IF(ISBLANK('Inputs-Oper'!U36),'Inputs-Oper'!$I36,'Inputs-Oper'!U36))) -> -38424.77325 | Q36: =P36*(1+(IF(ISBLANK('Inputs-Oper'!V36),'Inputs-Oper'!$I36,'Inputs-Oper'!V36))) -> -39961.76418 | R36: =Q36*(1+(IF(ISBLANK('Inputs-Oper'!W36),'Inputs-Oper'!$I36,'Inputs-Oper'!W36))) -> -41560.23474 | S36: =R36*(1+(IF(ISBLANK('Inputs-Oper'!X36),'Inputs-Oper'!$I36,'Inputs-Oper'!X36))) -> -43222.64413 | T36: =S36*(1+(IF(ISBLANK('Inputs-Oper'!Y36),'Inputs-Oper'!$I36,'Inputs-Oper'!Y36))) -> -44951.5499 | U36: =T36*(1+(IF(ISBLANK('Inputs-Oper'!Z36),'Inputs-Oper'!$I36,'Inputs-Oper'!Z36))) -> -46749.61189 | V36: =U36*(1+(IF(ISBLANK('Inputs-Oper'!AA36),'Inputs-Oper'!$I36,'Inputs-Oper'!AA36))) -> -48619.59637 | W36: =V36*(1+(IF(ISBLANK('Inputs-Oper'!AB36),'Inputs-Oper'!$I36,'Inputs-Oper'!AB36))) -> -50564.38022 | X36: =W36*(1+(IF(ISBLANK('Inputs-Oper'!AC36),'Inputs-Oper'!$I36,'Inputs-Oper'!AC36))) -> -52586.95543
B37: ='Inputs-Oper'!C37 -> Personnel | D37: =-'Inputs-Oper'!G37 -> -18000 | E37: =D37*(1+(IF(ISBLANK('Inputs-Oper'!J37),'Inputs-Oper'!$I37,'Inputs-Oper'!J37))) -> -18720 | F37: =E37*(1+(IF(ISBLANK('Inputs-Oper'!K37),'Inputs-Oper'!$I37,'Inputs-Oper'!K37))) -> -19468.8 | G37: =F37*(1+(IF(ISBLANK('Inputs-Oper'!L37),'Inputs-Oper'!$I37,'Inputs-Oper'!L37))) -> -20247.552 | H37: =G37*(1+(IF(ISBLANK('Inputs-Oper'!M37),'Inputs-Oper'!$I37,'Inputs-Oper'!M37))) -> -21057.45408 | I37: =H37*(1+(IF(ISBLANK('Inputs-Oper'!N37),'Inputs-Oper'!$I37,'Inputs-Oper'!N37))) -> -21899.75224 | J37: =I37*(1+(IF(ISBLANK('Inputs-Oper'!O37),'Inputs-Oper'!$I37,'Inputs-Oper'!O37))) -> -22775.74233 | K37: =J37*(1+(IF(ISBLANK('Inputs-Oper'!P37),'Inputs-Oper'!$I37,'Inputs-Oper'!P37))) -> -23686.77203 | L37: =K37*(1+(IF(ISBLANK('Inputs-Oper'!Q37),'Inputs-Oper'!$I37,'Inputs-Oper'!Q37))) -> -24634.24291 | M37: =L37*(1+(IF(ISBLANK('Inputs-Oper'!R37),'Inputs-Oper'!$I37,'Inputs-Oper'!R37))) -> -25619.61262 | N37: =M37*(1+(IF(ISBLANK('Inputs-Oper'!S37),'Inputs-Oper'!$I37,'Inputs-Oper'!S37))) -> -26644.39713 | O37: =N37*(1+(IF(ISBLANK('Inputs-Oper'!T37),'Inputs-Oper'!$I37,'Inputs-Oper'!T37))) -> -27710.17301 | P37: =O37*(1+(IF(ISBLANK('Inputs-Oper'!U37),'Inputs-Oper'!$I37,'Inputs-Oper'!U37))) -> -28818.57993 | Q37: =P37*(1+(IF(ISBLANK('Inputs-Oper'!V37),'Inputs-Oper'!$I37,'Inputs-Oper'!V37))) -> -29971.32313 | R37: =Q37*(1+(IF(ISBLANK('Inputs-Oper'!W37),'Inputs-Oper'!$I37,'Inputs-Oper'!W37))) -> -31170.17606 | S37: =R37*(1+(IF(ISBLANK('Inputs-Oper'!X37),'Inputs-Oper'!$I37,'Inputs-Oper'!X37))) -> -32416.9831 | T37: =S37*(1+(IF(ISBLANK('Inputs-Oper'!Y37),'Inputs-Oper'!$I37,'Inputs-Oper'!Y37))) -> -33713.66242 | U37: =T37*(1+(IF(ISBLANK('Inputs-Oper'!Z37),'Inputs-Oper'!$I37,'Inputs-Oper'!Z37))) -> -35062.20892 | V37: =U37*(1+(IF(ISBLANK('Inputs-Oper'!AA37),'Inputs-Oper'!$I37,'Inputs-Oper'!AA37))) -> -36464.69728 | W37: =V37*(1+(IF(ISBLANK('Inputs-Oper'!AB37),'Inputs-Oper'!$I37,'Inputs-Oper'!AB37))) -> -37923.28517 | X37: =W37*(1+(IF(ISBLANK('Inputs-Oper'!AC37),'Inputs-Oper'!$I37,'Inputs-Oper'!AC37))) -> -39440.21657
B38: ='Inputs-Oper'!C38 -> Rubbish Removal | D38: =-'Inputs-Oper'!G38 -> -8500 | E38: =D38*(1+(IF(ISBLANK('Inputs-Oper'!J38),'Inputs-Oper'!$I38,'Inputs-Oper'!J38))) -> -8840 | F38: =E38*(1+(IF(ISBLANK('Inputs-Oper'!K38),'Inputs-Oper'!$I38,'Inputs-Oper'!K38))) -> -9193.6 | G38: =F38*(1+(IF(ISBLANK('Inputs-Oper'!L38),'Inputs-Oper'!$I38,'Inputs-Oper'!L38))) -> -9561.344 | H38: =G38*(1+(IF(ISBLANK('Inputs-Oper'!M38),'Inputs-Oper'!$I38,'Inputs-Oper'!M38))) -> -9943.79776 | I38: =H38*(1+(IF(ISBLANK('Inputs-Oper'!N38),'Inputs-Oper'!$I38,'Inputs-Oper'!N38))) -> -10341.54967 | J38: =I38*(1+(IF(ISBLANK('Inputs-Oper'!O38),'Inputs-Oper'!$I38,'Inputs-Oper'!O38))) -> -10755.21166 | K38: =J38*(1+(IF(ISBLANK('Inputs-Oper'!P38),'Inputs-Oper'!$I38,'Inputs-Oper'!P38))) -> -11185.42012 | L38: =K38*(1+(IF(ISBLANK('Inputs-Oper'!Q38),'Inputs-Oper'!$I38,'Inputs-Oper'!Q38))) -> -11632.83693 | M38: =L38*(1+(IF(ISBLANK('Inputs-Oper'!R38),'Inputs-Oper'!$I38,'Inputs-Oper'!R38))) -> -12098.15041 | N38: =M38*(1+(IF(ISBLANK('Inputs-Oper'!S38),'Inputs-Oper'!$I38,'Inputs-Oper'!S38))) -> -12582.07642 | O38: =N38*(1+(IF(ISBLANK('Inputs-Oper'!T38),'Inputs-Oper'!$I38,'Inputs-Oper'!T38))) -> -13085.35948 | P38: =O38*(1+(IF(ISBLANK('Inputs-Oper'!U38),'Inputs-Oper'!$I38,'Inputs-Oper'!U38))) -> -13608.77386 | Q38: =P38*(1+(IF(ISBLANK('Inputs-Oper'!V38),'Inputs-Oper'!$I38,'Inputs-Oper'!V38))) -> -14153.12481 | R38: =Q38*(1+(IF(ISBLANK('Inputs-Oper'!W38),'Inputs-Oper'!$I38,'Inputs-Oper'!W38))) -> -14719.2498 | S38: =R38*(1+(IF(ISBLANK('Inputs-Oper'!X38),'Inputs-Oper'!$I38,'Inputs-Oper'!X38))) -> -15308.0198 | T38: =S38*(1+(IF(ISBLANK('Inputs-Oper'!Y38),'Inputs-Oper'!$I38,'Inputs-Oper'!Y38))) -> -15920.34059 | U38: =T38*(1+(IF(ISBLANK('Inputs-Oper'!Z38),'Inputs-Oper'!$I38,'Inputs-Oper'!Z38))) -> -16557.15421 | V38: =U38*(1+(IF(ISBLANK('Inputs-Oper'!AA38),'Inputs-Oper'!$I38,'Inputs-Oper'!AA38))) -> -17219.44038 | W38: =V38*(1+(IF(ISBLANK('Inputs-Oper'!AB38),'Inputs-Oper'!$I38,'Inputs-Oper'!AB38))) -> -17908.218 | X38: =W38*(1+(IF(ISBLANK('Inputs-Oper'!AC38),'Inputs-Oper'!$I38,'Inputs-Oper'!AC38))) -> -18624.54672
B39: ='Inputs-Oper'!C39 -> Grounds/park/Snow | D39: =-'Inputs-Oper'!G39 -> -7200 | E39: =D39*(1+(IF(ISBLANK('Inputs-Oper'!J39),'Inputs-Oper'!$I39,'Inputs-Oper'!J39))) -> -7488 | F39: =E39*(1+(IF(ISBLANK('Inputs-Oper'!K39),'Inputs-Oper'!$I39,'Inputs-Oper'!K39))) -> -7787.52 | G39: =F39*(1+(IF(ISBLANK('Inputs-Oper'!L39),'Inputs-Oper'!$I39,'Inputs-Oper'!L39))) -> -8099.0208 | H39: =G39*(1+(IF(ISBLANK('Inputs-Oper'!M39),'Inputs-Oper'!$I39,'Inputs-Oper'!M39))) -> -8422.981632 | I39: =H39*(1+(IF(ISBLANK('Inputs-Oper'!N39),'Inputs-Oper'!$I39,'Inputs-Oper'!N39))) -> -8759.900897 | J39: =I39*(1+(IF(ISBLANK('Inputs-Oper'!O39),'Inputs-Oper'!$I39,'Inputs-Oper'!O39))) -> -9110.296933 | K39: =J39*(1+(IF(ISBLANK('Inputs-Oper'!P39),'Inputs-Oper'!$I39,'Inputs-Oper'!P39))) -> -9474.70881 | L39: =K39*(1+(IF(ISBLANK('Inputs-Oper'!Q39),'Inputs-Oper'!$I39,'Inputs-Oper'!Q39))) -> -9853.697163 | M39: =L39*(1+(IF(ISBLANK('Inputs-Oper'!R39),'Inputs-Oper'!$I39,'Inputs-Oper'!R39))) -> -10247.84505 | N39: =M39*(1+(IF(ISBLANK('Inputs-Oper'!S39),'Inputs-Oper'!$I39,'Inputs-Oper'!S39))) -> -10657.75885 | O39: =N39*(1+(IF(ISBLANK('Inputs-Oper'!T39),'Inputs-Oper'!$I39,'Inputs-Oper'!T39))) -> -11084.06921 | P39: =O39*(1+(IF(ISBLANK('Inputs-Oper'!U39),'Inputs-Oper'!$I39,'Inputs-Oper'!U39))) -> -11527.43197 | Q39: =P39*(1+(IF(ISBLANK('Inputs-Oper'!V39),'Inputs-Oper'!$I39,'Inputs-Oper'!V39))) -> -11988.52925 | R39: =Q39*(1+(IF(ISBLANK('Inputs-Oper'!W39),'Inputs-Oper'!$I39,'Inputs-Oper'!W39))) -> -12468.07042 | S39: =R39*(1+(IF(ISBLANK('Inputs-Oper'!X39),'Inputs-Oper'!$I39,'Inputs-Oper'!X39))) -> -12966.79324 | T39: =S39*(1+(IF(ISBLANK('Inputs-Oper'!Y39),'Inputs-Oper'!$I39,'Inputs-Oper'!Y39))) -> -13485.46497 | U39: =T39*(1+(IF(ISBLANK('Inputs-Oper'!Z39),'Inputs-Oper'!$I39,'Inputs-Oper'!Z39))) -> -14024.88357 | V39: =U39*(1+(IF(ISBLANK('Inputs-Oper'!AA39),'Inputs-Oper'!$I39,'Inputs-Oper'!AA39))) -> -14585.87891 | W39: =V39*(1+(IF(ISBLANK('Inputs-Oper'!AB39),'Inputs-Oper'!$I39,'Inputs-Oper'!AB39))) -> -15169.31407 | X39: =W39*(1+(IF(ISBLANK('Inputs-Oper'!AC39),'Inputs-Oper'!$I39,'Inputs-Oper'!AC39))) -> -15776.08663
B40: ='Inputs-Oper'!C40 -> Maintenance | D40: =-'Inputs-Oper'!G40 -> -24000 | E40: =D40*(1+(IF(ISBLANK('Inputs-Oper'!J40),'Inputs-Oper'!$I40,'Inputs-Oper'!J40))) -> -24960 | F40: =E40*(1+(IF(ISBLANK('Inputs-Oper'!K40),'Inputs-Oper'!$I40,'Inputs-Oper'!K40))) -> -25958.4 | G40: =F40*(1+(IF(ISBLANK('Inputs-Oper'!L40),'Inputs-Oper'!$I40,'Inputs-Oper'!L40))) -> -26996.736 | H40: =G40*(1+(IF(ISBLANK('Inputs-Oper'!M40),'Inputs-Oper'!$I40,'Inputs-Oper'!M40))) -> -28076.60544 | I40: =H40*(1+(IF(ISBLANK('Inputs-Oper'!N40),'Inputs-Oper'!$I40,'Inputs-Oper'!N40))) -> -29199.66966 | J40: =I40*(1+(IF(ISBLANK('Inputs-Oper'!O40),'Inputs-Oper'!$I40,'Inputs-Oper'!O40))) -> -30367.65644 | K40: =J40*(1+(IF(ISBLANK('Inputs-Oper'!P40),'Inputs-Oper'!$I40,'Inputs-Oper'!P40))) -> -31582.3627 | L40: =K40*(1+(IF(ISBLANK('Inputs-Oper'!Q40),'Inputs-Oper'!$I40,'Inputs-Oper'!Q40))) -> -32845.65721 | M40: =L40*(1+(IF(ISBLANK('Inputs-Oper'!R40),'Inputs-Oper'!$I40,'Inputs-Oper'!R40))) -> -34159.4835 | N40: =M40*(1+(IF(ISBLANK('Inputs-Oper'!S40),'Inputs-Oper'!$I40,'Inputs-Oper'!S40))) -> -35525.86284 | O40: =N40*(1+(IF(ISBLANK('Inputs-Oper'!T40),'Inputs-Oper'!$I40,'Inputs-Oper'!T40))) -> -36946.89735 | P40: =O40*(1+(IF(ISBLANK('Inputs-Oper'!U40),'Inputs-Oper'!$I40,'Inputs-Oper'!U40))) -> -38424.77325 | Q40: =P40*(1+(IF(ISBLANK('Inputs-Oper'!V40),'Inputs-Oper'!$I40,'Inputs-Oper'!V40))) -> -39961.76418 | R40: =Q40*(1+(IF(ISBLANK('Inputs-Oper'!W40),'Inputs-Oper'!$I40,'Inputs-Oper'!W40))) -> -41560.23474 | S40: =R40*(1+(IF(ISBLANK('Inputs-Oper'!X40),'Inputs-Oper'!$I40,'Inputs-Oper'!X40))) -> -43222.64413 | T40: =S40*(1+(IF(ISBLANK('Inputs-Oper'!Y40),'Inputs-Oper'!$I40,'Inputs-Oper'!Y40))) -> -44951.5499 | U40: =T40*(1+(IF(ISBLANK('Inputs-Oper'!Z40),'Inputs-Oper'!$I40,'Inputs-Oper'!Z40))) -> -46749.61189 | V40: =U40*(1+(IF(ISBLANK('Inputs-Oper'!AA40),'Inputs-Oper'!$I40,'Inputs-Oper'!AA40))) -> -48619.59637 | W40: =V40*(1+(IF(ISBLANK('Inputs-Oper'!AB40),'Inputs-Oper'!$I40,'Inputs-Oper'!AB40))) -> -50564.38022 | X40: =W40*(1+(IF(ISBLANK('Inputs-Oper'!AC40),'Inputs-Oper'!$I40,'Inputs-Oper'!AC40))) -> -52586.95543
B41: ='Inputs-Oper'!C41 -> Leasing Bonus | D41: =-'Inputs-Oper'!G41 -> 0 | E41: =D41*(1+(IF(ISBLANK('Inputs-Oper'!J41),'Inputs-Oper'!$I41,'Inputs-Oper'!J41))) -> 0 | F41: =E41*(1+(IF(ISBLANK('Inputs-Oper'!K41),'Inputs-Oper'!$I41,'Inputs-Oper'!K41))) -> 0 | G41: =F41*(1+(IF(ISBLANK('Inputs-Oper'!L41),'Inputs-Oper'!$I41,'Inputs-Oper'!L41))) -> 0 | H41: =G41*(1+(IF(ISBLANK('Inputs-Oper'!M41),'Inputs-Oper'!$I41,'Inputs-Oper'!M41))) -> 0 | I41: =H41*(1+(IF(ISBLANK('Inputs-Oper'!N41),'Inputs-Oper'!$I41,'Inputs-Oper'!N41))) -> 0 | J41: =I41*(1+(IF(ISBLANK('Inputs-Oper'!O41),'Inputs-Oper'!$I41,'Inputs-Oper'!O41))) -> 0 | K41: =J41*(1+(IF(ISBLANK('Inputs-Oper'!P41),'Inputs-Oper'!$I41,'Inputs-Oper'!P41))) -> 0 | L41: =K41*(1+(IF(ISBLANK('Inputs-Oper'!Q41),'Inputs-Oper'!$I41,'Inputs-Oper'!Q41))) -> 0 | M41: =L41*(1+(IF(ISBLANK('Inputs-Oper'!R41),'Inputs-Oper'!$I41,'Inputs-Oper'!R41))) -> 0 | N41: =M41*(1+(IF(ISBLANK('Inputs-Oper'!S41),'Inputs-Oper'!$I41,'Inputs-Oper'!S41))) -> 0 | O41: =N41*(1+(IF(ISBLANK('Inputs-Oper'!T41),'Inputs-Oper'!$I41,'Inputs-Oper'!T41))) -> 0 | P41: =O41*(1+(IF(ISBLANK('Inputs-Oper'!U41),'Inputs-Oper'!$I41,'Inputs-Oper'!U41))) -> 0 | Q41: =P41*(1+(IF(ISBLANK('Inputs-Oper'!V41),'Inputs-Oper'!$I41,'Inputs-Oper'!V41))) -> 0 | R41: =Q41*(1+(IF(ISBLANK('Inputs-Oper'!W41),'Inputs-Oper'!$I41,'Inputs-Oper'!W41))) -> 0 | S41: =R41*(1+(IF(ISBLANK('Inputs-Oper'!X41),'Inputs-Oper'!$I41,'Inputs-Oper'!X41))) -> 0 | T41: =S41*(1+(IF(ISBLANK('Inputs-Oper'!Y41),'Inputs-Oper'!$I41,'Inputs-Oper'!Y41))) -> 0 | U41: =T41*(1+(IF(ISBLANK('Inputs-Oper'!Z41),'Inputs-Oper'!$I41,'Inputs-Oper'!Z41))) -> 0 | V41: =U41*(1+(IF(ISBLANK('Inputs-Oper'!AA41),'Inputs-Oper'!$I41,'Inputs-Oper'!AA41))) -> 0 | W41: =V41*(1+(IF(ISBLANK('Inputs-Oper'!AB41),'Inputs-Oper'!$I41,'Inputs-Oper'!AB41))) -> 0 | X41: =W41*(1+(IF(ISBLANK('Inputs-Oper'!AC41),'Inputs-Oper'!$I41,'Inputs-Oper'!AC41))) -> 0
B42: ='Inputs-Oper'!C42 -> Advertising | D42: =-'Inputs-Oper'!G42 -> -10000 | E42: =D42*(1+(IF(ISBLANK('Inputs-Oper'!J42),'Inputs-Oper'!$I42,'Inputs-Oper'!J42))) -> -10400 | F42: =E42*(1+(IF(ISBLANK('Inputs-Oper'!K42),'Inputs-Oper'!$I42,'Inputs-Oper'!K42))) -> -10816 | G42: =F42*(1+(IF(ISBLANK('Inputs-Oper'!L42),'Inputs-Oper'!$I42,'Inputs-Oper'!L42))) -> -11248.64 | H42: =G42*(1+(IF(ISBLANK('Inputs-Oper'!M42),'Inputs-Oper'!$I42,'Inputs-Oper'!M42))) -> -11698.5856 | I42: =H42*(1+(IF(ISBLANK('Inputs-Oper'!N42),'Inputs-Oper'!$I42,'Inputs-Oper'!N42))) -> -12166.52902 | J42: =I42*(1+(IF(ISBLANK('Inputs-Oper'!O42),'Inputs-Oper'!$I42,'Inputs-Oper'!O42))) -> -12653.19018 | K42: =J42*(1+(IF(ISBLANK('Inputs-Oper'!P42),'Inputs-Oper'!$I42,'Inputs-Oper'!P42))) -> -13159.31779 | L42: =K42*(1+(IF(ISBLANK('Inputs-Oper'!Q42),'Inputs-Oper'!$I42,'Inputs-Oper'!Q42))) -> -13685.6905 | M42: =L42*(1+(IF(ISBLANK('Inputs-Oper'!R42),'Inputs-Oper'!$I42,'Inputs-Oper'!R42))) -> -14233.11812 | N42: =M42*(1+(IF(ISBLANK('Inputs-Oper'!S42),'Inputs-Oper'!$I42,'Inputs-Oper'!S42))) -> -14802.44285 | O42: =N42*(1+(IF(ISBLANK('Inputs-Oper'!T42),'Inputs-Oper'!$I42,'Inputs-Oper'!T42))) -> -15394.54056 | P42: =O42*(1+(IF(ISBLANK('Inputs-Oper'!U42),'Inputs-Oper'!$I42,'Inputs-Oper'!U42))) -> -16010.32219 | Q42: =P42*(1+(IF(ISBLANK('Inputs-Oper'!V42),'Inputs-Oper'!$I42,'Inputs-Oper'!V42))) -> -16650.73507 | R42: =Q42*(1+(IF(ISBLANK('Inputs-Oper'!W42),'Inputs-Oper'!$I42,'Inputs-Oper'!W42))) -> -17316.76448 | S42: =R42*(1+(IF(ISBLANK('Inputs-Oper'!X42),'Inputs-Oper'!$I42,'Inputs-Oper'!X42))) -> -18009.43506 | T42: =S42*(1+(IF(ISBLANK('Inputs-Oper'!Y42),'Inputs-Oper'!$I42,'Inputs-Oper'!Y42))) -> -18729.81246 | U42: =T42*(1+(IF(ISBLANK('Inputs-Oper'!Z42),'Inputs-Oper'!$I42,'Inputs-Oper'!Z42))) -> -19479.00496 | V42: =U42*(1+(IF(ISBLANK('Inputs-Oper'!AA42),'Inputs-Oper'!$I42,'Inputs-Oper'!AA42))) -> -20258.16515 | W42: =V42*(1+(IF(ISBLANK('Inputs-Oper'!AB42),'Inputs-Oper'!$I42,'Inputs-Oper'!AB42))) -> -21068.49176 | X42: =W42*(1+(IF(ISBLANK('Inputs-Oper'!AC42),'Inputs-Oper'!$I42,'Inputs-Oper'!AC42))) -> -21911.23143
B43: ='Inputs-Oper'!C43 -> Administration | D43: =-'Inputs-Oper'!G43 -> -2000 | E43: =D43*(1+(IF(ISBLANK('Inputs-Oper'!J43),'Inputs-Oper'!$I43,'Inputs-Oper'!J43))) -> -2080 | F43: =E43*(1+(IF(ISBLANK('Inputs-Oper'!K43),'Inputs-Oper'!$I43,'Inputs-Oper'!K43))) -> -2163.2 | G43: =F43*(1+(IF(ISBLANK('Inputs-Oper'!L43),'Inputs-Oper'!$I43,'Inputs-Oper'!L43))) -> -2249.728 | H43: =G43*(1+(IF(ISBLANK('Inputs-Oper'!M43),'Inputs-Oper'!$I43,'Inputs-Oper'!M43))) -> -2339.71712 | I43: =H43*(1+(IF(ISBLANK('Inputs-Oper'!N43),'Inputs-Oper'!$I43,'Inputs-Oper'!N43))) -> -2433.305805 | J43: =I43*(1+(IF(ISBLANK('Inputs-Oper'!O43),'Inputs-Oper'!$I43,'Inputs-Oper'!O43))) -> -2530.638037 | K43: =J43*(1+(IF(ISBLANK('Inputs-Oper'!P43),'Inputs-Oper'!$I43,'Inputs-Oper'!P43))) -> -2631.863558 | L43: =K43*(1+(IF(ISBLANK('Inputs-Oper'!Q43),'Inputs-Oper'!$I43,'Inputs-Oper'!Q43))) -> -2737.138101 | M43: =L43*(1+(IF(ISBLANK('Inputs-Oper'!R43),'Inputs-Oper'!$I43,'Inputs-Oper'!R43))) -> -2846.623625 | N43: =M43*(1+(IF(ISBLANK('Inputs-Oper'!S43),'Inputs-Oper'!$I43,'Inputs-Oper'!S43))) -> -2960.48857 | O43: =N43*(1+(IF(ISBLANK('Inputs-Oper'!T43),'Inputs-Oper'!$I43,'Inputs-Oper'!T43))) -> -3078.908113 | P43: =O43*(1+(IF(ISBLANK('Inputs-Oper'!U43),'Inputs-Oper'!$I43,'Inputs-Oper'!U43))) -> -3202.064437 | Q43: =P43*(1+(IF(ISBLANK('Inputs-Oper'!V43),'Inputs-Oper'!$I43,'Inputs-Oper'!V43))) -> -3330.147015 | R43: =Q43*(1+(IF(ISBLANK('Inputs-Oper'!W43),'Inputs-Oper'!$I43,'Inputs-Oper'!W43))) -> -3463.352895 | S43: =R43*(1+(IF(ISBLANK('Inputs-Oper'!X43),'Inputs-Oper'!$I43,'Inputs-Oper'!X43))) -> -3601.887011 | T43: =S43*(1+(IF(ISBLANK('Inputs-Oper'!Y43),'Inputs-Oper'!$I43,'Inputs-Oper'!Y43))) -> -3745.962491 | U43: =T43*(1+(IF(ISBLANK('Inputs-Oper'!Z43),'Inputs-Oper'!$I43,'Inputs-Oper'!Z43))) -> -3895.800991 | V43: =U43*(1+(IF(ISBLANK('Inputs-Oper'!AA43),'Inputs-Oper'!$I43,'Inputs-Oper'!AA43))) -> -4051.633031 | W43: =V43*(1+(IF(ISBLANK('Inputs-Oper'!AB43),'Inputs-Oper'!$I43,'Inputs-Oper'!AB43))) -> -4213.698352 | X43: =W43*(1+(IF(ISBLANK('Inputs-Oper'!AC43),'Inputs-Oper'!$I43,'Inputs-Oper'!AC43))) -> -4382.246286
B44: ='Inputs-Oper'!C44 -> Telephone | D44: =-'Inputs-Oper'!G44 -> -1800 | E44: =D44*(1+(IF(ISBLANK('Inputs-Oper'!J44),'Inputs-Oper'!$I44,'Inputs-Oper'!J44))) -> -1872 | F44: =E44*(1+(IF(ISBLANK('Inputs-Oper'!K44),'Inputs-Oper'!$I44,'Inputs-Oper'!K44))) -> -1946.88 | G44: =F44*(1+(IF(ISBLANK('Inputs-Oper'!L44),'Inputs-Oper'!$I44,'Inputs-Oper'!L44))) -> -2024.7552 | H44: =G44*(1+(IF(ISBLANK('Inputs-Oper'!M44),'Inputs-Oper'!$I44,'Inputs-Oper'!M44))) -> -2105.745408 | I44: =H44*(1+(IF(ISBLANK('Inputs-Oper'!N44),'Inputs-Oper'!$I44,'Inputs-Oper'!N44))) -> -2189.975224 | J44: =I44*(1+(IF(ISBLANK('Inputs-Oper'!O44),'Inputs-Oper'!$I44,'Inputs-Oper'!O44))) -> -2277.574233 | K44: =J44*(1+(IF(ISBLANK('Inputs-Oper'!P44),'Inputs-Oper'!$I44,'Inputs-Oper'!P44))) -> -2368.677203 | L44: =K44*(1+(IF(ISBLANK('Inputs-Oper'!Q44),'Inputs-Oper'!$I44,'Inputs-Oper'!Q44))) -> -2463.424291 | M44: =L44*(1+(IF(ISBLANK('Inputs-Oper'!R44),'Inputs-Oper'!$I44,'Inputs-Oper'!R44))) -> -2561.961262 | N44: =M44*(1+(IF(ISBLANK('Inputs-Oper'!S44),'Inputs-Oper'!$I44,'Inputs-Oper'!S44))) -> -2664.439713 | O44: =N44*(1+(IF(ISBLANK('Inputs-Oper'!T44),'Inputs-Oper'!$I44,'Inputs-Oper'!T44))) -> -2771.017301 | P44: =O44*(1+(IF(ISBLANK('Inputs-Oper'!U44),'Inputs-Oper'!$I44,'Inputs-Oper'!U44))) -> -2881.857993 | Q44: =P44*(1+(IF(ISBLANK('Inputs-Oper'!V44),'Inputs-Oper'!$I44,'Inputs-Oper'!V44))) -> -2997.132313 | R44: =Q44*(1+(IF(ISBLANK('Inputs-Oper'!W44),'Inputs-Oper'!$I44,'Inputs-Oper'!W44))) -> -3117.017606 | S44: =R44*(1+(IF(ISBLANK('Inputs-Oper'!X44),'Inputs-Oper'!$I44,'Inputs-Oper'!X44))) -> -3241.69831 | T44: =S44*(1+(IF(ISBLANK('Inputs-Oper'!Y44),'Inputs-Oper'!$I44,'Inputs-Oper'!Y44))) -> -3371.366242 | U44: =T44*(1+(IF(ISBLANK('Inputs-Oper'!Z44),'Inputs-Oper'!$I44,'Inputs-Oper'!Z44))) -> -3506.220892 | V44: =U44*(1+(IF(ISBLANK('Inputs-Oper'!AA44),'Inputs-Oper'!$I44,'Inputs-Oper'!AA44))) -> -3646.469728 | W44: =V44*(1+(IF(ISBLANK('Inputs-Oper'!AB44),'Inputs-Oper'!$I44,'Inputs-Oper'!AB44))) -> -3792.328517 | X44: =W44*(1+(IF(ISBLANK('Inputs-Oper'!AC44),'Inputs-Oper'!$I44,'Inputs-Oper'!AC44))) -> -3944.021657
B45: ='Inputs-Oper'!C45 -> Insurance | D45: =-'Inputs-Oper'!G45 -> -7800 | E45: =D45*(1+(IF(ISBLANK('Inputs-Oper'!J45),'Inputs-Oper'!$I45,'Inputs-Oper'!J45))) -> -8112 | F45: =E45*(1+(IF(ISBLANK('Inputs-Oper'!K45),'Inputs-Oper'!$I45,'Inputs-Oper'!K45))) -> -8436.48 | G45: =F45*(1+(IF(ISBLANK('Inputs-Oper'!L45),'Inputs-Oper'!$I45,'Inputs-Oper'!L45))) -> -8773.9392 | H45: =G45*(1+(IF(ISBLANK('Inputs-Oper'!M45),'Inputs-Oper'!$I45,'Inputs-Oper'!M45))) -> -9124.896768 | I45: =H45*(1+(IF(ISBLANK('Inputs-Oper'!N45),'Inputs-Oper'!$I45,'Inputs-Oper'!N45))) -> -9489.892639 | J45: =I45*(1+(IF(ISBLANK('Inputs-Oper'!O45),'Inputs-Oper'!$I45,'Inputs-Oper'!O45))) -> -9869.488344 | K45: =J45*(1+(IF(ISBLANK('Inputs-Oper'!P45),'Inputs-Oper'!$I45,'Inputs-Oper'!P45))) -> -10264.26788 | L45: =K45*(1+(IF(ISBLANK('Inputs-Oper'!Q45),'Inputs-Oper'!$I45,'Inputs-Oper'!Q45))) -> -10674.83859 | M45: =L45*(1+(IF(ISBLANK('Inputs-Oper'!R45),'Inputs-Oper'!$I45,'Inputs-Oper'!R45))) -> -11101.83214 | N45: =M45*(1+(IF(ISBLANK('Inputs-Oper'!S45),'Inputs-Oper'!$I45,'Inputs-Oper'!S45))) -> -11545.90542 | O45: =N45*(1+(IF(ISBLANK('Inputs-Oper'!T45),'Inputs-Oper'!$I45,'Inputs-Oper'!T45))) -> -12007.74164 | P45: =O45*(1+(IF(ISBLANK('Inputs-Oper'!U45),'Inputs-Oper'!$I45,'Inputs-Oper'!U45))) -> -12488.0513 | Q45: =P45*(1+(IF(ISBLANK('Inputs-Oper'!V45),'Inputs-Oper'!$I45,'Inputs-Oper'!V45))) -> -12987.57336 | R45: =Q45*(1+(IF(ISBLANK('Inputs-Oper'!W45),'Inputs-Oper'!$I45,'Inputs-Oper'!W45))) -> -13507.07629 | S45: =R45*(1+(IF(ISBLANK('Inputs-Oper'!X45),'Inputs-Oper'!$I45,'Inputs-Oper'!X45))) -> -14047.35934 | T45: =S45*(1+(IF(ISBLANK('Inputs-Oper'!Y45),'Inputs-Oper'!$I45,'Inputs-Oper'!Y45))) -> -14609.25372 | U45: =T45*(1+(IF(ISBLANK('Inputs-Oper'!Z45),'Inputs-Oper'!$I45,'Inputs-Oper'!Z45))) -> -15193.62387 | V45: =U45*(1+(IF(ISBLANK('Inputs-Oper'!AA45),'Inputs-Oper'!$I45,'Inputs-Oper'!AA45))) -> -15801.36882 | W45: =V45*(1+(IF(ISBLANK('Inputs-Oper'!AB45),'Inputs-Oper'!$I45,'Inputs-Oper'!AB45))) -> -16433.42357 | X45: =W45*(1+(IF(ISBLANK('Inputs-Oper'!AC45),'Inputs-Oper'!$I45,'Inputs-Oper'!AC45))) -> -17090.76052
B46: ='Inputs-Oper'!C46 -> Taxes | D46: =-'Inputs-Oper'!G46 -> -150000 | E46: =D46*(1+(IF(ISBLANK('Inputs-Oper'!J46),'Inputs-Oper'!$I46,'Inputs-Oper'!J46))) -> -156000 | F46: =E46*(1+(IF(ISBLANK('Inputs-Oper'!K46),'Inputs-Oper'!$I46,'Inputs-Oper'!K46))) -> -162240 | G46: =F46*(1+(IF(ISBLANK('Inputs-Oper'!L46),'Inputs-Oper'!$I46,'Inputs-Oper'!L46))) -> -168729.6 | H46: =G46*(1+(IF(ISBLANK('Inputs-Oper'!M46),'Inputs-Oper'!$I46,'Inputs-Oper'!M46))) -> -175478.784 | I46: =H46*(1+(IF(ISBLANK('Inputs-Oper'!N46),'Inputs-Oper'!$I46,'Inputs-Oper'!N46))) -> -182497.9354 | J46: =I46*(1+(IF(ISBLANK('Inputs-Oper'!O46),'Inputs-Oper'!$I46,'Inputs-Oper'!O46))) -> -189797.8528 | K46: =J46*(1+(IF(ISBLANK('Inputs-Oper'!P46),'Inputs-Oper'!$I46,'Inputs-Oper'!P46))) -> -197389.7669 | L46: =K46*(1+(IF(ISBLANK('Inputs-Oper'!Q46),'Inputs-Oper'!$I46,'Inputs-Oper'!Q46))) -> -205285.3576 | M46: =L46*(1+(IF(ISBLANK('Inputs-Oper'!R46),'Inputs-Oper'!$I46,'Inputs-Oper'!R46))) -> -213496.7719 | N46: =M46*(1+(IF(ISBLANK('Inputs-Oper'!S46),'Inputs-Oper'!$I46,'Inputs-Oper'!S46))) -> -222036.6427 | O46: =N46*(1+(IF(ISBLANK('Inputs-Oper'!T46),'Inputs-Oper'!$I46,'Inputs-Oper'!T46))) -> -230918.1084 | P46: =O46*(1+(IF(ISBLANK('Inputs-Oper'!U46),'Inputs-Oper'!$I46,'Inputs-Oper'!U46))) -> -240154.8328 | Q46: =P46*(1+(IF(ISBLANK('Inputs-Oper'!V46),'Inputs-Oper'!$I46,'Inputs-Oper'!V46))) -> -249761.0261 | R46: =Q46*(1+(IF(ISBLANK('Inputs-Oper'!W46),'Inputs-Oper'!$I46,'Inputs-Oper'!W46))) -> -259751.4671 | S46: =R46*(1+(IF(ISBLANK('Inputs-Oper'!X46),'Inputs-Oper'!$I46,'Inputs-Oper'!X46))) -> -270141.5258 | T46: =S46*(1+(IF(ISBLANK('Inputs-Oper'!Y46),'Inputs-Oper'!$I46,'Inputs-Oper'!Y46))) -> -280947.1869 | U46: =T46*(1+(IF(ISBLANK('Inputs-Oper'!Z46),'Inputs-Oper'!$I46,'Inputs-Oper'!Z46))) -> -292185.0743 | V46: =U46*(1+(IF(ISBLANK('Inputs-Oper'!AA46),'Inputs-Oper'!$I46,'Inputs-Oper'!AA46))) -> -303872.4773 | W46: =V46*(1+(IF(ISBLANK('Inputs-Oper'!AB46),'Inputs-Oper'!$I46,'Inputs-Oper'!AB46))) -> -316027.3764 | X46: =W46*(1+(IF(ISBLANK('Inputs-Oper'!AC46),'Inputs-Oper'!$I46,'Inputs-Oper'!AC46))) -> -328668.4715
B47: ='Inputs-Oper'!C47 -> PM Fee | D47: =-'Inputs-Oper'!G47 -> -40000 | E47: =D47*(1+(IF(ISBLANK('Inputs-Oper'!J47),'Inputs-Oper'!$I47,'Inputs-Oper'!J47))) -> -41600 | F47: =E47*(1+(IF(ISBLANK('Inputs-Oper'!K47),'Inputs-Oper'!$I47,'Inputs-Oper'!K47))) -> -43264 | G47: =F47*(1+(IF(ISBLANK('Inputs-Oper'!L47),'Inputs-Oper'!$I47,'Inputs-Oper'!L47))) -> -44994.56 | H47: =G47*(1+(IF(ISBLANK('Inputs-Oper'!M47),'Inputs-Oper'!$I47,'Inputs-Oper'!M47))) -> -46794.3424 | I47: =H47*(1+(IF(ISBLANK('Inputs-Oper'!N47),'Inputs-Oper'!$I47,'Inputs-Oper'!N47))) -> -48666.1161 | J47: =I47*(1+(IF(ISBLANK('Inputs-Oper'!O47),'Inputs-Oper'!$I47,'Inputs-Oper'!O47))) -> -50612.76074 | K47: =J47*(1+(IF(ISBLANK('Inputs-Oper'!P47),'Inputs-Oper'!$I47,'Inputs-Oper'!P47))) -> -52637.27117 | L47: =K47*(1+(IF(ISBLANK('Inputs-Oper'!Q47),'Inputs-Oper'!$I47,'Inputs-Oper'!Q47))) -> -54742.76202 | M47: =L47*(1+(IF(ISBLANK('Inputs-Oper'!R47),'Inputs-Oper'!$I47,'Inputs-Oper'!R47))) -> -56932.4725 | N47: =M47*(1+(IF(ISBLANK('Inputs-Oper'!S47),'Inputs-Oper'!$I47,'Inputs-Oper'!S47))) -> -59209.7714 | O47: =N47*(1+(IF(ISBLANK('Inputs-Oper'!T47),'Inputs-Oper'!$I47,'Inputs-Oper'!T47))) -> -61578.16225 | P47: =O47*(1+(IF(ISBLANK('Inputs-Oper'!U47),'Inputs-Oper'!$I47,'Inputs-Oper'!U47))) -> -64041.28874 | Q47: =P47*(1+(IF(ISBLANK('Inputs-Oper'!V47),'Inputs-Oper'!$I47,'Inputs-Oper'!V47))) -> -66602.94029 | R47: =Q47*(1+(IF(ISBLANK('Inputs-Oper'!W47),'Inputs-Oper'!$I47,'Inputs-Oper'!W47))) -> -69267.0579 | S47: =R47*(1+(IF(ISBLANK('Inputs-Oper'!X47),'Inputs-Oper'!$I47,'Inputs-Oper'!X47))) -> -72037.74022 | T47: =S47*(1+(IF(ISBLANK('Inputs-Oper'!Y47),'Inputs-Oper'!$I47,'Inputs-Oper'!Y47))) -> -74919.24983 | U47: =T47*(1+(IF(ISBLANK('Inputs-Oper'!Z47),'Inputs-Oper'!$I47,'Inputs-Oper'!Z47))) -> -77916.01982 | V47: =U47*(1+(IF(ISBLANK('Inputs-Oper'!AA47),'Inputs-Oper'!$I47,'Inputs-Oper'!AA47))) -> -81032.66062 | W47: =V47*(1+(IF(ISBLANK('Inputs-Oper'!AB47),'Inputs-Oper'!$I47,'Inputs-Oper'!AB47))) -> -84273.96704 | X47: =W47*(1+(IF(ISBLANK('Inputs-Oper'!AC47),'Inputs-Oper'!$I47,'Inputs-Oper'!AC47))) -> -87644.92572
B48: ='Inputs-Oper'!C48 -> Legal | D48: =-'Inputs-Oper'!G48 -> -1800 | E48: =D48*(1+(IF(ISBLANK('Inputs-Oper'!J48),'Inputs-Oper'!$I48,'Inputs-Oper'!J48))) -> -1872 | F48: =E48*(1+(IF(ISBLANK('Inputs-Oper'!K48),'Inputs-Oper'!$I48,'Inputs-Oper'!K48))) -> -1946.88 | G48: =F48*(1+(IF(ISBLANK('Inputs-Oper'!L48),'Inputs-Oper'!$I48,'Inputs-Oper'!L48))) -> -2024.7552 | H48: =G48*(1+(IF(ISBLANK('Inputs-Oper'!M48),'Inputs-Oper'!$I48,'Inputs-Oper'!M48))) -> -2105.745408 | I48: =H48*(1+(IF(ISBLANK('Inputs-Oper'!N48),'Inputs-Oper'!$I48,'Inputs-Oper'!N48))) -> -2189.975224 | J48: =I48*(1+(IF(ISBLANK('Inputs-Oper'!O48),'Inputs-Oper'!$I48,'Inputs-Oper'!O48))) -> -2277.574233 | K48: =J48*(1+(IF(ISBLANK('Inputs-Oper'!P48),'Inputs-Oper'!$I48,'Inputs-Oper'!P48))) -> -2368.677203 | L48: =K48*(1+(IF(ISBLANK('Inputs-Oper'!Q48),'Inputs-Oper'!$I48,'Inputs-Oper'!Q48))) -> -2463.424291 | M48: =L48*(1+(IF(ISBLANK('Inputs-Oper'!R48),'Inputs-Oper'!$I48,'Inputs-Oper'!R48))) -> -2561.961262 | N48: =M48*(1+(IF(ISBLANK('Inputs-Oper'!S48),'Inputs-Oper'!$I48,'Inputs-Oper'!S48))) -> -2664.439713 | O48: =N48*(1+(IF(ISBLANK('Inputs-Oper'!T48),'Inputs-Oper'!$I48,'Inputs-Oper'!T48))) -> -2771.017301 | P48: =O48*(1+(IF(ISBLANK('Inputs-Oper'!U48),'Inputs-Oper'!$I48,'Inputs-Oper'!U48))) -> -2881.857993 | Q48: =P48*(1+(IF(ISBLANK('Inputs-Oper'!V48),'Inputs-Oper'!$I48,'Inputs-Oper'!V48))) -> -2997.132313 | R48: =Q48*(1+(IF(ISBLANK('Inputs-Oper'!W48),'Inputs-Oper'!$I48,'Inputs-Oper'!W48))) -> -3117.017606 | S48: =R48*(1+(IF(ISBLANK('Inputs-Oper'!X48),'Inputs-Oper'!$I48,'Inputs-Oper'!X48))) -> -3241.69831 | T48: =S48*(1+(IF(ISBLANK('Inputs-Oper'!Y48),'Inputs-Oper'!$I48,'Inputs-Oper'!Y48))) -> -3371.366242 | U48: =T48*(1+(IF(ISBLANK('Inputs-Oper'!Z48),'Inputs-Oper'!$I48,'Inputs-Oper'!Z48))) -> -3506.220892 | V48: =U48*(1+(IF(ISBLANK('Inputs-Oper'!AA48),'Inputs-Oper'!$I48,'Inputs-Oper'!AA48))) -> -3646.469728 | W48: =V48*(1+(IF(ISBLANK('Inputs-Oper'!AB48),'Inputs-Oper'!$I48,'Inputs-Oper'!AB48))) -> -3792.328517 | X48: =W48*(1+(IF(ISBLANK('Inputs-Oper'!AC48),'Inputs-Oper'!$I48,'Inputs-Oper'!AC48))) -> -3944.021657
B49: ='Inputs-Oper'!C49 -> Accounting | D49: =-'Inputs-Oper'!G49 -> -2000 | E49: =D49*(1+(IF(ISBLANK('Inputs-Oper'!J49),'Inputs-Oper'!$I49,'Inputs-Oper'!J49))) -> -2080 | F49: =E49*(1+(IF(ISBLANK('Inputs-Oper'!K49),'Inputs-Oper'!$I49,'Inputs-Oper'!K49))) -> -2163.2 | G49: =F49*(1+(IF(ISBLANK('Inputs-Oper'!L49),'Inputs-Oper'!$I49,'Inputs-Oper'!L49))) -> -2249.728 | H49: =G49*(1+(IF(ISBLANK('Inputs-Oper'!M49),'Inputs-Oper'!$I49,'Inputs-Oper'!M49))) -> -2339.71712 | I49: =H49*(1+(IF(ISBLANK('Inputs-Oper'!N49),'Inputs-Oper'!$I49,'Inputs-Oper'!N49))) -> -2433.305805 | J49: =I49*(1+(IF(ISBLANK('Inputs-Oper'!O49),'Inputs-Oper'!$I49,'Inputs-Oper'!O49))) -> -2530.638037 | K49: =J49*(1+(IF(ISBLANK('Inputs-Oper'!P49),'Inputs-Oper'!$I49,'Inputs-Oper'!P49))) -> -2631.863558 | L49: =K49*(1+(IF(ISBLANK('Inputs-Oper'!Q49),'Inputs-Oper'!$I49,'Inputs-Oper'!Q49))) -> -2737.138101 | M49: =L49*(1+(IF(ISBLANK('Inputs-Oper'!R49),'Inputs-Oper'!$I49,'Inputs-Oper'!R49))) -> -2846.623625 | N49: =M49*(1+(IF(ISBLANK('Inputs-Oper'!S49),'Inputs-Oper'!$I49,'Inputs-Oper'!S49))) -> -2960.48857 | O49: =N49*(1+(IF(ISBLANK('Inputs-Oper'!T49),'Inputs-Oper'!$I49,'Inputs-Oper'!T49))) -> -3078.908113 | P49: =O49*(1+(IF(ISBLANK('Inputs-Oper'!U49),'Inputs-Oper'!$I49,'Inputs-Oper'!U49))) -> -3202.064437 | Q49: =P49*(1+(IF(ISBLANK('Inputs-Oper'!V49),'Inputs-Oper'!$I49,'Inputs-Oper'!V49))) -> -3330.147015 | R49: =Q49*(1+(IF(ISBLANK('Inputs-Oper'!W49),'Inputs-Oper'!$I49,'Inputs-Oper'!W49))) -> -3463.352895 | S49: =R49*(1+(IF(ISBLANK('Inputs-Oper'!X49),'Inputs-Oper'!$I49,'Inputs-Oper'!X49))) -> -3601.887011 | T49: =S49*(1+(IF(ISBLANK('Inputs-Oper'!Y49),'Inputs-Oper'!$I49,'Inputs-Oper'!Y49))) -> -3745.962491 | U49: =T49*(1+(IF(ISBLANK('Inputs-Oper'!Z49),'Inputs-Oper'!$I49,'Inputs-Oper'!Z49))) -> -3895.800991 | V49: =U49*(1+(IF(ISBLANK('Inputs-Oper'!AA49),'Inputs-Oper'!$I49,'Inputs-Oper'!AA49))) -> -4051.633031 | W49: =V49*(1+(IF(ISBLANK('Inputs-Oper'!AB49),'Inputs-Oper'!$I49,'Inputs-Oper'!AB49))) -> -4213.698352 | X49: =W49*(1+(IF(ISBLANK('Inputs-Oper'!AC49),'Inputs-Oper'!$I49,'Inputs-Oper'!AC49))) -> -4382.246286
B50: ='Inputs-Oper'!C50 -> Reserves | D50: =-'Inputs-Oper'!G50 -> -7920 | E50: =D50*(1+(IF(ISBLANK('Inputs-Oper'!J50),'Inputs-Oper'!$I50,'Inputs-Oper'!J50))) -> -8236.8 | F50: =E50*(1+(IF(ISBLANK('Inputs-Oper'!K50),'Inputs-Oper'!$I50,'Inputs-Oper'!K50))) -> -8566.272 | G50: =F50*(1+(IF(ISBLANK('Inputs-Oper'!L50),'Inputs-Oper'!$I50,'Inputs-Oper'!L50))) -> -8908.92288 | H50: =G50*(1+(IF(ISBLANK('Inputs-Oper'!M50),'Inputs-Oper'!$I50,'Inputs-Oper'!M50))) -> -9265.279795 | I50: =H50*(1+(IF(ISBLANK('Inputs-Oper'!N50),'Inputs-Oper'!$I50,'Inputs-Oper'!N50))) -> -9635.890987 | J50: =I50*(1+(IF(ISBLANK('Inputs-Oper'!O50),'Inputs-Oper'!$I50,'Inputs-Oper'!O50))) -> -10021.32663 | K50: =J50*(1+(IF(ISBLANK('Inputs-Oper'!P50),'Inputs-Oper'!$I50,'Inputs-Oper'!P50))) -> -10422.17969 | L50: =K50*(1+(IF(ISBLANK('Inputs-Oper'!Q50),'Inputs-Oper'!$I50,'Inputs-Oper'!Q50))) -> -10839.06688 | M50: =L50*(1+(IF(ISBLANK('Inputs-Oper'!R50),'Inputs-Oper'!$I50,'Inputs-Oper'!R50))) -> -11272.62955 | N50: =M50*(1+(IF(ISBLANK('Inputs-Oper'!S50),'Inputs-Oper'!$I50,'Inputs-Oper'!S50))) -> -11723.53474 | O50: =N50*(1+(IF(ISBLANK('Inputs-Oper'!T50),'Inputs-Oper'!$I50,'Inputs-Oper'!T50))) -> -12192.47613 | P50: =O50*(1+(IF(ISBLANK('Inputs-Oper'!U50),'Inputs-Oper'!$I50,'Inputs-Oper'!U50))) -> -12680.17517 | Q50: =P50*(1+(IF(ISBLANK('Inputs-Oper'!V50),'Inputs-Oper'!$I50,'Inputs-Oper'!V50))) -> -13187.38218 | R50: =Q50*(1+(IF(ISBLANK('Inputs-Oper'!W50),'Inputs-Oper'!$I50,'Inputs-Oper'!W50))) -> -13714.87747 | S50: =R50*(1+(IF(ISBLANK('Inputs-Oper'!X50),'Inputs-Oper'!$I50,'Inputs-Oper'!X50))) -> -14263.47256 | T50: =S50*(1+(IF(ISBLANK('Inputs-Oper'!Y50),'Inputs-Oper'!$I50,'Inputs-Oper'!Y50))) -> -14834.01147 | U50: =T50*(1+(IF(ISBLANK('Inputs-Oper'!Z50),'Inputs-Oper'!$I50,'Inputs-Oper'!Z50))) -> -15427.37192 | V50: =U50*(1+(IF(ISBLANK('Inputs-Oper'!AA50),'Inputs-Oper'!$I50,'Inputs-Oper'!AA50))) -> -16044.4668 | W50: =V50*(1+(IF(ISBLANK('Inputs-Oper'!AB50),'Inputs-Oper'!$I50,'Inputs-Oper'!AB50))) -> -16686.24547 | X50: =W50*(1+(IF(ISBLANK('Inputs-Oper'!AC50),'Inputs-Oper'!$I50,'Inputs-Oper'!AC50))) -> -17353.69529
B51: ='Inputs-Oper'!C51 -> X | D51: =-'Inputs-Oper'!G51 -> 0 | E51: =D51*(1+(IF(ISBLANK('Inputs-Oper'!J51),'Inputs-Oper'!$I51,'Inputs-Oper'!J51))) -> 0 | F51: =E51*(1+(IF(ISBLANK('Inputs-Oper'!K51),'Inputs-Oper'!$I51,'Inputs-Oper'!K51))) -> 0 | G51: =F51*(1+(IF(ISBLANK('Inputs-Oper'!L51),'Inputs-Oper'!$I51,'Inputs-Oper'!L51))) -> 0 | H51: =G51*(1+(IF(ISBLANK('Inputs-Oper'!M51),'Inputs-Oper'!$I51,'Inputs-Oper'!M51))) -> 0 | I51: =H51*(1+(IF(ISBLANK('Inputs-Oper'!N51),'Inputs-Oper'!$I51,'Inputs-Oper'!N51))) -> 0 | J51: =I51*(1+(IF(ISBLANK('Inputs-Oper'!O51),'Inputs-Oper'!$I51,'Inputs-Oper'!O51))) -> 0 | K51: =J51*(1+(IF(ISBLANK('Inputs-Oper'!P51),'Inputs-Oper'!$I51,'Inputs-Oper'!P51))) -> 0 | L51: =K51*(1+(IF(ISBLANK('Inputs-Oper'!Q51),'Inputs-Oper'!$I51,'Inputs-Oper'!Q51))) -> 0 | M51: =L51*(1+(IF(ISBLANK('Inputs-Oper'!R51),'Inputs-Oper'!$I51,'Inputs-Oper'!R51))) -> 0 | N51: =M51*(1+(IF(ISBLANK('Inputs-Oper'!S51),'Inputs-Oper'!$I51,'Inputs-Oper'!S51))) -> 0 | O51: =N51*(1+(IF(ISBLANK('Inputs-Oper'!T51),'Inputs-Oper'!$I51,'Inputs-Oper'!T51))) -> 0 | P51: =O51*(1+(IF(ISBLANK('Inputs-Oper'!U51),'Inputs-Oper'!$I51,'Inputs-Oper'!U51))) -> 0 | Q51: =P51*(1+(IF(ISBLANK('Inputs-Oper'!V51),'Inputs-Oper'!$I51,'Inputs-Oper'!V51))) -> 0 | R51: =Q51*(1+(IF(ISBLANK('Inputs-Oper'!W51),'Inputs-Oper'!$I51,'Inputs-Oper'!W51))) -> 0 | S51: =R51*(1+(IF(ISBLANK('Inputs-Oper'!X51),'Inputs-Oper'!$I51,'Inputs-Oper'!X51))) -> 0 | T51: =S51*(1+(IF(ISBLANK('Inputs-Oper'!Y51),'Inputs-Oper'!$I51,'Inputs-Oper'!Y51))) -> 0 | U51: =T51*(1+(IF(ISBLANK('Inputs-Oper'!Z51),'Inputs-Oper'!$I51,'Inputs-Oper'!Z51))) -> 0 | V51: =U51*(1+(IF(ISBLANK('Inputs-Oper'!AA51),'Inputs-Oper'!$I51,'Inputs-Oper'!AA51))) -> 0 | W51: =V51*(1+(IF(ISBLANK('Inputs-Oper'!AB51),'Inputs-Oper'!$I51,'Inputs-Oper'!AB51))) -> 0 | X51: =W51*(1+(IF(ISBLANK('Inputs-Oper'!AC51),'Inputs-Oper'!$I51,'Inputs-Oper'!AC51))) -> 0
B52: ='Inputs-Oper'!C52 -> X | D52: =-'Inputs-Oper'!G52 -> 0 | E52: =D52*(1+(IF(ISBLANK('Inputs-Oper'!J52),'Inputs-Oper'!$I52,'Inputs-Oper'!J52))) -> 0 | F52: =E52*(1+(IF(ISBLANK('Inputs-Oper'!K52),'Inputs-Oper'!$I52,'Inputs-Oper'!K52))) -> 0 | G52: =F52*(1+(IF(ISBLANK('Inputs-Oper'!L52),'Inputs-Oper'!$I52,'Inputs-Oper'!L52))) -> 0 | H52: =G52*(1+(IF(ISBLANK('Inputs-Oper'!M52),'Inputs-Oper'!$I52,'Inputs-Oper'!M52))) -> 0 | I52: =H52*(1+(IF(ISBLANK('Inputs-Oper'!N52),'Inputs-Oper'!$I52,'Inputs-Oper'!N52))) -> 0 | J52: =I52*(1+(IF(ISBLANK('Inputs-Oper'!O52),'Inputs-Oper'!$I52,'Inputs-Oper'!O52))) -> 0 | K52: =J52*(1+(IF(ISBLANK('Inputs-Oper'!P52),'Inputs-Oper'!$I52,'Inputs-Oper'!P52))) -> 0 | L52: =K52*(1+(IF(ISBLANK('Inputs-Oper'!Q52),'Inputs-Oper'!$I52,'Inputs-Oper'!Q52))) -> 0 | M52: =L52*(1+(IF(ISBLANK('Inputs-Oper'!R52),'Inputs-Oper'!$I52,'Inputs-Oper'!R52))) -> 0 | N52: =M52*(1+(IF(ISBLANK('Inputs-Oper'!S52),'Inputs-Oper'!$I52,'Inputs-Oper'!S52))) -> 0 | O52: =N52*(1+(IF(ISBLANK('Inputs-Oper'!T52),'Inputs-Oper'!$I52,'Inputs-Oper'!T52))) -> 0 | P52: =O52*(1+(IF(ISBLANK('Inputs-Oper'!U52),'Inputs-Oper'!$I52,'Inputs-Oper'!U52))) -> 0 | Q52: =P52*(1+(IF(ISBLANK('Inputs-Oper'!V52),'Inputs-Oper'!$I52,'Inputs-Oper'!V52))) -> 0 | R52: =Q52*(1+(IF(ISBLANK('Inputs-Oper'!W52),'Inputs-Oper'!$I52,'Inputs-Oper'!W52))) -> 0 | S52: =R52*(1+(IF(ISBLANK('Inputs-Oper'!X52),'Inputs-Oper'!$I52,'Inputs-Oper'!X52))) -> 0 | T52: =S52*(1+(IF(ISBLANK('Inputs-Oper'!Y52),'Inputs-Oper'!$I52,'Inputs-Oper'!Y52))) -> 0 | U52: =T52*(1+(IF(ISBLANK('Inputs-Oper'!Z52),'Inputs-Oper'!$I52,'Inputs-Oper'!Z52))) -> 0 | V52: =U52*(1+(IF(ISBLANK('Inputs-Oper'!AA52),'Inputs-Oper'!$I52,'Inputs-Oper'!AA52))) -> 0 | W52: =V52*(1+(IF(ISBLANK('Inputs-Oper'!AB52),'Inputs-Oper'!$I52,'Inputs-Oper'!AB52))) -> 0 | X52: =W52*(1+(IF(ISBLANK('Inputs-Oper'!AC52),'Inputs-Oper'!$I52,'Inputs-Oper'!AC52))) -> 0
B53: ='Inputs-Oper'!C53 -> X | D53: =-'Inputs-Oper'!G53 -> 0 | E53: =D53*(1+(IF(ISBLANK('Inputs-Oper'!J53),'Inputs-Oper'!$I53,'Inputs-Oper'!J53))) -> 0 | F53: =E53*(1+(IF(ISBLANK('Inputs-Oper'!K53),'Inputs-Oper'!$I53,'Inputs-Oper'!K53))) -> 0 | G53: =F53*(1+(IF(ISBLANK('Inputs-Oper'!L53),'Inputs-Oper'!$I53,'Inputs-Oper'!L53))) -> 0 | H53: =G53*(1+(IF(ISBLANK('Inputs-Oper'!M53),'Inputs-Oper'!$I53,'Inputs-Oper'!M53))) -> 0 | I53: =H53*(1+(IF(ISBLANK('Inputs-Oper'!N53),'Inputs-Oper'!$I53,'Inputs-Oper'!N53))) -> 0 | J53: =I53*(1+(IF(ISBLANK('Inputs-Oper'!O53),'Inputs-Oper'!$I53,'Inputs-Oper'!O53))) -> 0 | K53: =J53*(1+(IF(ISBLANK('Inputs-Oper'!P53),'Inputs-Oper'!$I53,'Inputs-Oper'!P53))) -> 0 | L53: =K53*(1+(IF(ISBLANK('Inputs-Oper'!Q53),'Inputs-Oper'!$I53,'Inputs-Oper'!Q53))) -> 0 | M53: =L53*(1+(IF(ISBLANK('Inputs-Oper'!R53),'Inputs-Oper'!$I53,'Inputs-Oper'!R53))) -> 0 | N53: =M53*(1+(IF(ISBLANK('Inputs-Oper'!S53),'Inputs-Oper'!$I53,'Inputs-Oper'!S53))) -> 0 | O53: =N53*(1+(IF(ISBLANK('Inputs-Oper'!T53),'Inputs-Oper'!$I53,'Inputs-Oper'!T53))) -> 0 | P53: =O53*(1+(IF(ISBLANK('Inputs-Oper'!U53),'Inputs-Oper'!$I53,'Inputs-Oper'!U53))) -> 0 | Q53: =P53*(1+(IF(ISBLANK('Inputs-Oper'!V53),'Inputs-Oper'!$I53,'Inputs-Oper'!V53))) -> 0 | R53: =Q53*(1+(IF(ISBLANK('Inputs-Oper'!W53),'Inputs-Oper'!$I53,'Inputs-Oper'!W53))) -> 0 | S53: =R53*(1+(IF(ISBLANK('Inputs-Oper'!X53),'Inputs-Oper'!$I53,'Inputs-Oper'!X53))) -> 0 | T53: =S53*(1+(IF(ISBLANK('Inputs-Oper'!Y53),'Inputs-Oper'!$I53,'Inputs-Oper'!Y53))) -> 0 | U53: =T53*(1+(IF(ISBLANK('Inputs-Oper'!Z53),'Inputs-Oper'!$I53,'Inputs-Oper'!Z53))) -> 0 | V53: =U53*(1+(IF(ISBLANK('Inputs-Oper'!AA53),'Inputs-Oper'!$I53,'Inputs-Oper'!AA53))) -> 0 | W53: =V53*(1+(IF(ISBLANK('Inputs-Oper'!AB53),'Inputs-Oper'!$I53,'Inputs-Oper'!AB53))) -> 0 | X53: =W53*(1+(IF(ISBLANK('Inputs-Oper'!AC53),'Inputs-Oper'!$I53,'Inputs-Oper'!AC53))) -> 0
B54: ='Inputs-Oper'!C54 -> X | D54: =-'Inputs-Oper'!G54 -> 0 | E54: =D54*(1+(IF(ISBLANK('Inputs-Oper'!J54),'Inputs-Oper'!$I54,'Inputs-Oper'!J54))) -> 0 | F54: =E54*(1+(IF(ISBLANK('Inputs-Oper'!K54),'Inputs-Oper'!$I54,'Inputs-Oper'!K54))) -> 0 | G54: =F54*(1+(IF(ISBLANK('Inputs-Oper'!L54),'Inputs-Oper'!$I54,'Inputs-Oper'!L54))) -> 0 | H54: =G54*(1+(IF(ISBLANK('Inputs-Oper'!M54),'Inputs-Oper'!$I54,'Inputs-Oper'!M54))) -> 0 | I54: =H54*(1+(IF(ISBLANK('Inputs-Oper'!N54),'Inputs-Oper'!$I54,'Inputs-Oper'!N54))) -> 0 | J54: =I54*(1+(IF(ISBLANK('Inputs-Oper'!O54),'Inputs-Oper'!$I54,'Inputs-Oper'!O54))) -> 0 | K54: =J54*(1+(IF(ISBLANK('Inputs-Oper'!P54),'Inputs-Oper'!$I54,'Inputs-Oper'!P54))) -> 0 | L54: =K54*(1+(IF(ISBLANK('Inputs-Oper'!Q54),'Inputs-Oper'!$I54,'Inputs-Oper'!Q54))) -> 0 | M54: =L54*(1+(IF(ISBLANK('Inputs-Oper'!R54),'Inputs-Oper'!$I54,'Inputs-Oper'!R54))) -> 0 | N54: =M54*(1+(IF(ISBLANK('Inputs-Oper'!S54),'Inputs-Oper'!$I54,'Inputs-Oper'!S54))) -> 0 | O54: =N54*(1+(IF(ISBLANK('Inputs-Oper'!T54),'Inputs-Oper'!$I54,'Inputs-Oper'!T54))) -> 0 | P54: =O54*(1+(IF(ISBLANK('Inputs-Oper'!U54),'Inputs-Oper'!$I54,'Inputs-Oper'!U54))) -> 0 | Q54: =P54*(1+(IF(ISBLANK('Inputs-Oper'!V54),'Inputs-Oper'!$I54,'Inputs-Oper'!V54))) -> 0 | R54: =Q54*(1+(IF(ISBLANK('Inputs-Oper'!W54),'Inputs-Oper'!$I54,'Inputs-Oper'!W54))) -> 0 | S54: =R54*(1+(IF(ISBLANK('Inputs-Oper'!X54),'Inputs-Oper'!$I54,'Inputs-Oper'!X54))) -> 0 | T54: =S54*(1+(IF(ISBLANK('Inputs-Oper'!Y54),'Inputs-Oper'!$I54,'Inputs-Oper'!Y54))) -> 0 | U54: =T54*(1+(IF(ISBLANK('Inputs-Oper'!Z54),'Inputs-Oper'!$I54,'Inputs-Oper'!Z54))) -> 0 | V54: =U54*(1+(IF(ISBLANK('Inputs-Oper'!AA54),'Inputs-Oper'!$I54,'Inputs-Oper'!AA54))) -> 0 | W54: =V54*(1+(IF(ISBLANK('Inputs-Oper'!AB54),'Inputs-Oper'!$I54,'Inputs-Oper'!AB54))) -> 0 | X54: =W54*(1+(IF(ISBLANK('Inputs-Oper'!AC54),'Inputs-Oper'!$I54,'Inputs-Oper'!AC54))) -> 0
B55: ='Inputs-Oper'!C55 -> X | D55: =-'Inputs-Oper'!G55 -> 0 | E55: =D55*(1+(IF(ISBLANK('Inputs-Oper'!J55),'Inputs-Oper'!$I55,'Inputs-Oper'!J55))) -> 0 | F55: =E55*(1+(IF(ISBLANK('Inputs-Oper'!K55),'Inputs-Oper'!$I55,'Inputs-Oper'!K55))) -> 0 | G55: =F55*(1+(IF(ISBLANK('Inputs-Oper'!L55),'Inputs-Oper'!$I55,'Inputs-Oper'!L55))) -> 0 | H55: =G55*(1+(IF(ISBLANK('Inputs-Oper'!M55),'Inputs-Oper'!$I55,'Inputs-Oper'!M55))) -> 0 | I55: =H55*(1+(IF(ISBLANK('Inputs-Oper'!N55),'Inputs-Oper'!$I55,'Inputs-Oper'!N55))) -> 0 | J55: =I55*(1+(IF(ISBLANK('Inputs-Oper'!O55),'Inputs-Oper'!$I55,'Inputs-Oper'!O55))) -> 0 | K55: =J55*(1+(IF(ISBLANK('Inputs-Oper'!P55),'Inputs-Oper'!$I55,'Inputs-Oper'!P55))) -> 0 | L55: =K55*(1+(IF(ISBLANK('Inputs-Oper'!Q55),'Inputs-Oper'!$I55,'Inputs-Oper'!Q55))) -> 0 | M55: =L55*(1+(IF(ISBLANK('Inputs-Oper'!R55),'Inputs-Oper'!$I55,'Inputs-Oper'!R55))) -> 0 | N55: =M55*(1+(IF(ISBLANK('Inputs-Oper'!S55),'Inputs-Oper'!$I55,'Inputs-Oper'!S55))) -> 0 | O55: =N55*(1+(IF(ISBLANK('Inputs-Oper'!T55),'Inputs-Oper'!$I55,'Inputs-Oper'!T55))) -> 0 | P55: =O55*(1+(IF(ISBLANK('Inputs-Oper'!U55),'Inputs-Oper'!$I55,'Inputs-Oper'!U55))) -> 0 | Q55: =P55*(1+(IF(ISBLANK('Inputs-Oper'!V55),'Inputs-Oper'!$I55,'Inputs-Oper'!V55))) -> 0 | R55: =Q55*(1+(IF(ISBLANK('Inputs-Oper'!W55),'Inputs-Oper'!$I55,'Inputs-Oper'!W55))) -> 0 | S55: =R55*(1+(IF(ISBLANK('Inputs-Oper'!X55),'Inputs-Oper'!$I55,'Inputs-Oper'!X55))) -> 0 | T55: =S55*(1+(IF(ISBLANK('Inputs-Oper'!Y55),'Inputs-Oper'!$I55,'Inputs-Oper'!Y55))) -> 0 | U55: =T55*(1+(IF(ISBLANK('Inputs-Oper'!Z55),'Inputs-Oper'!$I55,'Inputs-Oper'!Z55))) -> 0 | V55: =U55*(1+(IF(ISBLANK('Inputs-Oper'!AA55),'Inputs-Oper'!$I55,'Inputs-Oper'!AA55))) -> 0 | W55: =V55*(1+(IF(ISBLANK('Inputs-Oper'!AB55),'Inputs-Oper'!$I55,'Inputs-Oper'!AB55))) -> 0 | X55: =W55*(1+(IF(ISBLANK('Inputs-Oper'!AC55),'Inputs-Oper'!$I55,'Inputs-Oper'!AC55))) -> 0
B56: ='Inputs-Oper'!C56 -> X | D56: =-'Inputs-Oper'!G56 -> 0 | E56: =D56*(1+(IF(ISBLANK('Inputs-Oper'!J56),'Inputs-Oper'!$I56,'Inputs-Oper'!J56))) -> 0 | F56: =E56*(1+(IF(ISBLANK('Inputs-Oper'!K56),'Inputs-Oper'!$I56,'Inputs-Oper'!K56))) -> 0 | G56: =F56*(1+(IF(ISBLANK('Inputs-Oper'!L56),'Inputs-Oper'!$I56,'Inputs-Oper'!L56))) -> 0 | H56: =G56*(1+(IF(ISBLANK('Inputs-Oper'!M56),'Inputs-Oper'!$I56,'Inputs-Oper'!M56))) -> 0 | I56: =H56*(1+(IF(ISBLANK('Inputs-Oper'!N56),'Inputs-Oper'!$I56,'Inputs-Oper'!N56))) -> 0 | J56: =I56*(1+(IF(ISBLANK('Inputs-Oper'!O56),'Inputs-Oper'!$I56,'Inputs-Oper'!O56))) -> 0 | K56: =J56*(1+(IF(ISBLANK('Inputs-Oper'!P56),'Inputs-Oper'!$I56,'Inputs-Oper'!P56))) -> 0 | L56: =K56*(1+(IF(ISBLANK('Inputs-Oper'!Q56),'Inputs-Oper'!$I56,'Inputs-Oper'!Q56))) -> 0 | M56: =L56*(1+(IF(ISBLANK('Inputs-Oper'!R56),'Inputs-Oper'!$I56,'Inputs-Oper'!R56))) -> 0 | N56: =M56*(1+(IF(ISBLANK('Inputs-Oper'!S56),'Inputs-Oper'!$I56,'Inputs-Oper'!S56))) -> 0 | O56: =N56*(1+(IF(ISBLANK('Inputs-Oper'!T56),'Inputs-Oper'!$I56,'Inputs-Oper'!T56))) -> 0 | P56: =O56*(1+(IF(ISBLANK('Inputs-Oper'!U56),'Inputs-Oper'!$I56,'Inputs-Oper'!U56))) -> 0 | Q56: =P56*(1+(IF(ISBLANK('Inputs-Oper'!V56),'Inputs-Oper'!$I56,'Inputs-Oper'!V56))) -> 0 | R56: =Q56*(1+(IF(ISBLANK('Inputs-Oper'!W56),'Inputs-Oper'!$I56,'Inputs-Oper'!W56))) -> 0 | S56: =R56*(1+(IF(ISBLANK('Inputs-Oper'!X56),'Inputs-Oper'!$I56,'Inputs-Oper'!X56))) -> 0 | T56: =S56*(1+(IF(ISBLANK('Inputs-Oper'!Y56),'Inputs-Oper'!$I56,'Inputs-Oper'!Y56))) -> 0 | U56: =T56*(1+(IF(ISBLANK('Inputs-Oper'!Z56),'Inputs-Oper'!$I56,'Inputs-Oper'!Z56))) -> 0 | V56: =U56*(1+(IF(ISBLANK('Inputs-Oper'!AA56),'Inputs-Oper'!$I56,'Inputs-Oper'!AA56))) -> 0 | W56: =V56*(1+(IF(ISBLANK('Inputs-Oper'!AB56),'Inputs-Oper'!$I56,'Inputs-Oper'!AB56))) -> 0 | X56: =W56*(1+(IF(ISBLANK('Inputs-Oper'!AC56),'Inputs-Oper'!$I56,'Inputs-Oper'!AC56))) -> 0
B57: ='Inputs-Oper'!C57 -> X | D57: =-'Inputs-Oper'!G57 -> 0 | E57: =D57*(1+(IF(ISBLANK('Inputs-Oper'!J57),'Inputs-Oper'!$I57,'Inputs-Oper'!J57))) -> 0 | F57: =E57*(1+(IF(ISBLANK('Inputs-Oper'!K57),'Inputs-Oper'!$I57,'Inputs-Oper'!K57))) -> 0 | G57: =F57*(1+(IF(ISBLANK('Inputs-Oper'!L57),'Inputs-Oper'!$I57,'Inputs-Oper'!L57))) -> 0 | H57: =G57*(1+(IF(ISBLANK('Inputs-Oper'!M57),'Inputs-Oper'!$I57,'Inputs-Oper'!M57))) -> 0 | I57: =H57*(1+(IF(ISBLANK('Inputs-Oper'!N57),'Inputs-Oper'!$I57,'Inputs-Oper'!N57))) -> 0 | J57: =I57*(1+(IF(ISBLANK('Inputs-Oper'!O57),'Inputs-Oper'!$I57,'Inputs-Oper'!O57))) -> 0 | K57: =J57*(1+(IF(ISBLANK('Inputs-Oper'!P57),'Inputs-Oper'!$I57,'Inputs-Oper'!P57))) -> 0 | L57: =K57*(1+(IF(ISBLANK('Inputs-Oper'!Q57),'Inputs-Oper'!$I57,'Inputs-Oper'!Q57))) -> 0 | M57: =L57*(1+(IF(ISBLANK('Inputs-Oper'!R57),'Inputs-Oper'!$I57,'Inputs-Oper'!R57))) -> 0 | N57: =M57*(1+(IF(ISBLANK('Inputs-Oper'!S57),'Inputs-Oper'!$I57,'Inputs-Oper'!S57))) -> 0 | O57: =N57*(1+(IF(ISBLANK('Inputs-Oper'!T57),'Inputs-Oper'!$I57,'Inputs-Oper'!T57))) -> 0 | P57: =O57*(1+(IF(ISBLANK('Inputs-Oper'!U57),'Inputs-Oper'!$I57,'Inputs-Oper'!U57))) -> 0 | Q57: =P57*(1+(IF(ISBLANK('Inputs-Oper'!V57),'Inputs-Oper'!$I57,'Inputs-Oper'!V57))) -> 0 | R57: =Q57*(1+(IF(ISBLANK('Inputs-Oper'!W57),'Inputs-Oper'!$I57,'Inputs-Oper'!W57))) -> 0 | S57: =R57*(1+(IF(ISBLANK('Inputs-Oper'!X57),'Inputs-Oper'!$I57,'Inputs-Oper'!X57))) -> 0 | T57: =S57*(1+(IF(ISBLANK('Inputs-Oper'!Y57),'Inputs-Oper'!$I57,'Inputs-Oper'!Y57))) -> 0 | U57: =T57*(1+(IF(ISBLANK('Inputs-Oper'!Z57),'Inputs-Oper'!$I57,'Inputs-Oper'!Z57))) -> 0 | V57: =U57*(1+(IF(ISBLANK('Inputs-Oper'!AA57),'Inputs-Oper'!$I57,'Inputs-Oper'!AA57))) -> 0 | W57: =V57*(1+(IF(ISBLANK('Inputs-Oper'!AB57),'Inputs-Oper'!$I57,'Inputs-Oper'!AB57))) -> 0 | X57: =W57*(1+(IF(ISBLANK('Inputs-Oper'!AC57),'Inputs-Oper'!$I57,'Inputs-Oper'!AC57))) -> 0
B58: ='Inputs-Oper'!C58 -> X | D58: =-'Inputs-Oper'!G58 -> 0 | E58: =D58*(1+(IF(ISBLANK('Inputs-Oper'!J58),'Inputs-Oper'!$I58,'Inputs-Oper'!J58))) -> 0 | F58: =E58*(1+(IF(ISBLANK('Inputs-Oper'!K58),'Inputs-Oper'!$I58,'Inputs-Oper'!K58))) -> 0 | G58: =F58*(1+(IF(ISBLANK('Inputs-Oper'!L58),'Inputs-Oper'!$I58,'Inputs-Oper'!L58))) -> 0 | H58: =G58*(1+(IF(ISBLANK('Inputs-Oper'!M58),'Inputs-Oper'!$I58,'Inputs-Oper'!M58))) -> 0 | I58: =H58*(1+(IF(ISBLANK('Inputs-Oper'!N58),'Inputs-Oper'!$I58,'Inputs-Oper'!N58))) -> 0 | J58: =I58*(1+(IF(ISBLANK('Inputs-Oper'!O58),'Inputs-Oper'!$I58,'Inputs-Oper'!O58))) -> 0 | K58: =J58*(1+(IF(ISBLANK('Inputs-Oper'!P58),'Inputs-Oper'!$I58,'Inputs-Oper'!P58))) -> 0 | L58: =K58*(1+(IF(ISBLANK('Inputs-Oper'!Q58),'Inputs-Oper'!$I58,'Inputs-Oper'!Q58))) -> 0 | M58: =L58*(1+(IF(ISBLANK('Inputs-Oper'!R58),'Inputs-Oper'!$I58,'Inputs-Oper'!R58))) -> 0 | N58: =M58*(1+(IF(ISBLANK('Inputs-Oper'!S58),'Inputs-Oper'!$I58,'Inputs-Oper'!S58))) -> 0 | O58: =N58*(1+(IF(ISBLANK('Inputs-Oper'!T58),'Inputs-Oper'!$I58,'Inputs-Oper'!T58))) -> 0 | P58: =O58*(1+(IF(ISBLANK('Inputs-Oper'!U58),'Inputs-Oper'!$I58,'Inputs-Oper'!U58))) -> 0 | Q58: =P58*(1+(IF(ISBLANK('Inputs-Oper'!V58),'Inputs-Oper'!$I58,'Inputs-Oper'!V58))) -> 0 | R58: =Q58*(1+(IF(ISBLANK('Inputs-Oper'!W58),'Inputs-Oper'!$I58,'Inputs-Oper'!W58))) -> 0 | S58: =R58*(1+(IF(ISBLANK('Inputs-Oper'!X58),'Inputs-Oper'!$I58,'Inputs-Oper'!X58))) -> 0 | T58: =S58*(1+(IF(ISBLANK('Inputs-Oper'!Y58),'Inputs-Oper'!$I58,'Inputs-Oper'!Y58))) -> 0 | U58: =T58*(1+(IF(ISBLANK('Inputs-Oper'!Z58),'Inputs-Oper'!$I58,'Inputs-Oper'!Z58))) -> 0 | V58: =U58*(1+(IF(ISBLANK('Inputs-Oper'!AA58),'Inputs-Oper'!$I58,'Inputs-Oper'!AA58))) -> 0 | W58: =V58*(1+(IF(ISBLANK('Inputs-Oper'!AB58),'Inputs-Oper'!$I58,'Inputs-Oper'!AB58))) -> 0 | X58: =W58*(1+(IF(ISBLANK('Inputs-Oper'!AC58),'Inputs-Oper'!$I58,'Inputs-Oper'!AC58))) -> 0
A59: Total Operating Expenses | D59: =SUM(D36:D58) -> -305020 | E59: =SUM(E36:E58) -> -317220.8 | F59: -329909.632 | G59: -343106.0173 | H59: -356830.258 | I59: -371103.4683 | J59: -385947.607 | K59: -401385.5113 | L59: -417440.9318 | M59: -434138.569 | N59: -451504.1118 | O59: -469564.2763 | P59: -488346.8473 | Q59: -507880.7212 | R59: -528195.95 | S59: -549323.788 | T59: -571296.7396 | U59: -594148.6092 | V59: -617914.5535 | W59: -642631.1357 | X59: -668336.3811
B60: Per Unit Expenses | D60: =D59/'Inputs-Oper'!$E$17 -> -3812.75 | E60: =E59/'Inputs-Oper'!$E$17 -> -3965.26 | F60: =F59/'Inputs-Oper'!$E$17 -> -4123.8704 | G60: =G59/'Inputs-Oper'!$E$17 -> -4288.825216 | H60: =H59/'Inputs-Oper'!$E$17 -> -4460.378225 | I60: =I59/'Inputs-Oper'!$E$17 -> -4638.793354 | J60: =J59/'Inputs-Oper'!$E$17 -> -4824.345088 | K60: =K59/'Inputs-Oper'!$E$17 -> -5017.318891 | L60: =L59/'Inputs-Oper'!$E$17 -> -5218.011647 | M60: =M59/'Inputs-Oper'!$E$17 -> -5426.732113 | N60: =N59/'Inputs-Oper'!$E$17 -> -5643.801397 | O60: =O59/'Inputs-Oper'!$E$17 -> -5869.553453 | P60: =P59/'Inputs-Oper'!$E$17 -> -6104.335591 | Q60: =Q59/'Inputs-Oper'!$E$17 -> -6348.509015 | R60: =R59/'Inputs-Oper'!$E$17 -> -6602.449376 | S60: =S59/'Inputs-Oper'!$E$17 -> -6866.547351 | T60: =T59/'Inputs-Oper'!$E$17 -> -7141.209245 | U60: =U59/'Inputs-Oper'!$E$17 -> -7426.857614 | V60: =V59/'Inputs-Oper'!$E$17 -> -7723.931919 | W60: =W59/'Inputs-Oper'!$E$17 -> -8032.889196 | X60: =X59/'Inputs-Oper'!$E$17 -> -8354.204764
A62: NET OPERATING INCOME (NOI) | D62: =D32+D59 -> 398455 | E62: =E32+E59 -> 414393.2 | F62: 430968.928 | G62: 448207.6851 | H62: 466135.9925 | I62: 484781.4322 | J62: 504172.6895 | K62: 524339.5971 | L62: 545313.181 | M62: 567125.7082 | N62: 589810.7365 | O62: 613403.166 | P62: 637939.2926 | Q62: 663456.8644 | R62: 689995.1389 | S62: 717594.9445 | T62: 746298.7423 | U62: 776150.692 | V62: 807196.7196 | W62: 839484.5884 | X62: =X32+X59 -> 873063.972
B64: Less Depreciation | D64: =-(PRICE_CAPS*(1-LANDTOVALUE))/TAXLIFE -> -123076.9231 | E64: =-(PRICE_CAPS*(1-LANDTOVALUE))/TAXLIFE -> -123076.9231 | F64: -123076.9231 | G64: -123076.9231 | H64: -123076.9231 | I64: -123076.9231 | J64: -123076.9231 | K64: -123076.9231 | L64: -123076.9231 | M64: -123076.9231 | N64: -123076.9231 | O64: -123076.9231 | P64: -123076.9231 | Q64: -123076.9231 | R64: -123076.9231 | S64: -123076.9231 | T64: -123076.9231 | U64: -123076.9231 | V64: -123076.9231 | W64: -123076.9231 | X64: -123076.9231
B65: Less Interest Payment | D65: =D115 -> -419240.0154 | E65: =E115 -> -415766.4721 | F65: -411995.2733 | G65: -407900.9125 | H65: -403455.6972 | I65: -398629.5618 | J65: -393389.8646 | K65: -387701.1665 | L65: -381524.9917 | M65: -374819.5673 | N65: -367539.5408 | O65: -359635.6732 | P65: -351054.5062 | Q65: -341738.0007 | R65: -331623.144 | S65: -320641.5235 | T65: -308718.8645 | U65: -295774.5274 | V65: -281720.9623 | W65: -266463.1171 | X65: =X115 -> -249897.7946
A66: Taxable Income | D66: =D62+D64+D65 -> -143861.9385 | E66: =E62+E64+E65 -> -124450.1952 | F66: -104103.2684 | G66: -82770.15049 | H66: -60396.62773 | I66: -36925.05267 | J66: -12294.09817 | K66: 13561.50749 | L66: 40711.26616 | M66: 69229.21781 | N66: 99194.2727 | O66: 130690.5698 | P66: 163807.8634 | Q66: 198641.9405 | R66: 235295.0719 | S66: 273876.4979 | T66: 314502.9547 | U66: 357299.2415 | V66: 402398.8343 | W66: 449944.5482 | X66: 500089.2543
B67: Plus Depreciation | D67: =-D64 -> 123076.9231 | E67: =-E64 -> 123076.9231 | F67: 123076.9231 | G67: 123076.9231 | H67: 123076.9231 | I67: 123076.9231 | J67: 123076.9231 | K67: 123076.9231 | L67: 123076.9231 | M67: 123076.9231 | N67: 123076.9231 | O67: 123076.9231 | P67: 123076.9231 | Q67: 123076.9231 | R67: 123076.9231 | S67: 123076.9231 | T67: 123076.9231 | U67: 123076.9231 | V67: 123076.9231 | W67: 123076.9231 | X67: =-X64 -> 123076.9231
B68: Less Principal Payment | D68: =D116 -> -40535.14623 | E68: =E116 -> -44008.6896 | F68: -47779.88833 | G68: -51874.24915 | H68: -56319.4645 | I68: -61145.59986 | J68: -66385.29707 | K68: -72073.99515 | L68: -78250.16994 | M68: -84955.59435 | N68: -92235.62091 | O68: -100139.4885 | P68: -108720.6555 | Q68: -118037.1609 | R68: -128152.0177 | S68: -139133.6382 | T68: -151056.2972 | U68: -164000.6343 | V68: -178054.1994 | W68: -193312.0446 | X68: =X116 -> -209877.3671
A69: Before Tax Cash Flow | D69: =D66+D67+D68 -> -61320.16168 | E69: =E66+E67+E68 -> -45381.96168 | F69: -28806.23368 | G69: -11567.47656 | H69: 6360.830846 | I69: 25006.27055 | J69: 44397.52784 | K69: 64564.43542 | L69: 85538.0193 | M69: 107350.5465 | N69: 130035.5749 | O69: 153628.0043 | P69: 178164.131 | Q69: 203681.7027 | R69: 230219.9773 | S69: 257819.7828 | T69: 286523.5806 | U69: 316375.5303 | V69: 347421.558 | W69: 379709.4267 | X69: 413288.8103
B70: Less Taxes | D70: =IF(-D66<=PLL,-TAXRATE*D66,TAXRATE*PLL) -> 13650 | E70: =IF(-E74<=PLL,-TAXRATE*E74,TAXRATE*PLL) -> 13650 | F70: =IF(-F74<=PLL,-TAXRATE*F74,TAXRATE*PLL) -> 13650 | G70: 13650 | H70: 13650 | I70: 13650 | J70: 13650 | K70: 13650 | L70: 13650 | M70: 13650 | N70: -3079.023871 | O70: -50969.32221 | P70: -63885.06671 | Q70: -77470.35681 | R70: -91765.07803 | S70: -106811.8342 | T70: -122656.1523 | U70: -139346.7042 | V70: -156935.5454 | W70: -175478.3738 | X70: 0
A71: After Tax Cash Flow | D71: =D69+D70 -> -47670.16168 | E71: =E69+E70 -> -31731.96168 | F71: -15156.23368 | G71: 2082.523441 | H71: 20010.83085 | I71: 38656.27055 | J71: 58047.52784 | K71: 78214.43542 | L71: 99188.0193 | M71: 121000.5465 | N71: 126956.551 | O71: 102658.6821 | P71: 114279.0643 | Q71: 126211.3459 | R71: 138454.8992 | S71: 151007.9486 | T71: 163867.4283 | U71: 177028.8261 | V71: 190486.0126 | W71: 204231.0529 | X71: 413288.8103
A73: PASSIVE LOSSES
A74: Sum of PLCF and Current Taxable Income | E74: =D75+E66 -> -233312.1337 | F74: =E75+F66 -> -302415.4021 | G74: -350185.5526 | H74: -375582.1803 | I74: -377507.233 | J74: -354801.3312 | K74: -306239.8237 | L74: -230528.5575 | M74: -126299.3397 | N74: 7894.933003 | O74: 130690.5698 | P74: 163807.8634 | Q74: 198641.9405 | R74: 235295.0719 | S74: 273876.4979 | T74: 314502.9547 | U74: 357299.2415 | V74: 402398.8343 | W74: 449944.5482
A75: Balance of Passive Loss Carried Forward (PLCF) | D75: =IF(-D66>=PLL,D66+PLL,0) -> -108861.9385 | E75: =IF(-E74>=PLL,E74+PLL,0) -> -198312.1337 | F75: -267415.4021 | G75: -315185.5526 | H75: -340582.1803 | I75: -342507.233 | J75: -319801.3312 | K75: -271239.8237 | L75: -195528.5575 | M75: -91299.3397 | N75: 0 | O75: 0 | P75: 0 | Q75: 0 | R75: 0 | S75: 0 | T75: 0 | U75: 0 | V75: 0 | W75: 0
A77: REVERSION
A78: Gross Sale Price | D78: =E62/CAPOUT -> 4875214.118 | E78: =F62/CAPOUT -> 5070222.682 | F78: 5273031.59 | G78: 5483952.853 | H78: 5703310.967 | I78: 5931443.406 | J78: 6168701.142 | K78: 6415449.188 | L78: 6672067.156 | M78: 6938949.842 | N78: 7216507.835 | O78: 7505168.149 | P78: 7805374.875 | Q78: 8117589.87 | R78: 8442293.465 | S78: 8779985.203 | T78: 9131184.611 | U78: 9496431.996 | V78: 9876289.276 | W78: 10271340.85
B79: Less Cost of Sale | D79: =-COSTSALE*'Cash Flow'!D78 -> -146256.4235 | E79: =-COSTSALE*'Cash Flow'!E78 -> -152106.6805 | F79: =-COSTSALE*'Cash Flow'!F78 -> -158190.9477 | G79: =-COSTSALE*'Cash Flow'!G78 -> -164518.5856 | H79: =-COSTSALE*'Cash Flow'!H78 -> -171099.329 | I79: =-COSTSALE*'Cash Flow'!I78 -> -177943.3022 | J79: =-COSTSALE*'Cash Flow'!J78 -> -185061.0343 | K79: =-COSTSALE*'Cash Flow'!K78 -> -192463.4756 | L79: =-COSTSALE*'Cash Flow'!L78 -> -200162.0147 | M79: =-COSTSALE*'Cash Flow'!M78 -> -208168.4953 | N79: =-COSTSALE*'Cash Flow'!N78 -> -216495.2351 | O79: =-COSTSALE*'Cash Flow'!O78 -> -225155.0445 | P79: =-COSTSALE*'Cash Flow'!P78 -> -234161.2462 | Q79: =-COSTSALE*'Cash Flow'!Q78 -> -243527.6961 | R79: =-COSTSALE*'Cash Flow'!R78 -> -253268.8039 | S79: =-COSTSALE*'Cash Flow'!S78 -> -263399.5561 | T79: =-COSTSALE*'Cash Flow'!T78 -> -273935.5383 | U79: =-COSTSALE*'Cash Flow'!U78 -> -284892.9599 | V79: =-COSTSALE*'Cash Flow'!V78 -> -296288.6783 | W79: =-COSTSALE*'Cash Flow'!W78 -> -308140.2254
A80: Net Sale Price | D80: =D78+D79 -> 4728957.694 | E80: 4918116.002 | F80: 5114840.642 | G80: 5319434.268 | H80: 5532211.638 | I80: 5753500.104 | J80: 5983640.108 | K80: 6222985.712 | L80: 6471905.141 | M80: 6730781.346 | N80: 7000012.6 | O80: 7280013.104 | P80: 7571213.629 | Q80: 7874062.174 | R80: 8189024.661 | S80: 8516585.647 | T80: 8857249.073 | U80: 9211539.036 | V80: 9580000.597 | W80: 9963200.621
B81: Less Outstanding Mortgage | D81: =-D117 -> -5059464.854 | E81: -5015456.164 | F81: -4967676.276 | G81: -4915802.027 | H81: -4859482.562 | I81: -4798336.962 | J81: -4731951.665 | K81: -4659877.67 | L81: -4581627.5 | M81: -4496671.906 | N81: -4404436.285 | O81: -4304296.796 | P81: -4195576.141 | Q81: -4077538.98 | R81: -3949386.962 | S81: -3810253.324 | T81: -3659197.027 | U81: -3495196.393 | V81: -3317142.193 | W81: -3123830.149
A82: Before Tax Equity Reversion (BTER) | D82: =D80+D81 -> -330507.1596 | E82: =E80+E81 -> -97340.16228 | F82: 147164.3661 | G82: 403632.241 | H82: 672729.0762 | I82: 955163.1415 | J82: 1251688.443 | K82: 1563108.042 | L82: 1890277.641 | M82: 2234109.441 | N82: 2595576.315 | O82: 2975716.308 | P82: 3375637.488 | Q82: 3796523.194 | R82: 4239637.698 | S82: 4706332.323 | T82: 5198052.046 | U82: 5716342.643 | V82: 6262858.404 | W82: 6839370.472
B83: Less Taxes Due on Sale (See Below) | D83: =D109 -> 0 | E83: =E109 -> 0 | F83: 0 | G83: 0 | H83: -49399.06343 | I83: -135490.4106 | J83: -143844.3096 | K83: -246503.0239 | L83: -342198.3936 | M83: -445588.709 | N83: -548464.0585 | O83: -635233.3901 | P83: -724242.7257 | Q83: -815581.6655 | R83: -909343.3937 | S83: -1005624.822 | T83: -1104526.738 | U83: -1206153.961 | V83: -1310615.504 | W83: -1418024.74
A84: After Tax Equity Reversion (ATER) | D84: =SUM(D82:D83) -> -330507.1596 | E84: =SUM(E82:E83) -> -97340.16228 | F84: 147164.3661 | G84: 403632.241 | H84: 623330.0127 | I84: 819672.731 | J84: 1107844.133 | K84: 1316605.018 | L84: 1548079.247 | M84: 1788520.732 | N84: 2047112.257 | O84: 2340482.918 | P84: 2651394.762 | Q84: 2980941.528 | R84: 3330294.305 | S84: 3700707.501 | T84: 4093525.308 | U84: 4510188.682 | V84: 4952242.9 | W84: 5421345.733
A86: CAPITAL GAINS TAX ESTIMATE
A87: Capital Gain, Part 1, neglecting Accumulated Depreciation
B88: Net Sale Price | D88: =D80 -> 4728957.694 | E88: 4918116.002 | F88: 5114840.642 | G88: 5319434.268 | H88: 5532211.638 | I88: 5753500.104 | J88: 5983640.108 | K88: 6222985.712 | L88: 6471905.141 | M88: 6730781.346 | N88: 7000012.6 | O88: 7280013.104 | P88: 7571213.629 | Q88: 7874062.174 | R88: 8189024.661 | S88: 8516585.647 | T88: 8857249.073 | U88: 9211539.036 | V88: 9580000.597 | W88: 9963200.621
B89: Less Purchase Price | D89: =-PURPRICE -> -5950000 | E89: =-PURPRICE -> -5950000 | F89: -5950000 | G89: -5950000 | H89: -5950000 | I89: -5950000 | J89: -5950000 | K89: -5950000 | L89: -5950000 | M89: -5950000 | N89: -5950000 | O89: -5950000 | P89: -5950000 | Q89: -5950000 | R89: -5950000 | S89: -5950000 | T89: -5950000 | U89: -5950000 | V89: -5950000 | W89: -5950000
A90: Capital Gain, Part 1, neglecting PLCF | D90: =MAX(D88+D89,0) -> 0 | E90: =MAX(E88+E89,0) -> 0 | F90: 0 | G90: 0 | H90: 0 | I90: 0 | J90: 33640.10803 | K90: 272985.7124 | L90: 521905.1408 | M90: 780781.3465 | N90: 1050012.6 | O90: 1330013.104 | P90: 1621213.629 | Q90: 1924062.174 | R90: 2239024.661 | S90: 2566585.647 | T90: 2907249.073 | U90: 3261539.036 | V90: 3630000.597 | W90: 4013200.621
A91: Capital Gain, Part 1, After Passive Loss Carry Forward | D91: =MAX(SUM(D90,D75),0) -> 0 | E91: =MAX(SUM(E90,E75),0) -> 0 | F91: 0 | G91: 0 | H91: 0 | I91: 0 | J91: 0 | K91: 1745.888681 | L91: 326376.5833 | M91: 689482.0068 | N91: 1050012.6 | O91: 1330013.104 | P91: 1621213.629 | Q91: 1924062.174 | R91: 2239024.661 | S91: 2566585.647 | T91: 2907249.073 | U91: 3261539.036 | V91: 3630000.597 | W91: 4013200.621
A92: (Memo: Remaining PLCF, After Adjusting Part I Capital Gains) | D92: =IF(D90>=0,-((D91-D90)-D75),0) -> -108861.9385 | E92: =IF(E90>=0,-((E91-E90)-E75),0) -> -198312.1337 | F92: -267415.4021 | G92: -315185.5526 | H92: -340582.1803 | I92: -342507.233 | J92: -286161.2231 | K92: 0 | L92: 0 | M92: 5.820766091e-11 | N92: 0 | O92: 0 | P92: 0 | Q92: 0 | R92: 0 | S92: 0 | T92: 0 | U92: 0 | V92: 0 | W92: 0
A94: Capital Gain Part II, Adjustment for Accumulated Depreciation
B95: Accumulated Depreciation | D95: =SUM($D$67:D67) -> 123076.9231 | E95: =SUM($D$67:E67) -> 246153.8462 | F95: =SUM($D$67:F67) -> 369230.7692 | G95: =SUM($D$67:G67) -> 492307.6923 | H95: =SUM($D$67:H67) -> 615384.6154 | I95: =SUM($D$67:I67) -> 738461.5385 | J95: =SUM($D$67:J67) -> 861538.4615 | K95: =SUM($D$67:K67) -> 984615.3846 | L95: =SUM($D$67:L67) -> 1107692.308 | M95: =SUM($D$67:M67) -> 1230769.231 | N95: =SUM($D$67:N67) -> 1353846.154 | O95: =SUM($D$67:O67) -> 1476923.077 | P95: =SUM($D$67:P67) -> 1600000 | Q95: =SUM($D$67:Q67) -> 1723076.923 | R95: =SUM($D$67:R67) -> 1846153.846 | S95: =SUM($D$67:S67) -> 1969230.769 | T95: =SUM($D$67:T67) -> 2092307.692 | U95: =SUM($D$67:U67) -> 2215384.615 | V95: =SUM($D$67:V67) -> 2338461.538 | W95: =SUM($D$67:W67) -> 2461538.462
B96: Accumulated Depreciation, After PLCF | D96: =D95+D92 -> 14214.98455 | E96: =E95+E92 -> 47841.71248 | F96: 101815.3671 | G96: 177122.1397 | H96: 274802.4351 | I96: 395954.3055 | J96: 575377.2384 | K96: 984615.3846 | L96: 1107692.308 | M96: 1230769.231 | N96: 1353846.154 | O96: 1476923.077 | P96: 1600000 | Q96: 1723076.923 | R96: 1846153.846 | S96: 1969230.769 | T96: 2092307.692 | U96: 2215384.615 | V96: 2338461.538 | W96: 2461538.462
A97: (Memo: PLCF, After Adj. Part I & Part II Capital Gains) | D97: =-((D96-D95)-D92) -> 0 | E97: =-((E96-E95)-E92) -> 0 | F97: =-((F96-F95)-F92) -> 0 | G97: 0 | H97: 0 | I97: 0 | J97: 0 | K97: 0 | L97: 0 | M97: 5.820766091e-11 | N97: 0 | O97: 0 | P97: 0 | Q97: 0 | R97: 0 | S97: 0 | T97: 0 | U97: 0 | V97: 0 | W97: 0
A99: Memo: Capital Gain or Loss?
B100: Net Sales Price | D100: =D80 -> 4728957.694 | E100: =E80 -> 4918116.002 | F100: 5114840.642 | G100: 5319434.268 | H100: 5532211.638 | I100: 5753500.104 | J100: 5983640.108 | K100: 6222985.712 | L100: 6471905.141 | M100: 6730781.346 | N100: 7000012.6 | O100: 7280013.104 | P100: 7571213.629 | Q100: 7874062.174 | R100: 8189024.661 | S100: 8516585.647 | T100: 8857249.073 | U100: 9211539.036 | V100: 9580000.597 | W100: 9963200.621
B101: Adjusted Basis | D101: =-SUM(D89+D95) -> 5826923.077 | E101: 5703846.154 | F101: 5580769.231 | G101: 5457692.308 | H101: 5334615.385 | I101: 5211538.462 | J101: 5088461.538 | K101: 4965384.615 | L101: 4842307.692 | M101: 4719230.769 | N101: 4596153.846 | O101: 4473076.923 | P101: 4350000 | Q101: 4226923.077 | R101: 4103846.154 | S101: 3980769.231 | T101: 3857692.308 | U101: 3734615.385 | V101: 3611538.462 | W101: 3488461.538
B102: Gain Realized on Sale | D102: =D100-D101 -> -1097965.383 | E102: =E100-E101 -> -785730.152 | F102: -465928.5888 | G102: -138258.0401 | H102: 197596.2537 | I102: 541961.6423 | J102: 895178.5696 | K102: 1257601.097 | L102: 1629597.449 | M102: 2011550.577 | N102: 2403858.754 | O102: 2806936.181 | P102: 3221213.629 | Q102: 3647139.097 | R102: 4085178.507 | S102: 4535816.416 | T102: 4999556.765 | U102: 5476923.651 | V102: 5968462.136 | W102: 6474739.083
B103: Is Gain Realized on Sale Greater Than Accumulated Depreciation? | D103: =IF(D102>D95,"Yes","No") -> No | E103: =IF(E102>E95,"Yes","No") -> No | F103: No | G103: No | H103: No | I103: No | J103: Yes | K103: Yes | L103: Yes | M103: Yes | N103: Yes | O103: Yes | P103: Yes | Q103: Yes | R103: Yes | S103: Yes | T103: Yes | U103: Yes | V103: Yes | W103: Yes
A105: Taxes Due on Sale
B106: Tax on Part I of Capital Gains | D106: =-D91*KTRATE -> 0 | E106: =-E91*KTRATE -> 0 | F106: 0 | G106: 0 | H106: 0 | I106: 0 | J106: 0 | K106: -349.1777363 | L106: -65275.31667 | M106: -137896.4014 | N106: -210002.5201 | O106: -266002.6209 | P106: -324242.7257 | Q106: -384812.4347 | R106: -447804.9321 | S106: -513317.1294 | T106: -581449.8146 | U106: -652307.8072 | V106: -726000.1195 | W106: -802640.1242
B107: Tax on Part II, Accumulated Depreciation | D107: =MIN(-KTRDEPR*IF(D102>D96,D96,D102),0) -> 0 | E107: =MIN(-KTRDEPR*IF(E102>E95,E96,E102),0) -> 0 | F107: 0 | G107: 0 | H107: -49399.06343 | I107: -135490.4106 | J107: -143844.3096 | K107: -246153.8462 | L107: -276923.0769 | M107: -307692.3077 | N107: -338461.5385 | O107: -369230.7692 | P107: -400000 | Q107: -430769.2308 | R107: -461538.4615 | S107: -492307.6923 | T107: -523076.9231 | U107: -553846.1538 | V107: -584615.3846 | W107: -615384.6154
B108: Reduction in Tax Liability on Active and Portfolio Income
B109: Total Taxes Due on Sale | D109: =SUM(D106:D108) -> 0 | E109: =SUM(E106:E108) -> 0 | F109: 0 | G109: 0 | H109: -49399.06343 | I109: -135490.4106 | J109: -143844.3096 | K109: -246503.0239 | L109: -342198.3936 | M109: -445588.709 | N109: -548464.0585 | O109: -635233.3901 | P109: -724242.7257 | Q109: -815581.6655 | R109: -909343.3937 | S109: -1005624.822 | T109: -1104526.738 | U109: -1206153.961 | V109: -1310615.504 | W109: -1418024.74
A112: LOAN AMORTIZATION SCHEDULE
D113: 1 | E113: 2 | F113: 3 | G113: 4 | H113: 5 | I113: 6 | J113: 7 | K113: 8 | L113: 9 | M113: 10 | N113: 11 | O113: 12 | P113: 13 | Q113: 14 | R113: 15 | S113: 16 | T113: 17 | U113: 18 | V113: 19 | W113: 20 | X113: 21 | Y113: 22 | Z113: 23 | AA113: 24 | AB113: 25 | AC113: 26 | AD113: 27 | AE113: 28 | AF113: 29 | AG113: 30
A114: Mortgage Payment | D114: =-12*PMT(M1INT/12,M1AMORT*12,-LOANAMT) -> -459775.1617 | E114: =-12*PMT(M1INT/12,M1AMORT*12,-LOANAMT) -> -459775.1617 | F114: -459775.1617 | G114: -459775.1617 | H114: -459775.1617 | I114: -459775.1617 | J114: -459775.1617 | K114: -459775.1617 | L114: -459775.1617 | M114: -459775.1617 | N114: -459775.1617 | O114: -459775.1617 | P114: -459775.1617 | Q114: -459775.1617 | R114: -459775.1617 | S114: -459775.1617 | T114: -459775.1617 | U114: -459775.1617 | V114: -459775.1617 | W114: -459775.1617 | X114: -459775.1617 | Y114: -459775.1617 | Z114: -459775.1617 | AA114: -459775.1617 | AB114: -459775.1617 | AC114: -459775.1617 | AD114: -459775.1617 | AE114: -459775.1617 | AF114: -459775.1617 | AG114: -459775.1617
B115: Interest | D115: =D114-D116 -> -419240.0154 | E115: =E114-E116 -> -415766.4721 | F115: -411995.2733 | G115: -407900.9125 | H115: -403455.6972 | I115: -398629.5618 | J115: -393389.8646 | K115: -387701.1665 | L115: -381524.9917 | M115: -374819.5673 | N115: -367539.5408 | O115: -359635.6732 | P115: -351054.5062 | Q115: -341738.0007 | R115: -331623.144 | S115: -320641.5235 | T115: -308718.8645 | U115: -295774.5274 | V115: -281720.9623 | W115: -266463.1171 | X115: =X114-X116 -> -249897.7946 | Y115: -231912.9542 | Z115: -212386.9543 | AA115: -191187.7297 | AB115: -168171.8983 | AC115: -143183.791 | AD115: -116054.3994 | AE115: -86600.23221 | AF115: -54622.07442 | AG115: -19903.6399
B116: Principal | D116: =-C117+D117 -> -40535.14623 | E116: =-D117+E117 -> -44008.6896 | F116: -47779.88833 | G116: -51874.24915 | H116: -56319.4645 | I116: -61145.59986 | J116: -66385.29707 | K116: -72073.99515 | L116: -78250.16994 | M116: -84955.59435 | N116: -92235.62091 | O116: -100139.4885 | P116: -108720.6555 | Q116: -118037.1609 | R116: -128152.0177 | S116: -139133.6382 | T116: -151056.2972 | U116: -164000.6343 | V116: -178054.1994 | W116: -193312.0446 | X116: =-W117+X117 -> -209877.3671 | Y116: -227862.2075 | Z116: -247388.2074 | AA116: -268587.4319 | AB116: -291603.2634 | AC116: -316591.3706 | AD116: -343720.7623 | AE116: -373174.9295 | AF116: -405153.0873 | AG116: -439871.5218
B117: Loan Balance | C117: =LOANAMT -> 5100000 | D117: =PV(M1INT/12,(M1AMORT-D113)*12,-(-D114/12)) -> 5059464.854 | E117: =PV(M1INT/12,(M1AMORT-E113)*12,-(-E114/12)) -> 5015456.164 | F117: 4967676.276 | G117: 4915802.027 | H117: 4859482.562 | I117: 4798336.962 | J117: 4731951.665 | K117: 4659877.67 | L117: 4581627.5 | M117: 4496671.906 | N117: 4404436.285 | O117: 4304296.796 | P117: 4195576.141 | Q117: 4077538.98 | R117: 3949386.962 | S117: 3810253.324 | T117: 3659197.027 | U117: 3495196.393 | V117: 3317142.193 | W117: 3123830.149 | X117: =PV(M1INT/12,(M1AMORT-X113)*12,-(-X114/12)) -> 2913952.782 | Y117: 2686090.574 | Z117: 2438702.367 | AA117: 2170114.935 | AB117: 1878511.671 | AC117: 1561920.301 | AD117: 1218199.539 | AE117: 845024.609 | AF117: 439871.5218 | AG117: 0
A120: INVESTOR RETURN CALCULATIONS
B122: Overall Property Return Measures
B124: Overall IRR | X124: ="Present Value at "&TEXT(DISCRATE, "0.00%") -> Present Value at 12.00%
A125: 1 Year | B125: =IRR(C125:W125,0.12) -> -0.1454312176 | C125: =-PRICE_CAPS -> -6000000 | D125: =D$62+D$80 -> 5127412.694 | X125: =NPV(DISCRATE,D125:W125) -> 4578047.048
A126: 2 Year | B126: =IRR(C126:W126,0.12) -> -0.02347464514 | C126: =-PRICE_CAPS -> -6000000 | D126: =D$62 -> 398455 | E126: =E$62+E$80 -> 5332509.202 | X126: =NPV(DISCRATE,D126:W126) -> 4606807.081
A127: 3 Year | B127: 0.02090175105 | C127: -6000000 | D127: 398455 | E127: 414393.2 | F127: =F$62+F$80 -> 5545809.57 | X127: 4633512.825
A128: 4 Year | B128: 0.04379240618 | C128: -6000000 | D128: 398455 | E128: 414393.2 | F128: 430968.928 | G128: =G$62+G$80 -> 5767641.953 | X128: 4658311.016
A129: 5 Year | B129: 0.05772936034 | C129: -6000000 | D129: 398455 | E129: 414393.2 | F129: 430968.928 | G129: 448207.6851 | H129: =H$62+H$80 -> 5998347.631 | X129: 4681337.908
A130: 6 Year | B130: 0.06708681578 | C130: -6000000 | D130: 398455 | E130: 414393.2 | F130: 430968.928 | G130: 448207.6851 | H130: 466135.9925 | I130: =I$62+I$80 -> 6238281.536 | X130: 4702720.021
A131: 7 Year | B131: 0.07378926744 | C131: -6000000 | D131: 398455 | E131: 414393.2 | F131: 430968.928 | G131: 448207.6851 | H131: 466135.9925 | I131: 484781.4322 | J131: =J$62+J$80 -> 6487812.798 | X131: 4722574.841
A132: 8 Year | B132: 0.07881564499 | C132: -6000000 | D132: 398455 | E132: 414393.2 | F132: 430968.928 | G132: 448207.6851 | H132: 466135.9925 | I132: 484781.4322 | J132: 504172.6895 | K132: =K$62+K$80 -> 6747325.309 | X132: 4741011.46
A133: 9 Year | B133: 0.08271648306 | C133: -6000000 | D133: 398455 | E133: 414393.2 | F133: 430968.928 | G133: 448207.6851 | H133: 466135.9925 | I133: 484781.4322 | J133: 504172.6895 | K133: 524339.5971 | L133: =L$62+L$80 -> 7017218.322 | X133: 4758131.177
A134: 10 Year | B134: 0.0858251456 | C134: -6000000 | D134: 398455 | E134: 414393.2 | F134: 430968.928 | G134: 448207.6851 | H134: 466135.9925 | I134: 484781.4322 | J134: 504172.6895 | K134: 524339.5971 | L134: 545313.181 | M134: =M$62+M$80 -> 7297907.055 | X134: 4774028.057
A135: 11 Year | B135: 0.0883552982 | C135: -6000000 | D135: 398455 | E135: 414393.2 | F135: 430968.928 | G135: 448207.6851 | H135: 466135.9925 | I135: 484781.4322 | J135: 504172.6895 | K135: 524339.5971 | L135: 545313.181 | M135: 567125.7082 | N135: =N$62+N$80 -> 7589823.337 | X135: 4788789.446
A136: 12 Year | B136: 0.09045020856 | C136: -6000000 | D136: 398455 | E136: 414393.2 | F136: 430968.928 | G136: 448207.6851 | H136: 466135.9925 | I136: 484781.4322 | J136: 504172.6895 | K136: 524339.5971 | L136: 545313.181 | M136: 567125.7082 | N136: 589810.7365 | O136: =O$62+O$80 -> 7893416.27 | X136: 4802496.45
A137: 13 Year | B137: 0.09220953518 | C137: -6000000 | D137: 398455 | E137: 414393.2 | F137: 430968.928 | G137: 448207.6851 | H137: 466135.9925 | I137: 484781.4322 | J137: 504172.6895 | K137: 524339.5971 | L137: 545313.181 | M137: 567125.7082 | N137: 589810.7365 | O137: 613403.166 | P137: =P$62+P$80 -> 8209152.921 | X137: 4815224.382
A138: 14 Year | B138: 0.09370474849 | C138: -6000000 | D138: 398455 | E138: 414393.2 | F138: 430968.928 | G138: 448207.6851 | H138: 466135.9925 | I138: 484781.4322 | J138: 504172.6895 | K138: 524339.5971 | L138: 545313.181 | M138: 567125.7082 | N138: 589810.7365 | O138: 613403.166 | P138: 637939.2926 | Q138: =Q$62+Q$80 -> 8537519.038 | X138: 4827043.176
A139: 15 Year | B139: 0.09498844028 | C139: -6000000 | D139: 398455 | E139: 414393.2 | F139: 430968.928 | G139: 448207.6851 | H139: 466135.9925 | I139: 484781.4322 | J139: 504172.6895 | K139: 524339.5971 | L139: 545313.181 | M139: 567125.7082 | N139: 589810.7365 | O139: 613403.166 | P139: 637939.2926 | Q139: 663456.8644 | R139: =R$62+R$80 -> 8879019.8 | X139: 4838017.771
A140: 16 Year | B140: 0.09610017201 | C140: -6000000 | D140: 398455 | E140: 414393.2 | F140: 430968.928 | G140: 448207.6851 | H140: 466135.9925 | I140: 484781.4322 | J140: 504172.6895 | K140: 524339.5971 | L140: 545313.181 | M140: 567125.7082 | N140: 589810.7365 | O140: 613403.166 | P140: 637939.2926 | Q140: 663456.8644 | R140: 689995.1389 | S140: =S$62+S$80 -> 9234180.592 | X140: 4848208.466
A141: 17 Year | B141: 0.09707027585 | C141: -6000000 | D141: 398455 | E141: 414393.2 | F141: 430968.928 | G141: 448207.6851 | H141: 466135.9925 | I141: 484781.4322 | J141: 504172.6895 | K141: 524339.5971 | L141: 545313.181 | M141: 567125.7082 | N141: 589810.7365 | O141: 613403.166 | P141: 637939.2926 | Q141: 663456.8644 | R141: 689995.1389 | S141: =S$62 -> 717594.9445 | T141: =T$62+T$80 -> 9603547.815 | X141: 4857671.254
A142: 18 Year | B142: 0.09792239828 | C142: -6000000 | D142: =D$62 -> 398455 | E142: 414393.2 | F142: 430968.928 | G142: 448207.6851 | H142: 466135.9925 | I142: 484781.4322 | J142: 504172.6895 | K142: 524339.5971 | L142: 545313.181 | M142: 567125.7082 | N142: 589810.7365 | O142: 613403.166 | P142: 637939.2926 | Q142: 663456.8644 | R142: 689995.1389 | S142: =S$62 -> 717594.9445 | T142: =T$62 -> 746298.7423 | U142: =U$62+U$80 -> 9987689.728 | X142: 4866458.129
A143: 19 Year | B143: 0.0986752463 | C143: -6000000 | D143: 398455 | E143: 414393.2 | F143: 430968.928 | G143: 448207.6851 | H143: 466135.9925 | I143: 484781.4322 | J143: 504172.6895 | K143: 524339.5971 | L143: 545313.181 | M143: 567125.7082 | N143: 589810.7365 | O143: 613403.166 | P143: 637939.2926 | Q143: 663456.8644 | R143: 689995.1389 | S143: =S$62 -> 717594.9445 | T143: =T$62 -> 746298.7423 | U143: =U$62 -> 776150.692 | V143: =V$62+V$80 -> 10387197.32 | X143: 4874617.369
A144: 20 Year | B144: 0.09934381342 | C144: -6000000 | D144: =D$62 -> 398455 | E144: 414393.2 | F144: 430968.928 | G144: 448207.6851 | H144: 466135.9925 | I144: 484781.4322 | J144: 504172.6895 | K144: 524339.5971 | L144: 545313.181 | M144: 567125.7082 | N144: 589810.7365 | O144: 613403.166 | P144: 637939.2926 | Q144: 663456.8644 | R144: 689995.1389 | S144: =S$62 -> 717594.9445 | T144: =T$62 -> 746298.7423 | U144: =U$62 -> 776150.692 | V144: =V$62 -> 807196.7196 | W144: =W$62+W$80 -> 10802685.21 | X144: 4882193.807
B146: Value by Direct Cap | C146: =D62/CAPIN -> 4980687.5
B148: Equity Return Measures
B150: Cash on Cash (EDR) | D150: =D69/EQUITY -> -0.06813351298 | E150: -0.05042440187 | F150: -0.03200692631 | G150: -0.01285275173 | H150: 0.007067589828 | I150: 0.02778474505 | J150: 0.04933058648 | K150: 0.07173826157 | L150: 0.09504224367 | M150: 0.119278385 | N150: 0.1444839721 | O150: 0.1706977826 | P150: 0.1979601455 | Q150: 0.226313003 | R150: 0.2557999747 | S150: 0.2864664253 | T150: 0.318359534 | U150: 0.351528367 | V150: 0.3860239533 | W150: 0.421899363
B152: Overall IRR | X152: ="Present Value at "&TEXT(EQRATE, "0.00%") -> Present Value at 15.00%
A153: 1 Year | B153: =IRR(C153:W153,0.12) ->  | C153: =-EQUITY -> -900000 | D153: =D$69+D$82 -> -391827.3213 | X153: =NPV(EQRATE,D153:W153) -> -340719.4099
A154: 2 Year | B154: =IRR(C154:W154,0.12) ->  | C154: =-EQUITY -> -900000 | D154: =D$69 -> -61320.16168 | E154: =E$69+E$82 -> -142722.124 | X154: =NPV(EQRATE,D154:W154) -> -161240.3099
A155: 3 Year | B155: -0.5446400387 | C155: -900000 | D155: =D$69 -> -61320.16168 | E155: -45381.96168 | F155: =F$69+F$82 -> 118358.1324 | X155: -9814.769329
A156: 4 Year | B156: -0.2307545983 | C156: -900000 | D156: -61320.16168 | E156: -45381.96168 | F156: -28806.23368 | G156: =G$69+G$82 -> 392064.7644 | X156: 117586.5726
A157: 5 Year | B157: -0.08802663466 | C157: -900000 | D157: -61320.16168 | E157: -45381.96168 | F157: -28806.23368 | G157: -11567.47656 | H157: =H$69+H$82 -> 679089.907 | X157: 224436.2318
A158: 6 Year | B158: -0.0103616209 | C158: -900000 | D158: -61320.16168 | E158: -45381.96168 | F158: -28806.23368 | G158: -11567.47656 | H158: 6360.830846 | I158: =I$69+I$82 -> 980169.4121 | X158: 313725.2715
A159: 7 Year | B159: 0.03599753653 | C159: -900000 | D159: -61320.16168 | E159: -45381.96168 | F159: -28806.23368 | G159: -11567.47656 | H159: 6360.830846 | I159: 25006.27055 | J159: =J$69+J$82 -> 1296085.971 | X159: 388028.6101
A160: 8 Year | B160: 0.06545816763 | C160: -900000 | D160: -61320.16168 | E160: -45381.96168 | F160: -28806.23368 | G160: -11567.47656 | H160: 6360.830846 | I160: 25006.27055 | J160: 44397.52784 | K160: =K$69+K$82 -> 1627672.478 | X160: 449561.5822
A161: 9 Year | B161: 0.08505439631 | C161: -900000 | D161: -61320.16168 | E161: -45381.96168 | F161: -28806.23368 | G161: -11567.47656 | H161: 6360.830846 | I161: 25006.27055 | J161: 44397.52784 | K161: 64564.43542 | L161: =L$69+L$82 -> 1975815.66 | X161: 500228.9157
A162: 10 Year | B162: 0.09854687336 | C162: -900000 | D162: -61320.16168 | E162: -45381.96168 | F162: -28806.23368 | G162: -11567.47656 | H162: 6360.830846 | I162: 25006.27055 | J162: 44397.52784 | K162: 64564.43542 | L162: 85538.0193 | M162: =M$69+M$82 -> 2341459.987 | X162: 541667.133
A163: 11 Year | B163: 0.1080875587 | C163: -900000 | D163: -61320.16168 | E163: -45381.96168 | F163: -28806.23368 | G163: -11567.47656 | H163: 6360.830846 | I163: 25006.27055 | J163: 44397.52784 | K163: 64564.43542 | L163: 85538.0193 | M163: 107350.5465 | N163: =N$69+N$82 -> 2725611.89 | X163: 575281.251
A164: 12 Year | B164: 0.114975382 | C164: -900000 | D164: -61320.16168 | E164: -45381.96168 | F164: -28806.23368 | G164: -11567.47656 | H164: 6360.830846 | I164: 25006.27055 | J164: 44397.52784 | K164: 64564.43542 | L164: 85538.0193 | M164: 107350.5465 | N164: 130035.5749 | O164: =O$69+O$82 -> 3129344.312 | X164: 602276.5403
A165: 13 Year | B165: 0.120028968 | C165: -900000 | D165: -61320.16168 | E165: -45381.96168 | F165: -28806.23368 | G165: -11567.47656 | H165: 6360.830846 | I165: 25006.27055 | J165: 44397.52784 | K165: 64564.43542 | L165: 85538.0193 | M165: 107350.5465 | N165: 130035.5749 | O165: 153628.0043 | P165: =P$69+P$82 -> 3553801.619 | X165: 623686.001
A166: 14 Year | B166: 0.1237829657 | C166: -900000 | D166: -61320.16168 | E166: -45381.96168 | F166: -28806.23368 | G166: -11567.47656 | H166: 6360.830846 | I166: 25006.27055 | J166: 44397.52784 | K166: 64564.43542 | L166: 85538.0193 | M166: 107350.5465 | N166: 130035.5749 | O166: 153628.0043 | P166: 178164.131 | Q166: =Q$69+Q$82 -> 4000204.896 | X166: 640394.1273
A167: 15 Year | B167: 0.1265971682 | C167: -900000 | D167: -61320.16168 | E167: -45381.96168 | F167: -28806.23368 | G167: -11567.47656 | H167: 6360.830846 | I167: 25006.27055 | J167: 44397.52784 | K167: 64564.43542 | L167: 85538.0193 | M167: 107350.5465 | N167: 130035.5749 | O167: 153628.0043 | P167: 178164.131 | Q167: 203681.7027 | R167: =R$69+R$82 -> 4469857.676 | X167: 653157.4573
A168: 16 Year | B168: 0.1287199405 | C168: -900000 | D168: -61320.16168 | E168: -45381.96168 | F168: -28806.23368 | G168: -11567.47656 | H168: 6360.830846 | I168: 25006.27055 | J168: 44397.52784 | K168: 64564.43542 | L168: 85538.0193 | M168: 107350.5465 | N168: 130035.5749 | O168: 153628.0043 | P168: 178164.131 | Q168: 203681.7027 | R168: 230219.9773 | S168: =S$69+S$82 -> 4964152.106 | X168: 662622.3366
A169: 17 Year | B169: 0.1303265212 | C169: -900000 | D169: -61320.16168 | E169: -45381.96168 | F169: -28806.23368 | G169: -11567.47656 | H169: 6360.830846 | I169: 25006.27055 | J169: 44397.52784 | K169: 64564.43542 | L169: 85538.0193 | M169: 107350.5465 | N169: 130035.5749 | O169: 153628.0043 | P169: 178164.131 | Q169: 203681.7027 | R169: 230219.9773 | S169: 257819.7828 | T169: =T$69+T$82 -> 5484575.627 | X169: 669340.2701
A170: 18 Year | B170: 0.1315429203 | C170: -900000 | D170: -61320.16168 | E170: -45381.96168 | F170: -28806.23368 | G170: -11567.47656 | H170: 6360.830846 | I170: 25006.27055 | J170: 44397.52784 | K170: 64564.43542 | L170: 85538.0193 | M170: 107350.5465 | N170: 130035.5749 | O170: 153628.0043 | P170: 178164.131 | Q170: 203681.7027 | R170: 230219.9773 | S170: 257819.7828 | T170: 286523.5806 | U170: =U$69+U$82 -> 6032718.173 | X170: 673781.1837
A171: 19 Year | B171: 0.1324612618 | C171: -900000 | D171: -61320.16168 | E171: -45381.96168 | F171: -28806.23368 | G171: -11567.47656 | H171: 6360.830846 | I171: 25006.27055 | J171: 44397.52784 | K171: 64564.43542 | L171: 85538.0193 | M171: 107350.5465 | N171: 130035.5749 | O171: 153628.0043 | P171: 178164.131 | Q171: 203681.7027 | R171: 230219.9773 | S171: 257819.7828 | T171: 286523.5806 | U171: 316375.5303 | V171: =V$69+V$82 -> 6610279.962 | X171: 676344.8787
A172: 20 Year | B172: 0.1331498829 | C172: -900000 | D172: -61320.16168 | E172: -45381.96168 | F172: -28806.23368 | G172: -11567.47656 | H172: 6360.830846 | I172: 25006.27055 | J172: 44397.52784 | K172: 64564.43542 | L172: 85538.0193 | M172: 107350.5465 | N172: 130035.5749 | O172: 153628.0043 | P172: 178164.131 | Q172: 203681.7027 | R172: 230219.9773 | S172: 257819.7828 | T172: 286523.5806 | U172: 316375.5303 | V172: 347421.558 | W172: =W$69+W$82 -> 7219079.899 | X172: 677370.9195

Sheet PartnershipCF
A1: PARTNERSHIP CASH FLOWS
A2: APARTMENT INVESTMENT
A3: =PropName -> Mertz Apartments
A4: =PropAddr -> 555 Main Street
A6: OVERALL PROPERTY CASH FLOWS
B7: Year 1 | C7: Year 2 | D7: Year 3 | E7: Year 4 | F7: Year 5 | G7: Year 6 | H7: Year 7 | I7: Year 8 | J7: Year 9 | K7: Year 10 | L7: Year 11 | M7: Year 12 | N7: Year 13 | O7: Year 14 | P7: Year 15 | Q7: Year 16 | R7: Year 17 | S7: Year 18 | T7: Year 19 | U7: Year 20 | V7: Year 21
A8: BTCF | B8: ='Cash Flow'!D69 -> -61320.16168 | C8: ='Cash Flow'!E69 -> -45381.96168 | D8: ='Cash Flow'!F69 -> -28806.23368 | E8: ='Cash Flow'!G69 -> -11567.47656 | F8: ='Cash Flow'!H69 -> 6360.830846 | G8: ='Cash Flow'!I69 -> 25006.27055 | H8: ='Cash Flow'!J69 -> 44397.52784 | I8: ='Cash Flow'!K69 -> 64564.43542 | J8: ='Cash Flow'!L69 -> 85538.0193 | K8: ='Cash Flow'!M69 -> 107350.5465 | L8: ='Cash Flow'!N69 -> 130035.5749 | M8: ='Cash Flow'!O69 -> 153628.0043 | N8: ='Cash Flow'!P69 -> 178164.131 | O8: ='Cash Flow'!Q69 -> 203681.7027 | P8: ='Cash Flow'!R69 -> 230219.9773 | Q8: ='Cash Flow'!S69 -> 257819.7828 | R8: ='Cash Flow'!T69 -> 286523.5806 | S8: ='Cash Flow'!U69 -> 316375.5303 | T8: ='Cash Flow'!V69 -> 347421.558 | U8: ='Cash Flow'!W69 -> 379709.4267 | V8: ='Cash Flow'!X69 -> 413288.8103
A9: Taxable Income | B9: ='Cash Flow'!D66 -> -143861.9385 | C9: ='Cash Flow'!E66 -> -124450.1952 | D9: ='Cash Flow'!F66 -> -104103.2684 | E9: ='Cash Flow'!G66 -> -82770.15049 | F9: ='Cash Flow'!H66 -> -60396.62773 | G9: ='Cash Flow'!I66 -> -36925.05267 | H9: ='Cash Flow'!J66 -> -12294.09817 | I9: ='Cash Flow'!K66 -> 13561.50749 | J9: ='Cash Flow'!L66 -> 40711.26616 | K9: ='Cash Flow'!M66 -> 69229.21781 | L9: ='Cash Flow'!N66 -> 99194.2727 | M9: ='Cash Flow'!O66 -> 130690.5698 | N9: ='Cash Flow'!P66 -> 163807.8634 | O9: ='Cash Flow'!Q66 -> 198641.9405 | P9: ='Cash Flow'!R66 -> 235295.0719 | Q9: ='Cash Flow'!S66 -> 273876.4979 | R9: ='Cash Flow'!T66 -> 314502.9547 | S9: ='Cash Flow'!U66 -> 357299.2415 | T9: ='Cash Flow'!V66 -> 402398.8343 | U9: ='Cash Flow'!W66 -> 449944.5482 | V9: ='Cash Flow'!X66 -> 500089.2543
A11: BTER | B11: ='Cash Flow'!D82 -> -330507.1596 | C11: ='Cash Flow'!E82 -> -97340.16228 | D11: ='Cash Flow'!F82 -> 147164.3661 | E11: ='Cash Flow'!G82 -> 403632.241 | F11: ='Cash Flow'!H82 -> 672729.0762 | G11: ='Cash Flow'!I82 -> 955163.1415 | H11: ='Cash Flow'!J82 -> 1251688.443 | I11: ='Cash Flow'!K82 -> 1563108.042 | J11: ='Cash Flow'!L82 -> 1890277.641 | K11: ='Cash Flow'!M82 -> 2234109.441 | L11: ='Cash Flow'!N82 -> 2595576.315 | M11: ='Cash Flow'!O82 -> 2975716.308 | N11: ='Cash Flow'!P82 -> 3375637.488 | O11: ='Cash Flow'!Q82 -> 3796523.194 | P11: ='Cash Flow'!R82 -> 4239637.698 | Q11: ='Cash Flow'!S82 -> 4706332.323 | R11: ='Cash Flow'!T82 -> 5198052.046 | S11: ='Cash Flow'!U82 -> 5716342.643 | T11: ='Cash Flow'!V82 -> 6262858.404 | U11: ='Cash Flow'!W82 -> 6839370.472
A12: Capital Gain | B12: ='Cash Flow'!D91 -> 0 | C12: ='Cash Flow'!E91 -> 0 | D12: ='Cash Flow'!F91 -> 0 | E12: ='Cash Flow'!G91 -> 0 | F12: ='Cash Flow'!H91 -> 0 | G12: ='Cash Flow'!I91 -> 0 | H12: ='Cash Flow'!J91 -> 0 | I12: ='Cash Flow'!K91 -> 1745.888681 | J12: ='Cash Flow'!L91 -> 326376.5833 | K12: ='Cash Flow'!M91 -> 689482.0068 | L12: ='Cash Flow'!N91 -> 1050012.6 | M12: ='Cash Flow'!O91 -> 1330013.104 | N12: ='Cash Flow'!P91 -> 1621213.629 | O12: ='Cash Flow'!Q91 -> 1924062.174 | P12: ='Cash Flow'!R91 -> 2239024.661 | Q12: ='Cash Flow'!S91 -> 2566585.647 | R12: ='Cash Flow'!T91 -> 2907249.073 | S12: ='Cash Flow'!U91 -> 3261539.036 | T12: ='Cash Flow'!V91 -> 3630000.597 | U12: ='Cash Flow'!W91 -> 4013200.621
A13: Capital Gain, Part I, Gain on Sale | B13: ='Cash Flow'!D90 -> 0 | C13: ='Cash Flow'!E90 -> 0 | D13: ='Cash Flow'!F90 -> 0 | E13: ='Cash Flow'!G90 -> 0 | F13: ='Cash Flow'!H90 -> 0 | G13: ='Cash Flow'!I90 -> 0 | H13: ='Cash Flow'!J90 -> 33640.10803 | I13: ='Cash Flow'!K90 -> 272985.7124 | J13: ='Cash Flow'!L90 -> 521905.1408 | K13: ='Cash Flow'!M90 -> 780781.3465 | L13: ='Cash Flow'!N90 -> 1050012.6 | M13: ='Cash Flow'!O90 -> 1330013.104 | N13: ='Cash Flow'!P90 -> 1621213.629 | O13: ='Cash Flow'!Q90 -> 1924062.174 | P13: ='Cash Flow'!R90 -> 2239024.661 | Q13: ='Cash Flow'!S90 -> 2566585.647 | R13: ='Cash Flow'!T90 -> 2907249.073 | S13: ='Cash Flow'!U90 -> 3261539.036 | T13: ='Cash Flow'!V90 -> 3630000.597 | U13: ='Cash Flow'!W90 -> 4013200.621
A14: Capital Gain, Part II, Depr Recapture | B14: ='Cash Flow'!D95 -> 123076.9231 | C14: ='Cash Flow'!E95 -> 246153.8462 | D14: ='Cash Flow'!F95 -> 369230.7692 | E14: ='Cash Flow'!G95 -> 492307.6923 | F14: ='Cash Flow'!H95 -> 615384.6154 | G14: ='Cash Flow'!I95 -> 738461.5385 | H14: ='Cash Flow'!J95 -> 861538.4615 | I14: ='Cash Flow'!K95 -> 984615.3846 | J14: ='Cash Flow'!L95 -> 1107692.308 | K14: ='Cash Flow'!M95 -> 1230769.231 | L14: ='Cash Flow'!N95 -> 1353846.154 | M14: ='Cash Flow'!O95 -> 1476923.077 | N14: ='Cash Flow'!P95 -> 1600000 | O14: ='Cash Flow'!Q95 -> 1723076.923 | P14: ='Cash Flow'!R95 -> 1846153.846 | Q14: ='Cash Flow'!S95 -> 1969230.769 | R14: ='Cash Flow'!T95 -> 2092307.692 | S14: ='Cash Flow'!U95 -> 2215384.615 | T14: ='Cash Flow'!V95 -> 2338461.538 | U14: ='Cash Flow'!W95 -> 2461538.462
A15: Gain Realized on Sale | B15: ='Cash Flow'!D102 -> -1097965.383 | C15: ='Cash Flow'!E102 -> -785730.152 | D15: ='Cash Flow'!F102 -> -465928.5888 | E15: ='Cash Flow'!G102 -> -138258.0401 | F15: ='Cash Flow'!H102 -> 197596.2537 | G15: ='Cash Flow'!I102 -> 541961.6423 | H15: ='Cash Flow'!J102 -> 895178.5696 | I15: ='Cash Flow'!K102 -> 1257601.097 | J15: ='Cash Flow'!L102 -> 1629597.449 | K15: ='Cash Flow'!M102 -> 2011550.577 | L15: ='Cash Flow'!N102 -> 2403858.754 | M15: ='Cash Flow'!O102 -> 2806936.181 | N15: ='Cash Flow'!P102 -> 3221213.629 | O15: ='Cash Flow'!Q102 -> 3647139.097 | P15: ='Cash Flow'!R102 -> 4085178.507 | Q15: ='Cash Flow'!S102 -> 4535816.416 | R15: ='Cash Flow'!T102 -> 4999556.765 | S15: ='Cash Flow'!U102 -> 5476923.651 | T15: ='Cash Flow'!V102 -> 5968462.136 | U15: ='Cash Flow'!W102 -> 6474739.083
A17: GENERAL PARTNER CASH FLOWS
A18: BTCF | B18: =B8*GPCASHOPS -> -18396.0485 | C18: -13614.5885 | D18: -8641.870104 | E18: -3470.242968 | F18: 1908.249254 | G18: 7501.881164 | H18: 13319.25835 | I18: 19369.33062 | J18: 25661.40579 | K18: 32205.16396 | L18: 39010.67246 | M18: 46088.4013 | N18: 53449.23929 | O18: 61104.5108 | P18: 69065.99318 | Q18: 77345.93484 | R18: 85957.07418 | S18: 94912.65908 | T18: 104226.4674 | U18: 113912.828
A20: Taxes | B20: =B29 -> 9800 | C20: =C29 -> 9800 | D20: 9800 | E20: 8835.586417 | F20: 5073.31673 | G20: 3101.704425 | H20: 1032.704246 | I20: -1139.166629 | J20: -3419.746357 | K20: -5815.254296 | L20: -8332.318907 | M20: -10978.00786 | N20: -13759.86052 | O20: -16685.92301 | P20: -19764.78604 | Q20: -23005.62582 | R20: -26418.24819 | S20: -30013.13629 | T20: -33801.50208 | U20: -37795.34205
A22: BTER | B22: =B11*GPREV -> -99152.14789 | C22: -29202.04868 | D22: 44149.30984 | E22: 121089.6723 | F22: 201818.7228 | G22: 286548.9425 | H22: 375506.5328 | I22: 468932.4127 | J22: 567083.2922 | K22: 670232.8322 | L22: 778672.8946 | M22: 892714.8924 | N22: 1012691.246 | O22: 1138956.958 | P22: 1271891.309 | Q22: 1411899.697 | R22: 1559415.614 | S22: 1714902.793 | T22: 1878857.521 | U22: 2051811.142
A25: PASSIVE LOSSES
A26: Taxable Income | B26: =B9*GPTI -> -43158.58156 | C26: -37335.05855 | D26: -31230.98053 | E26: -24831.04515 | F26: -18118.98832 | G26: -11077.5158 | H26: -3688.22945 | I26: 4068.452248 | J26: 12213.37985 | K26: 20768.76534 | L26: 29758.28181 | M26: 39207.17093 | N26: 49142.35901 | O26: 59592.58216 | P26: 70588.52156 | Q26: 82162.94937 | R26: 94350.8864 | S26: 107189.7725 | T26: 120719.6503 | U26: 134983.3645
A27: Balance of PLCF | B27: =IF(-B26>=GPPLL,B26+GPPLL,0) -> -8158.581557 | C27: =IF(-C28>=GPPLL,C28+GPPLL,0) -> -10493.6401 | D27: -6724.620629 | E27: 0 | F27: 0 | G27: 0 | H27: 0 | I27: 0 | J27: 0 | K27: 0 | L27: 0 | M27: 0 | N27: 0 | O27: 0 | P27: 0 | Q27: 0 | R27: 0 | S27: 0 | T27: 0 | U27: 0
A28: Sum of PLCF and Current TI | C28: =B27+C26 -> -45493.6401 | D28: =C27+D26 -> -41724.62063 | E28: -31555.66578 | F28: -18118.98832 | G28: -11077.5158 | H28: -3688.22945 | I28: 4068.452248 | J28: 12213.37985 | K28: 20768.76534 | L28: 29758.28181 | M28: 39207.17093 | N28: 49142.35901 | O28: 59592.58216 | P28: 70588.52156 | Q28: 82162.94937 | R28: 94350.8864 | S28: 107189.7725 | T28: 120719.6503 | U28: 134983.3645
A29: GP Taxes | B29: =IF(-B26<=GPPLL,-GPTAXRATE*B26,GPTAXRATE*GPPLL) -> 9800 | C29: =IF(-C28<=GPPLL,-GPTAXRATE*C28,GPTAXRATE*GPPLL) -> 9800 | D29: 9800 | E29: 8835.586417 | F29: 5073.31673 | G29: 3101.704425 | H29: 1032.704246 | I29: -1139.166629 | J29: -3419.746357 | K29: -5815.254296 | L29: -8332.318907 | M29: -10978.00786 | N29: -13759.86052 | O29: -16685.92301 | P29: -19764.78604 | Q29: -23005.62582 | R29: -26418.24819 | S29: -30013.13629 | T29: -33801.50208 | U29: -37795.34205
A31: CAPITAL GAINS TAXES
A32: Cap Gain Part I, Gain Realized on Sale
A33: GP Share of Gain | B33: =B13*GPGAIN -> 0 | C33: 0 | D33: 0 | E33: 0 | F33: 0 | G33: 0 | H33: 10092.03241 | I33: 81895.71371 | J33: 156571.5423 | K33: 234234.4039 | L33: 315003.7801 | M33: 399003.9313 | N33: 486364.0886 | O33: 577218.6521 | P33: 671707.3982 | Q33: 769975.6941 | R33: 872174.7219 | S33: 978461.7108 | T33: 1089000.179 | U33: 1203960.186
A34: GP Share of Gain, after PLCF | B34: =MAX(B33+B27,0) -> 0 | C34: =MAX(C33+C27,0) -> 0 | D34: 0 | E34: 0 | F34: 0 | G34: 0 | H34: 10092.03241 | I34: 81895.71371 | J34: 156571.5423 | K34: 234234.4039 | L34: 315003.7801 | M34: 399003.9313 | N34: 486364.0886 | O34: 577218.6521 | P34: 671707.3982 | Q34: 769975.6941 | R34: 872174.7219 | S34: 978461.7108 | T34: 1089000.179 | U34: 1203960.186
A35: Tax on Part I of Gain | B35: =-B34*GPKTRATE -> 0 | C35: 0 | D35: 0 | E35: 0 | F35: 0 | G35: 0 | H35: -2018.406482 | I35: -16379.14274 | J35: -31314.30845 | K35: -46846.88079 | L35: -63000.75602 | M35: -79800.78626 | N35: -97272.81771 | O35: -115443.7304 | P35: -134341.4796 | Q35: -153995.1388 | R35: -174434.9444 | S35: -195692.3422 | T35: -217800.0358 | U35: -240792.0373
A36: Memo: Remaining PLCF | B36: =IF(B33>=0,-((B34-B33)-B27),0) -> -8158.581557 | C36: =IF(C33>=0,-((C34-C33)-C27),0) -> -10493.6401 | D36: -6724.620629 | E36: 0 | F36: 0 | G36: 0 | H36: 0 | I36: 0 | J36: 0 | K36: 0 | L36: 0 | M36: 0 | N36: 0 | O36: 0 | P36: 0 | Q36: 0 | R36: 0 | S36: 0 | T36: 0 | U36: 0
A38: Cap Gain Part II, depreciation recapture
A39: GP Share of Gain | B39: =B14*GPGAIN -> 36923.07692 | C39: 73846.15385 | D39: 110769.2308 | E39: 147692.3077 | F39: 184615.3846 | G39: 221538.4615 | H39: 258461.5385 | I39: 295384.6154 | J39: 332307.6923 | K39: 369230.7692 | L39: 406153.8462 | M39: 443076.9231 | N39: 480000 | O39: 516923.0769 | P39: 553846.1538 | Q39: 590769.2308 | R39: 627692.3077 | S39: 664615.3846 | T39: 701538.4615 | U39: 738461.5385
A40: GP Share of Gain, after PLCF | B40: =MAX(B39+B36,0) -> 28764.49537 | C40: =MAX(C39+C36,0) -> 63352.51374 | D40: 104044.6101 | E40: 147692.3077 | F40: 184615.3846 | G40: 221538.4615 | H40: 258461.5385 | I40: 295384.6154 | J40: 332307.6923 | K40: 369230.7692 | L40: 406153.8462 | M40: 443076.9231 | N40: 480000 | O40: 516923.0769 | P40: 553846.1538 | Q40: 590769.2308 | R40: 627692.3077 | S40: 664615.3846 | T40: 701538.4615 | U40: 738461.5385
A41: GP Share; Gain Realized on Sale | B41: =B15*GPGAIN -> -329389.6148 | C41: -235719.0456 | D41: -139778.5766 | E41: -41477.41202 | F41: 59278.87612 | G41: 162588.4927 | H41: 268553.5709 | I41: 377280.3291 | J41: 488879.2346 | K41: 603465.1732 | L41: 721157.6263 | M41: 842080.8544 | N41: 966364.0886 | O41: 1094141.729 | P41: 1225553.552 | Q41: 1360744.925 | R41: 1499867.03 | S41: 1643077.095 | T41: 1790538.641 | U41: 1942421.725
A42: Tax on Part II of Gain | B42: =MIN(-GPKTRDEPR*IF(B41>B40,B40,B41),0) -> 0 | C42: 0 | D42: 0 | E42: 0 | F42: -14819.71903 | G42: -40647.12318 | H42: -64615.38462 | I42: -73846.15385 | J42: -83076.92308 | K42: -92307.69231 | L42: -101538.4615 | M42: -110769.2308 | N42: -120000 | O42: -129230.7692 | P42: -138461.5385 | Q42: -147692.3077 | R42: -156923.0769 | S42: -166153.8462 | T42: -175384.6154 | U42: -184615.3846
A43: Memo: Remaining PLCF
A45: GP Total Capital Gains Tax | B45: =B35+B42 -> 0 | C45: =C35+C42 -> 0 | D45: 0 | E45: 0 | F45: -14819.71903 | G45: -40647.12318 | H45: -66633.7911 | I45: -90225.29659 | J45: -114391.2315 | K45: -139154.5731 | L45: -164539.2176 | M45: -190570.017 | N45: -217272.8177 | O45: -244674.4997 | P45: -272803.0181 | Q45: -301687.4465 | R45: -331358.0213 | S45: -361846.1883 | T45: -393184.6512 | U45: -425407.4219
A49: LIMITED PARTNER CASH FLOWS
A50: BTCF | B50: =B8*LPCASHOPS -> -42924.11318 | C50: -31767.37318 | D50: -20164.36358 | E50: -8097.233591 | F50: 4452.581592 | G50: 17504.38938 | H50: 31078.26948 | I50: 45195.10479 | J50: 59876.61351 | K50: 75145.38258 | L50: 91024.90241 | M50: 107539.603 | N50: 124714.8917 | O50: 142577.1919 | P50: 161153.9841 | Q50: 180473.848 | R50: 200566.5064 | S50: 221462.8712 | T50: 243195.0906 | U50: 265796.5987
A52: Taxable Income | B52: =B9*LPTI -> -100703.357 | C52: -87115.13661 | D52: -72872.2879 | E52: -57939.10534 | F52: -42277.63941 | G52: -25847.53687 | H52: -8605.868717 | I52: 9493.055245 | J52: 28497.88631 | K52: 48460.45247 | L52: 69435.99089 | M52: 91483.39885 | N52: 114665.5043 | O52: 139049.3584 | P52: 164706.5503 | Q52: 191713.5485 | R52: 220152.0683 | S52: 250109.4691 | T52: 281679.184 | U52: 314961.1838
A53: Taxes
A55: BTER | B55: =B11*LPREV -> -231355.0118 | C55: -68138.1136 | D55: 103015.0563 | E55: 282542.5687 | F55: 470910.3533 | G55: 668614.1991 | H55: 876181.9099 | I55: 1094175.63 | J55: 1323194.348 | K55: 1563876.608 | L55: 1816903.421 | M55: 2083001.416 | N55: 2362946.241 | O55: 2657566.236 | P55: 2967746.389 | Q55: 3294432.626 | R55: 3638636.432 | S55: 4001439.85 | T55: 4384000.883 | U55: 4787559.331
A57: PASSIVE LOSSES
A58: Taxable Income | B58: =B41*LPTI -> -230572.7304 | C58: -165003.3319 | D58: -97845.00365 | E58: -29034.18841 | F58: 41495.21328 | G58: 113811.9449 | H58: 187987.4996 | I58: 264096.2304 | J58: 342215.4642 | K58: 422425.6212 | L58: 504810.3384 | M58: 589456.5981 | N58: 676454.862 | O58: 765899.2103 | P58: 857887.4864 | Q58: 952521.4474 | R58: 1049906.921 | S58: 1150153.967 | T58: 1253377.049 | U58: 1359695.207
A59: Balance of PLCF | B59: =IF(-B58>=LPPLL,B58+LPPLL,0) -> -220572.7304 | C59: -155003.3319 | D59: -87845.00365 | E59: -19034.18841 | F59: 0 | G59: 0 | H59: 0 | I59: 0 | J59: 0 | K59: 0 | L59: 0 | M59: 0 | N59: 0 | O59: 0 | P59: 0 | Q59: 0 | R59: 0 | S59: 0 | T59: 0 | U59: 0
A60: Sum of PLCF and Current TI | C60: =B59+C58 -> -385576.0623 | D60: =C59+D58 -> -252848.3356 | E60: -116879.1921 | F60: 22461.02487 | G60: 113811.9449 | H60: 187987.4996 | I60: 264096.2304 | J60: 342215.4642 | K60: 422425.6212 | L60: 504810.3384 | M60: 589456.5981 | N60: 676454.862 | O60: 765899.2103 | P60: 857887.4864 | Q60: 952521.4474 | R60: 1049906.921 | S60: 1150153.967 | T60: 1253377.049 | U60: 1359695.207
A61: LP Taxes | B61: =IF(-B58<=LPPLL,-LPTAXRATE*B58,LPTAXRATE*LPPLL) -> 2800 | C61: 2800 | D61: 2800 | E61: 2800 | F61: -11618.65972 | G61: -31867.34457 | H61: -52636.49989 | I61: -73946.9445 | J61: -95820.32997 | K61: -118279.1739 | L61: -141346.8947 | M61: -165047.8475 | N61: -189407.3614 | O61: -214451.7789 | P61: -240208.4962 | Q61: -266706.0053 | R61: -293973.9378 | S61: -322043.1107 | T61: -350945.5736 | U61: -380714.6581
A63: CAPITAL GAINS TAXES
A64: Cap Gain Part I, Gain Realized on Sale
A65: LP Share of Gain | B65: =B13*LPGAIN -> 0 | C65: 0 | D65: 0 | E65: 0 | F65: 0 | G65: 0 | H65: 23548.07562 | I65: 191089.9986 | J65: 365333.5986 | K65: 546546.9425 | L65: 735008.8202 | M65: 931009.173 | N65: 1134849.54 | O65: 1346843.522 | P65: 1567317.262 | Q65: 1796609.953 | R65: 2035074.351 | S65: 2283077.325 | T65: 2541000.418 | U65: 2809240.435
A66: LP Share of Gain, after PLCF | B66: =MAX(B65+B59,0) -> 0 | C66: 0 | D66: 0 | E66: 0 | F66: 0 | G66: 0 | H66: 23548.07562 | I66: 191089.9986 | J66: 365333.5986 | K66: 546546.9425 | L66: 735008.8202 | M66: 931009.173 | N66: 1134849.54 | O66: 1346843.522 | P66: 1567317.262 | Q66: 1796609.953 | R66: 2035074.351 | S66: 2283077.325 | T66: 2541000.418 | U66: 2809240.435
A67: Tax on Part I of Gain | B67: =-B66*LPKTRATE -> 0 | C67: 0 | D67: 0 | E67: 0 | F67: 0 | G67: 0 | H67: -4709.615124 | I67: -38217.99973 | J67: -73066.71972 | K67: -109309.3885 | L67: -147001.764 | M67: -186201.8346 | N67: -226969.908 | O67: -269368.7043 | P67: -313463.4525 | Q67: -359321.9906 | R67: -407014.8702 | S67: -456615.465 | T67: -508200.0836 | U67: -561848.087
A68: Memo: Remaining PLCF | B68: =IF(B65>=0,-((B66-B65)-B59),0) -> -220572.7304 | C68: =IF(C65>=0,-((C66-C65)-C59),0) -> -155003.3319 | D68: =IF(D65>=0,-((D66-D65)-D59),0) -> -87845.00365 | E68: -19034.18841 | F68: 0 | G68: 0 | H68: 0 | I68: 0 | J68: 0 | K68: 0 | L68: 0 | M68: 0 | N68: 0 | O68: 0 | P68: 0 | Q68: 0 | R68: 0 | S68: 0 | T68: 0 | U68: 0
A70: Cap Gain Part II, depreciation recapture
A71: LP Share of Gain | B71: =B14*LPGAIN -> 86153.84615 | C71: 172307.6923 | D71: 258461.5385 | E71: 344615.3846 | F71: 430769.2308 | G71: 516923.0769 | H71: 603076.9231 | I71: 689230.7692 | J71: 775384.6154 | K71: 861538.4615 | L71: 947692.3077 | M71: 1033846.154 | N71: 1120000 | O71: 1206153.846 | P71: 1292307.692 | Q71: 1378461.538 | R71: 1464615.385 | S71: 1550769.231 | T71: 1636923.077 | U71: 1723076.923
A72: LP Share of Gain, after PLCF | B72: =MAX(B71+B68,0) -> 0 | C72: 17304.3604 | D72: 170616.5348 | E72: 325581.1962 | F72: 430769.2308 | G72: 516923.0769 | H72: 603076.9231 | I72: 689230.7692 | J72: 775384.6154 | K72: 861538.4615 | L72: 947692.3077 | M72: 1033846.154 | N72: 1120000 | O72: 1206153.846 | P72: 1292307.692 | Q72: 1378461.538 | R72: 1464615.385 | S72: 1550769.231 | T72: 1636923.077 | U72: 1723076.923
A73: LP Share; Gain Realized on Sale | B73: =B47*LPGAIN -> 0 | C73: 0 | D73: 0 | E73: 0 | F73: 0 | G73: 0 | H73: 0 | I73: 0 | J73: 0 | K73: 0 | L73: 0 | M73: 0 | N73: 0 | O73: 0 | P73: 0 | Q73: 0 | R73: 0 | S73: 0 | T73: 0 | U73: 0
A74: Tax on Part II of Gain | B74: =MIN(-LPKTRDEPR*IF(B73>B72,B72,B73),0) -> 0 | C74: 0 | D74: 0 | E74: 0 | F74: 0 | G74: 0 | H74: 0 | I74: 0 | J74: 0 | K74: 0 | L74: 0 | M74: 0 | N74: 0 | O74: 0 | P74: 0 | Q74: 0 | R74: 0 | S74: 0 | T74: 0 | U74: 0
A75: Memo: Remaining PLCF
A77: LP Total Capital Gains Tax | B77: =B67+B74 -> 0 | C77: =C67+C74 -> 0 | D77: =D67+D74 -> 0 | E77: 0 | F77: 0 | G77: 0 | H77: -4709.615124 | I77: -38217.99973 | J77: -73066.71972 | K77: -109309.3885 | L77: -147001.764 | M77: -186201.8346 | N77: -226969.908 | O77: -269368.7043 | P77: -313463.4525 | Q77: -359321.9906 | R77: -407014.8702 | S77: -456615.465 | T77: -508200.0836 | U77: -561848.087
A80: Cash Flows | B80: =B7 -> Year 1 | C80: =C7 -> Year 2 | D80: =D7 -> Year 3 | E80: Year 4 | F80: Year 5 | G80: Year 6 | H80: Year 7 | I80: Year 8 | J80: IRR
A82: =-EQUITY -> -900000 | B82: =B$50 -> -42924.11318 | C82: -31767.37318 | D82: =D$50+D55 -> 82850.69271 | J82: =IRR(A82:I82,0.12) -> -0.5888860236
A83: -900000 | B83: -42924.11318 | C83: -31767.37318 | D83: =D$50 -> -20164.36358 | E83: =E$50+E55 -> 274445.3351 | J83: -0.2899671806
A84: -900000 | B84: -42924.11318 | C84: -31767.37318 | D84: =D$50 -> -20164.36358 | E84: =E$50 -> -8097.233591 | F84: =F$50+F55 -> 475362.9349 | J84: -0.1451195879
A85: -900000 | B85: -42924.11318 | C85: -31767.37318 | D85: =D$50 -> -20164.36358 | E85: =E$50 -> -8097.233591 | F85: =F$50 -> 4452.581592 | G85: =G$50+G55 -> 686118.5885 | J85: -0.0625246231
A86: -900000 | B86: -42924.11318 | C86: -31767.37318 | D86: =D$50 -> -20164.36358 | E86: =E$50 -> -8097.233591 | F86: =F$50 -> 4452.581592 | G86: =G$50 -> 17504.38938 | H86: =H$50+H55 -> 907260.1794 | J86: -0.01121515794
A87: -900000 | B87: -42924.11318 | C87: -31767.37318 | D87: =D$50 -> -20164.36358 | E87: =E$50 -> -8097.233591 | F87: =F$50 -> 4452.581592 | G87: =G$50 -> 17504.38938 | H87: =H$50 -> 31078.26948 | I87: =I$50+I55 -> 1139370.734 | J87: 0.02261174307

Sheet 8YRDCF
A1: 8-YEAR PRO FORMA
A2: APARTMENT INVESTMENT
A3: =PropName -> Mertz Apartments
A4: =PropAddr -> 555 Main Street
D6: ='Cash Flow'!D4 -> Year 1 | E6: ='Cash Flow'!E4 -> Year 2 | F6: ='Cash Flow'!F4 -> Year 3 | G6: ='Cash Flow'!G4 -> Year 4 | H6: ='Cash Flow'!H4 -> Year 5 | I6: ='Cash Flow'!I4 -> Year 6 | J6: ='Cash Flow'!J4 -> Year 7 | K6: ='Cash Flow'!K4 -> Year 8 | L6: ='Cash Flow'!L4 -> Year 9
A7: ='Cash Flow'!A5 -> GROSS POTENTIAL INCOME
A8: ='Cash Flow'!A16 -> Potential Rental Income | D8: ='Cash Flow'!D16 -> 739500 | E8: ='Cash Flow'!E16 -> 769080 | F8: ='Cash Flow'!F16 -> 799843.2 | G8: ='Cash Flow'!G16 -> 831836.928 | H8: ='Cash Flow'!H16 -> 865110.4051 | I8: ='Cash Flow'!I16 -> 899714.8213 | J8: ='Cash Flow'!J16 -> 935703.4142 | K8: ='Cash Flow'!K16 -> 973131.5507 | L8: ='Cash Flow'!L16 -> 1012056.813
A9: ='Cash Flow'!A18 -> Other Income | D9: ='Cash Flow'!D23 -> 1000 | E9: ='Cash Flow'!E23 -> 1040 | F9: ='Cash Flow'!F23 -> 1081.6 | G9: ='Cash Flow'!G23 -> 1124.864 | H9: ='Cash Flow'!H23 -> 1169.85856 | I9: ='Cash Flow'!I23 -> 1216.652902 | J9: ='Cash Flow'!J23 -> 1265.319018 | K9: ='Cash Flow'!K23 -> 1315.931779 | L9: ='Cash Flow'!L23 -> 1368.56905
A10: ='Cash Flow'!A25 -> Potential Gross Income | D10: ='Cash Flow'!D25 -> 740500 | E10: ='Cash Flow'!E25 -> 770120 | F10: ='Cash Flow'!F25 -> 800924.8 | G10: ='Cash Flow'!G25 -> 832961.792 | H10: ='Cash Flow'!H25 -> 866280.2637 | I10: ='Cash Flow'!I25 -> 900931.4742 | J10: ='Cash Flow'!J25 -> 936968.7332 | K10: ='Cash Flow'!K25 -> 974447.4825 | L10: ='Cash Flow'!L25 -> 1013425.382
A12: ='Cash Flow'!A27 -> Less: Vacancy and Collection
B13: ='Cash Flow'!B28 -> Rental Income | D13: ='Cash Flow'!D28 -> -36975 | E13: ='Cash Flow'!E28 -> -38454 | F13: ='Cash Flow'!F28 -> -39992.16 | G13: ='Cash Flow'!G28 -> -41591.8464 | H13: ='Cash Flow'!H28 -> -43255.52026 | I13: ='Cash Flow'!I28 -> -44985.74107 | J13: ='Cash Flow'!J28 -> -46785.17071 | K13: ='Cash Flow'!K28 -> -48656.57754 | L13: ='Cash Flow'!L28 -> -50602.84064
B14: ='Cash Flow'!B29 -> Other Income | D14: ='Cash Flow'!D29 -> -50 | E14: ='Cash Flow'!E29 -> -52 | F14: ='Cash Flow'!F29 -> -54.08 | G14: ='Cash Flow'!G29 -> -56.2432 | H14: ='Cash Flow'!H29 -> -58.492928 | I14: ='Cash Flow'!I29 -> -60.83264512 | J14: ='Cash Flow'!J29 -> -63.26595092 | K14: ='Cash Flow'!K29 -> -65.79658896 | L14: ='Cash Flow'!L29 -> -68.42845252
A15: ='Cash Flow'!A30 -> Total | D15: ='Cash Flow'!D30 -> -37025 | E15: ='Cash Flow'!E30 -> -38506 | F15: ='Cash Flow'!F30 -> -40046.24 | G15: ='Cash Flow'!G30 -> -41648.0896 | H15: ='Cash Flow'!H30 -> -43314.01318 | I15: ='Cash Flow'!I30 -> -45046.57371 | J15: ='Cash Flow'!J30 -> -46848.43666 | K15: ='Cash Flow'!K30 -> -48722.37413 | L15: ='Cash Flow'!L30 -> -50671.26909
A17: ='Cash Flow'!A32 -> Effective Gross Income | D17: ='Cash Flow'!D32 -> 703475 | E17: ='Cash Flow'!E32 -> 731614 | F17: ='Cash Flow'!F32 -> 760878.56 | G17: ='Cash Flow'!G32 -> 791313.7024 | H17: ='Cash Flow'!H32 -> 822966.2505 | I17: ='Cash Flow'!I32 -> 855884.9005 | J17: ='Cash Flow'!J32 -> 890120.2965 | K17: ='Cash Flow'!K32 -> 925725.1084 | L17: ='Cash Flow'!L32 -> 962754.1127
A19: ='Cash Flow'!A34 -> OPERATING EXPENSES
A20: ='Cash Flow'!A59 -> Total Operating Expenses | D20: ='Cash Flow'!D59 -> -305020 | E20: ='Cash Flow'!E59 -> -317220.8 | F20: ='Cash Flow'!F59 -> -329909.632 | G20: ='Cash Flow'!G59 -> -343106.0173 | H20: ='Cash Flow'!H59 -> -356830.258 | I20: ='Cash Flow'!I59 -> -371103.4683 | J20: ='Cash Flow'!J59 -> -385947.607 | K20: ='Cash Flow'!K59 -> -401385.5113 | L20: ='Cash Flow'!L59 -> -417440.9318
B21: ='Cash Flow'!B60 -> Per Unit Expenses | D21: ='Cash Flow'!D60 -> -3812.75 | E21: ='Cash Flow'!E60 -> -3965.26 | F21: ='Cash Flow'!F60 -> -4123.8704 | G21: ='Cash Flow'!G60 -> -4288.825216 | H21: ='Cash Flow'!H60 -> -4460.378225 | I21: ='Cash Flow'!I60 -> -4638.793354 | J21: ='Cash Flow'!J60 -> -4824.345088 | K21: ='Cash Flow'!K60 -> -5017.318891 | L21: ='Cash Flow'!L60 -> -5218.011647
A23: ='Cash Flow'!A62 -> NET OPERATING INCOME (NOI) | D23: ='Cash Flow'!D62 -> 398455 | E23: ='Cash Flow'!E62 -> 414393.2 | F23: ='Cash Flow'!F62 -> 430968.928 | G23: ='Cash Flow'!G62 -> 448207.6851 | H23: ='Cash Flow'!H62 -> 466135.9925 | I23: ='Cash Flow'!I62 -> 484781.4322 | J23: ='Cash Flow'!J62 -> 504172.6895 | K23: ='Cash Flow'!K62 -> 524339.5971 | L23: ='Cash Flow'!L62 -> 545313.181
B25: Less Debt Service | D25: ='Cash Flow'!D65+'Cash Flow'!D68 -> -459775.1617 | E25: ='Cash Flow'!E65+'Cash Flow'!E68 -> -459775.1617 | F25: ='Cash Flow'!F65+'Cash Flow'!F68 -> -459775.1617 | G25: ='Cash Flow'!G65+'Cash Flow'!G68 -> -459775.1617 | H25: ='Cash Flow'!H65+'Cash Flow'!H68 -> -459775.1617 | I25: ='Cash Flow'!I65+'Cash Flow'!I68 -> -459775.1617 | J25: ='Cash Flow'!J65+'Cash Flow'!J68 -> -459775.1617 | K25: ='Cash Flow'!K65+'Cash Flow'!K68 -> -459775.1617
A26: ='Cash Flow'!A69 -> Before Tax Cash Flow | D26: ='Cash Flow'!D69 -> -61320.16168 | E26: ='Cash Flow'!E69 -> -45381.96168 | F26: ='Cash Flow'!F69 -> -28806.23368 | G26: ='Cash Flow'!G69 -> -11567.47656 | H26: ='Cash Flow'!H69 -> 6360.830846 | I26: ='Cash Flow'!I69 -> 25006.27055 | J26: ='Cash Flow'!J69 -> 44397.52784 | K26: ='Cash Flow'!K69 -> 64564.43542
B27: ='Cash Flow'!B70 -> Less Taxes | D27: ='Cash Flow'!D70 -> 13650 | E27: ='Cash Flow'!E70 -> 13650 | F27: ='Cash Flow'!F70 -> 13650 | G27: ='Cash Flow'!G70 -> 13650 | H27: ='Cash Flow'!H70 -> 13650 | I27: ='Cash Flow'!I70 -> 13650 | J27: ='Cash Flow'!J70 -> 13650 | K27: ='Cash Flow'!K70 -> 13650
A28: ='Cash Flow'!A71 -> After Tax Cash Flow | D28: ='Cash Flow'!D71 -> -47670.16168 | E28: ='Cash Flow'!E71 -> -31731.96168 | F28: ='Cash Flow'!F71 -> -15156.23368 | G28: ='Cash Flow'!G71 -> 2082.523441 | H28: ='Cash Flow'!H71 -> 20010.83085 | I28: ='Cash Flow'!I71 -> 38656.27055 | J28: ='Cash Flow'!J71 -> 58047.52784 | K28: ='Cash Flow'!K71 -> 78214.43542
A30: ='Cash Flow'!A77 -> REVERSION
A31: ='Cash Flow'!A78 -> Gross Sale Price | K31: ='Cash Flow'!K78 -> 6415449.188
B32: ='Cash Flow'!B79 -> Less Cost of Sale | K32: ='Cash Flow'!K79 -> -192463.4756
A33: ='Cash Flow'!A80 -> Net Sale Price | K33: ='Cash Flow'!K80 -> 6222985.712
B34: ='Cash Flow'!B81 -> Less Outstanding Mortgage | K34: ='Cash Flow'!K81 -> -4659877.67
A35: ='Cash Flow'!A82 -> Before Tax Equity Reversion (BTER) | K35: ='Cash Flow'!K82 -> 1563108.042
B36: ='Cash Flow'!B83 -> Less Taxes Due on Sale (See Below) | K36: ='Cash Flow'!K83 -> -246503.0239
A37: ='Cash Flow'!A84 -> After Tax Equity Reversion (ATER) | K37: ='Cash Flow'!K84 -> 1316605.018
A39: RETURN MEASURES | D39: =D6 -> Year 1 | E39: =E6 -> Year 2 | F39: Year 3 | G39: Year 4 | H39: Year 5 | I39: Year 6 | J39: Year 7 | K39: Year 8
A41: Debt Coverage Ratio (DCR) | D41: =-D23/D25 -> 0.8666301123 | E41: =-E23/E25 -> 0.9012953168 | F41: 0.9373471295 | G41: 0.9748410146 | H41: 1.013834655 | I41: 1.054388041 | J41: 1.096563563 | K41: 1.140426106
A43: Overall Cash Flows | C43: =-PRICE_CAPS -> -6000000 | D43: =D23 -> 398455 | E43: =E23 -> 414393.2 | F43: 430968.928 | G43: 448207.6851 | H43: 466135.9925 | I43: 484781.4322 | J43: 504172.6895 | K43: =K23+K33 -> 6747325.309
B44: IRR | C44: =IRR(C43:K43,0.12) -> 0.07881564499
B45: ="PV @ "&TEXT(DISCRATE,"0%") -> PV @ 12% | C45: =NPV(DISCRATE,'8YRDCF'!D43:K43) -> 4741011.46
B46: IRR at various holding periods | D46: ='Cash Flow'!$B125 -> -0.1454312176 | E46: ='Cash Flow'!$B126 -> -0.02347464514 | F46: ='Cash Flow'!$B127 -> 0.02090175105 | G46: ='Cash Flow'!$B128 -> 0.04379240618 | H46: ='Cash Flow'!$B129 -> 0.05772936034 | I46: ='Cash Flow'!$B130 -> 0.06708681578 | J46: ='Cash Flow'!$B131 -> 0.07378926744 | K46: ='Cash Flow'!$B132 -> 0.07881564499
A48: Equity Cash Flows | C48: =-EQUITY -> -900000 | D48: =D26 -> -61320.16168 | E48: =E26 -> -45381.96168 | F48: -28806.23368 | G48: -11567.47656 | H48: 6360.830846 | I48: 25006.27055 | J48: 44397.52784 | K48: =K26+K35 -> 1627672.478
B49: Cash-on-Cash | D49: =-D48/$C$48 -> -0.06813351298 | E49: =-E48/$C$48 -> -0.05042440187 | F49: -0.03200692631 | G49: -0.01285275173 | H49: 0.007067589828 | I49: 0.02778474505 | J49: 0.04933058648
B50: IRR | C50: =IRR(C48:K48,0.12) -> 0.06545816763
A52: After Tax Cash Flow | C52: =C48 -> -900000 | D52: =D28 -> -47670.16168 | E52: =E28 -> -31731.96168 | F52: -15156.23368 | G52: 2082.523441 | H52: 20010.83085 | I52: 38656.27055 | J52: 58047.52784 | K52: =K28+K37 -> 1394819.454
B53: IRR | C53: =IRR(C52:K52,0.12) -> 0.05599467469
A55: Return - Managing Members
B56: Cash Flow | D56: =PartnershipCF!B18 -> -18396.0485 | E56: =PartnershipCF!C18 -> -13614.5885 | F56: =PartnershipCF!D18 -> -8641.870104 | G56: =PartnershipCF!E18 -> -3470.242968 | H56: =PartnershipCF!F18 -> 1908.249254 | I56: =PartnershipCF!G18 -> 7501.881164 | J56: =PartnershipCF!H18 -> 13319.25835 | K56: =PartnershipCF!I18 -> 19369.33062
A58: Investor IRR Calculations (3 to 8 year hold) | F58: =PartnershipCF!$J82 -> -0.5888860236 | G58: =PartnershipCF!$J83 -> -0.2899671806 | H58: =PartnershipCF!$J84 -> -0.1451195879 | I58: =PartnershipCF!$J85 -> -0.0625246231 | J58: =PartnershipCF!$J86 -> -0.01121515794 | K58: =PartnershipCF!$J87 -> 0.02261174307
